{"text_format":"3","workbook":"xlsx","n_sheets":1,"sheets":["Sheet1"],"not_rendered":{"defined_names":1},"read":"whole","date_system":"1900"}

{"sheet":"Sheet1","index":0,"n_rows":479,"n_cols":15,"rows_kept":479,"merged":[[1,0,1,14],[2,0,2,14],[14,0,14,14],[15,0,15,14],[32,0,32,14],[33,0,33,14],[39,0,39,14],[40,0,40,14],[44,0,44,14],[45,0,45,14],[62,0,62,14],[63,0,63,14],[67,0,67,14],[68,0,68,14],[74,0,74,14],[75,0,75,14],[79,0,79,14],[80,0,80,14],[82,0,82,14],[83,0,83,14],[86,0,86,14],[87,0,87,14],[90,0,90,14],[91,0,91,14],[98,0,98,14],[99,0,99,14],[106,0,106,14],[107,0,107,14],[122,0,122,14],[123,0,123,14],[130,0,130,14],[131,0,131,14],[138,0,138,14],[139,0,139,14],[167,0,167,14],[168,0,168,14],[173,0,173,14],[174,0,174,14],[180,0,180,14],[181,0,181,14],[187,0,187,14],[188,0,188,14],[192,0,192,14],[193,0,193,14],[197,0,197,14],[198,0,198,14],[207,0,207,14],[208,0,208,14],[214,0,214,14],[215,0,215,14],[226,0,226,14],[227,0,227,14],[232,0,232,14],[233,0,233,14],[238,0,238,14],[239,0,239,14],[246,0,246,14],[247,0,247,14],[253,0,253,14],[254,0,254,14],[261,0,261,14],[262,0,262,14],[264,0,264,14],[265,0,265,14],[270,0,270,14],[271,0,271,14],[278,0,278,14],[279,0,279,14],[288,0,288,14],[289,0,289,14],[297,0,297,14],[298,0,298,14],[304,0,304,14],[305,0,305,14],[307,0,307,14],[308,0,308,14],[311,0,311,14],[312,0,312,14],[329,0,329,14],[330,0,330,14],[335,0,335,14],[336,0,336,14],[340,0,340,14],[341,0,341,14],[346,0,346,14],[347,0,347,14],[350,0,350,14],[351,0,351,14],[371,0,371,14],[372,0,372,14],[389,0,389,14],[390,0,390,14],[394,0,394,14],[395,0,395,14],[397,0,397,14],[398,0,398,14],[400,0,400,14],[401,0,401,14],[404,0,404,14],[405,0,405,14],[414,0,414,14],[415,0,415,14],[420,0,420,14],[421,0,421,14],[424,0,424,14],[425,0,425,14],[430,0,430,14],[431,0,431,14],[440,0,440,14],[441,0,441,14],[444,0,444,14],[445,0,445,14],[448,0,448,14],[449,0,449,14],[452,0,452,14],[453,0,453,14],[457,0,457,14],[458,0,458,14],[461,0,461,14],[462,0,462,14],[471,11,471,13],[472,9,472,10],[472,11,472,13],[473,11,473,13]]}
["Annexure E - Pricing Schedule",null,null,"TE25-DBN-6GC-16060"]
[]
["Material Category 1: "]
["Item","Description","UOM ","Projected Qty Year 1","Year 1  Price Rate ","Year 1 total ","Projected Qty Year 2","Year 2 Rate ","Year 2 total ","Projected Qty Year 3","Year 3 Rate ","Year 3 total ","Total Amount for years 1 - 3 (excl Vat )","Total Amount for years 1 - 3 (Incl Vat )","Lead Time (weeks/days) "]
["011827413","LOUVER; TYPE: TRACTION, DIMENSIONS: WD 740 MM X LG 1.406 M X HT 68 MM; P/N: 1730000198, CSR CORPORATION LIMITED; DRAWING NO: 1730000198, LA; AJA1013510A, LA, ITEM: 1; ELECTRIC LOCOMOTIVE CLASS 22E, SIDE WINDOW","EA",4,null,{"$f":"SUM(E5*D5)","v":{"v":0,"d":"R0.00"}},0,null,{"$f":"SUM(H5*G5)","v":{"v":0,"d":"R0.00"}},0,null,{"$f":"SUM(K5*J5)","v":{"v":0,"d":"R0.00"}},{"$f":"SUM(L5+I5+F5)","v":{"v":0,"d":"R0.00"}},{"$f":"SUM(M5*1.15)","v":{"v":0,"d":"R0.00"}}]
["067823222","FILTER,INTAKE; TYPE TRACTION MOTOR BLOWER; APPLICATION: ELECTRIC LOCOMOTIVE CLASS 20E/21E; DIMENSIONS: WD 840 MM X LG 1206 M X THK 68 MM; FILTRATION EFFICIENCY (60 MICRON):GREATER THAN OR EQUAL TO 40% AT 1.5 M3/S FLOW; PRESSURE LOSS: 78 PA -/+ 20 PA AT 1.5 M3/S FLOW; COATING: RAL 7024 - GRAPHITE GREY ACRYLIC POLYURETHANE PAINT; CONSISTS OF: 1. OUTER FRAME - FT-GL-NF(Q)-01, 2. DOOR FRAME - FT-GL-NF(Q)-02, 3. FILTER ELEMENT - FT-GL-NF(Q)-0201; 4. HINGES X2 - CL226-3, 5. COMPRESSION DOOR LOCKS X3 - E3-110-25; INTERNAL USE: CRRC P/N: 1730000151; MAINTENANCE MANUAL: MM0605","EA",4,null,{"v":0,"d":"R0.00"},0,null,{"v":0,"d":"R0.00"},0,null,{"v":0,"d":"R0.00"},{"$f":"SUM(L6+I6+F6)","v":{"v":0,"d":"R0.00"}},{"v":0,"d":"R0.00"}]
["067823223","FILTER, INTAKE; TYPE: MACHINE ROOM BLOWER; APPLICATION: ELECTRIC LOCOMOTIVE CLASS 20E/21E; DIMENSIONS: WD 1160 MM X LG 1206 MM X THK 68 MM; FILTRATION EFFICIENCY (60 MICRON): GREATER THAN OR EQUAL TO 42% AT 2.0 M3/S FLOW; PRESSURE LOSS? 190 PA -/+ 20 PA AT 1.5 M3/S FLOW; COATING: RAL 7024 - GRAPHITE GREY ACRYLIC POLYURETHANE PAINT; CONSISTS OF: 1. SPONGE FILTER FRAME - FT-GL-NF(J)-03, 2. SPONGE FILTER -FT-GL-NF(J)-00-01; 3. OUTER FRAME - FT-GL-NF(J)-01 4. DOOR FRAME - FT-GL-NF(J)-02, 5. FILTER ELEMENT - FT-GL-NF(J)-0201, 6. COMPRESSION DOOR LOCKS X3 - E3-110-25, 7. HINGES X2 - CL226-3, ITEM NUMBER FOR SPONGE FILTER 084838837; INTERNAL USE: CRRC P/N: 1730000152; MAINTENANCE MANUAL: MM0605","EA",2,null,{"v":0,"d":"R0.00"},0,null,{"v":0,"d":"R0.00"},0,null,{"v":0,"d":"R0.00"},{"v":0,"d":"R0.00"},{"v":0,"d":"R0.00"}]
["084818016","GRID; TYPE: VENTILATION, COOLING TOWER; APPLICATION: ELECTRIC LOCOMOTIVE CLASS 20E/21E COOLING TOWER; MATERIAL: STAINLESS STEEL; CONSISTS OF: 6X FILTERS (ITEM 084854393), 1X FLANGE; DIMENSIONS: 1150MM X 1002MM X 65MM; INTERNAL USE: CRRC P/N: 80000954000051; MM0609","EA",20,null,{"v":0,"d":"R0.00"},0,null,{"v":0,"d":"R0.00"},0,null,{"v":0,"d":"R0.00"},{"v":0,"d":"R0.00"},{"v":0,"d":"R0.00"}]
["084837433","GRID; TYPE: VENTILATION COOLING TOWER, APPLICATION: ELECTRIC LOCOMOTIVE CLASS 22E COOLING TOWER; MATERIAL: STAINLESS STEEL; CONSISTS OF: 6X FILTERS (ITEM 084850788), 1X FLANGE; DIMENSIONS: 1285MM X 1002MM X 69.5MM; INTERNAL USE: CRRC P/N: 3910000975; MM0609","EA",15,null,{"v":0,"d":"R0.00"},0,null,{"v":0,"d":"R0.00"},0,null,{"v":0,"d":"R0.00"},{"v":0,"d":"R0.00"},{"v":0,"d":"R0.00"}]
["084838837","FILTER, ELEMENT; TYPE: MACHINE ROOM, AIR, DIMENSIONS: WD 990 X LG 1000 X THK 20 MM; APPLICATION: ELECTRIC LOCOMOTIVE CLASS 20E/21E MACHINE ROOM INTAKE; ELEMENT MATERIAL: POLYURETHANE FOAM; DIMENSIONS: WD 990 X LG 1000 X THK 20 MM; PORES PER INCH: 60 PPI; INTERNAL USE: CRRC P/N: 1000X990X20-60PPI; MAINTENANCE MANUAL: MM0605","EA",800,null,{"v":0,"d":"R0.00"},400,null,{"v":0,"d":"R0.00"},400,null,{"v":0,"d":"R0.00"},{"v":0,"d":"R0.00"},{"v":0,"d":"R0.00"}]
["084838838","FILTER, ELEMENT; TYPE: AIR, MACHINE ROOM, DIMENSIONS: WD 550 X LG 1196 X THK 20 MM; APPLICATION: ELECTRIC LOCOMOTIVE CLASS 22E MACHINE ROOM INTAKE; ELEMENT MATERIAL: POLYURETHANE FOAM; DIMENSIONS: WD 550 X LG 1196 X THK 20 MM; PORES PER INCH: 60 PPI; INTERNAL USE: CRRC P/N: 1196X550X20-60PPI; MAINTENANCE MANUAL: MM0605; THE MACHINE ROOM INTAKE FILTER HAS OF TWO FOAM FILTER ELEMENTS PER FILTER: OUTER FILTER ELEMENT: 084861803","EA",1508,null,{"v":0,"d":"R0.00"},864,null,{"v":0,"d":"R0.00"},944,null,{"v":0,"d":"R0.00"},{"v":0,"d":"R0.00"},{"v":0,"d":"R0.00"}]
["084844174","FILTER ASSEMBLY, ELECTRICAL; P/N: TE020-350000, CRRC CORPORATION LIMITED; CATALOGUE: MM0144, CRRC CORPORATION LIMITED; DRAWING NO: TE020-350000, LA, CRRC CORPORATION LIMITED; FOR PF1,X91,X92,X93;\nQUANTITY PER CONVERTER CABINET: 1X2;\nELECTRIC LOCOMOTIVE CLASS 21E ;\nPOWER CONVERTOR CUBICLE AND TRACTION CONTROL UNIT","EA",10,null,{"v":0,"d":"R0.00"},5,null,{"v":0,"d":"R0.00"},0,null,{"v":0,"d":"R0.00"},{"v":0,"d":"R0.00"},{"v":0,"d":"R0.00"}]
["084853850","KIT, AIR FILTER; TYPE: SERVICE; P/N: F72G-KITM05, NORGREN; APPLICATION: ELECTRIC LOCOMOTIVE CLASS 20E/21E/22E PANTO CONTROL; INCLUDES O-RINGS AND 5 UM FILTER ELEMENT; INTERNAL USE: MAINTENANCE MANUAL: MM0101-ADD","EA",1476,null,{"v":0,"d":"R0.00"},900,null,{"v":0,"d":"R0.00"},960,null,{"v":0,"d":"R0.00"},{"v":0,"d":"R0.00"},{"v":0,"d":"R0.00"}]
["084837512","FILTER, AIR; TYPE: F72G-2GN-QD1; P/N: F72G-2GN-QD1/LN, NORGREN; APPLICATION: ELECTRIC LOCOMOTIVE CLASS 20E/21E/22E PANTO CONTROL; MEDIUM: COMPRESSED AIR; MAX INLET PRESSURE: 17 BAR; OPERATING TEMP: -40C TO 65 °C; FILTER ELEMENT: 5 MICRON; BOWL: METAL WITH","EA",70,null,{"v":0,"d":"R0.00"},20,null,{"v":0,"d":"R0.00"},20,null,{"v":0,"d":"R0.00"},{"v":0,"d":"R0.00"},{"v":0,"d":"R0.00"}]
[]
["Material Category 2: "]
["071817928","SENSOR, TEMPERATURE; P/N: 3451000154, CSR CORPORATION LIMITED; DRAWING NO: 3451000154, LA; AXLE TEMP. SENSOR; DRAWING NO: 3451000154, LA; AXLE TEMPERATURE SENSOR; ELECTRIE CLASS 20E/21E/22E; MM0414 - BOGIE AXLE TEMPERATURE ALARM SYSTEM FIGURE 5.3 PAGE 19; LENGTH: 3.1 M; 20E/21E POSITION (13;24;33;44). 22E POSITION (24;33;34;43;44;53). NON-PROGRAMMED","EA",600,null,{"$f":"D17*E17","v":{"v":0,"d":"R0.00"}},300,null,{"$f":"SUM(H17*G17)","v":{"v":0,"d":"R0.00"}},300,null,{"$f":"SUM(K17*J17)","v":{"v":0,"d":"R0.00"}},{"$f":"SUM(L17+I17+F17)","v":{"v":0,"d":"R0.00"}},{"$f":"SUM(M17*1.15)","v":{"v":0,"d":"R0.00"}}]
["071817929","SENSOR, TEMPERATURE; P/N: 3451000155, CSR CORPORATION LIMITED; DRAWING NO: 3451000155, LA; AXLE TEMP. SENSOR; DRAWING NO: 3451000155, LA; AXLE TEMPERATURE SENSOR; ELECTRIE CLASS 20E/21E/22E; MM0414 - BOGIE AXLE TEMPERATURE ALARM SYSTEM FIGURE 5.3 PAGE 19; LENGTH 3.3 M; 20E/21E POSITION (23;34). 22E POSITION (13;14;23;54;63;64). NON-PROGRAMMED","EA",480,null,{"$f":"D18*E18","v":{"v":0,"d":"R0.00"}},240,null,{"v":0,"d":"R0.00"},240,null,{"v":0,"d":"R0.00"},{"$f":"SUM(L18+I18+F18)","v":{"v":0,"d":"R0.00"}},{"$f":"SUM(M18*1.15)","v":{"v":0,"d":"R0.00"}}]
["071874695","SENSOR, TEMPERATURE; P/N: 3233000230, CSR CORPORATION LIMITED; AXLE TEMP. SENSOR; DRAWING NO: AB01020271A, LA; AXLE TEMPERATURE SENSOR; ELECTRIC CLASS 22E; MM0414 - BOGIE AXLE TEMPERATURE ALARM SYSTEM FIGURE 5.3 PAGE 19; LENGTH 2.4 M; 22E POSITION (22;35;45;52). NON-PROGRAMMED","EA",240,null,{"v":0,"d":"R0.00"},120,null,{"v":0,"d":"R0.00"},120,null,{"v":0,"d":"R0.00"},{"v":0,"d":"R0.00"},{"v":0,"d":"R0.00"}]
["071874696"," SENSOR, TEMPERATURE; P/N: 3233000231, CSR CORPORATION LIMITED; AXLE TEMP. SENSOR; DRAWING NO: AB01020271A, LA; ELECTRIC CLASS 22E; MM0414 - BOGIE AXLE TEMPERATURE ALARM SYSTEM FIGURE 5.3 PAGE 19; LENGTH 2.5 M; 22E POSITION (15;62). NON-PROGRAMMED","EA",120,null,{"v":0,"d":"R0.00"},60,null,{"v":0,"d":"R0.00"},60,null,{"v":0,"d":"R0.00"},{"v":0,"d":"R0.00"},{"v":0,"d":"R0.00"}]
["071874697","SENSOR, TEMPERATURE; P/N: 3233000232, CSR CORPORATION LIMITED; AXLE TEMP. SENSOR; DRAWING NO: AB01020271A, LA; ELECTRIC CLASS 22E; MM0414 - BOGIE AXLE TEMPERATURE ALARM SYSTEM FIGURE 5.3 PAGE 19; LENGTH 3.5 M; 22E POSITION (25;55). NON-PROGRAMMED","EA",120,null,{"v":0,"d":"R0.00"},60,null,{"v":0,"d":"R0.00"},60,null,{"v":0,"d":"R0.00"},{"v":0,"d":"R0.00"},{"v":0,"d":"R0.00"}]
["071874698","SENSOR, TEMPERATURE; P/N: 3233000228, CSR CORPORATION LIMITED; AXLE TEMP. SENSOR; DRAWING NO: AB01020271A, LA; ELECTRIC CLASS 22E; MM0414 - BOGIE AXLE TEMPERATURE ALARM SYSTEM FIGURE 5.3 PAGE 19; LENGTH 1.3 M; 22E POSITION (32;44). NON-PROGRAMMED","EA",120,null,{"v":0,"d":"R0.00"},60,null,{"v":0,"d":"R0.00"},60,null,{"v":0,"d":"R0.00"},{"v":0,"d":"R0.00"},{"v":0,"d":"R0.00"}]
["071874699","SENSOR, TEMPERATURE; P/N: 3233000229, CSR CORPORATION LIMITED; AXLE TEMP. SENSOR; DRAWING NO: AB01020271A, LA; ELECTRIC CLASS 22E; MM0414 - BOGIE AXLE TEMPERATURE ALARM SYSTEM FIGURE 5.3 PAGE 19; LENGTH 1.5 M; 22E POSITION (12;62). NON-PROGRAMMED","EA",120,null,{"v":0,"d":"R0.00"},60,null,{"v":0,"d":"R0.00"},60,null,{"v":0,"d":"R0.00"},{"v":0,"d":"R0.00"},{"v":0,"d":"R0.00"}]
["061825849","SENSOR, TEMPERATURE; P/N: 3451000193, CSR CORPORATION LIMITED; AXLE TEMP. SENSOR; DRAWING NO: AB01020271A, LA; AXLE TEMPERATURE SENSOR; ELECTRI E CLASS 22E; MM0414 - BOGIE AXLE TEMPERATURE ALARM SYSTEM FIGURE 5.3 PAGE 19; LENGTH 1 M; 22E POSITION (11;16;21;2 6;31;46;51;56;61;66). NON-PROGRAMMED","EA",600,null,{"v":0,"d":"R0.00"},300,null,{"v":0,"d":"R0.00"},300,null,{"v":0,"d":"R0.00"},{"v":0,"d":"R0.00"},{"v":0,"d":"R0.00"}]
["061825850","SENSOR, TEMPERATURE; P/N: 3451000194, CSR CORPORATION LIMITED; AXLE TEMP. SENSOR; DRAWING NO: AB01020271A, LA; ELECTRI E CLASS 22E; MM0414 - BOGIE AXLE TEMPERATURE ALARM SYSTEM FIGURE 5.3 PAGE 19; LENGTH 1.7 M; 22E POSITION (36;41). NON-PROGRAMMED","EA",120,null,{"v":0,"d":"R0.00"},60,null,{"v":0,"d":"R0.00"},60,null,{"v":0,"d":"R0.00"},{"v":0,"d":"R0.00"},{"v":0,"d":"R0.00"}]
["071817925","SENSOR, TEMPERATURE; P/N: 3451000151, CSR CORPORATION LIMITED; AXLE TEMP. SENSOR; DRAWING NO: 3451000151, LA; ELECTRIE CLASS 20E/21E/; MM0414 - BOGIE AXLE TEMPERATURE ALARM SYSTEM FIGURE 5.3 PAGE 19; LENGTH 1.3 M; 20E/21E POSITION (16;26;31;41) NON-PROGRAMMED","EA",240,null,{"v":0,"d":"R0.00"},120,null,{"v":0,"d":"R0.00"},120,null,{"v":0,"d":"R0.00"},{"v":0,"d":"R0.00"},{"v":0,"d":"R0.00"}]
["071817926","SENSOR, TEMPERATURE; P/N: 3451000152, CSR CORPORATION LIMITED; AXLE TEMP. SENSOR; DRAWING NO: 3451000151, LA; ELECTRIE CLASS 20E/21E/; MM0414 - BOGIE AXLE TEMPERATURE ALARM SYSTEM FIGURE 5.3 PAGE 19; LENGTH 2.4 M; 20E/21E POSITION (11;21;36;46) NON-PROGRAMMED","EA",240,null,{"v":0,"d":"R0.00"},120,null,{"v":0,"d":"R0.00"},120,null,{"v":0,"d":"R0.00"},{"v":0,"d":"R0.00"},{"v":0,"d":"R0.00"}]
["071817927","SENSOR, TEMPERATURE; P/N: 3451000153, CSR CORPORATION LIMITED; AXLE TEMP. SENSOR; DRAWING NO: 3451000151, LA; ELECTRIE CLASS 20E/21E/; MM0414 - BOGIE AXLE TEMPERATURE ALARM SYSTEM FIGURE 5.3 PAGE 19; LENGTH 2.8 M; 20E/21E POSITION (14;43) NON-PROGRAMMED","EA",120,null,{"v":0,"d":"R0.00"},60,null,{"v":0,"d":"R0.00"},60,null,{"v":0,"d":"R0.00"},{"v":0,"d":"R0.00"},{"v":0,"d":"R0.00"}]
["085825855","SENSOR P/N: 3433000169 CSR CORPORATION LIMITED TRANSITION LINE; ELECTRIC LOCOMOTIVE CLASS 22E BOGIE WIRING DRAWING NO: AB01013861A CSR CORPORATION LIMITED REV LATEST ITEM 21","EA",12,null,{"v":0,"d":"R0.00"},2,null,{"v":0,"d":"R0.00"},2,null,{"v":0,"d":"R0.00"},{"v":0,"d":"R0.00"},{"v":0,"d":"R0.00"}]
["085825856","SENSOR TRANSITION LINE; ELECTRIC LOCOMOTIVE CLASS 22E BOGIE WIRING DRAWING NO: 3433000170 REV LATEST, AB01013861A CSR CORPORATION LIMITED REV LATEST ITEM 22","EA",12,null,{"v":0,"d":"R0.00"},2,null,{"v":0,"d":"R0.00"},2,null,{"v":0,"d":"R0.00"},{"v":0,"d":"R0.00"},{"v":0,"d":"R0.00"}]
["085825857","SENSOR P/N: 3451000197 CSR CORPORATION LIMITED TRANSITION LINE; ELECTRIC LOCOMOTIVE CLASS 22E BOGIE WIRING DRAWING NO: AB01013861A CSR CORPORATION LIMITED REV LATEST ITEM 23","EA",12,null,{"v":0,"d":"R0.00"},2,null,{"v":0,"d":"R0.00"},2,null,{"v":0,"d":"R0.00"},{"v":0,"d":"R0.00"},{"v":0,"d":"R0.00"}]
["085839247","SENSOR, TEMPERATURE; STYLE DESIGNATOR: PT100 AMBIENT, APPLICATION: ELECTRICAL LOCOMOTIVE CLASS 20E/21E/22E; AMBIENT AIR AND AXLE BOX TEMPERATURE SENSOR; SPECIFICATION:INPUT SIGNAL: -50 TO 200 DEG C, OUTPUT SIGNAL: IEC751 TCR = 0.003851,ACCURACY: GRADE B, JUMO P/N: 902004/15-1008-999-CSJY; DESIGNATION: 34-B25 - AMBIENT TEMPERATURE SENSOR LOCATED EXTERNALLY ALONGSIDE SHORE SUPPLY SOCKETS, MM0151-1; BOGIE AXLE TEMPERATURE ALARM SYSTEM SENSORS LOCATED ON AXLE BOX; MM0414; CRRC P/N: 80006911001274","EA",12,null,{"v":0,"d":"R0.00"},2,null,{"v":0,"d":"R0.00"},2,null,{"v":0,"d":"R0.00"},{"v":0,"d":"R0.00"},{"v":0,"d":"R0.00"}]
[]
["Material Category 3: "]
["068823172","SENSOR; 3233000072, CSR CORP; SENSOR; TYPE: ANTI SLIDING; ELECTRIC LOCOMOTIVE CLASS 20E BOGIE","EA",62,null,{"$f":"D35*E35","v":{"v":0,"d":"R0.00"}},12,null,{"$f":"G35*H35","v":{"v":0,"d":"R0.00"}},12,null,{"$f":"J35*K35","v":{"v":0,"d":"R0.00"}},{"$f":"SUM(L35+I35+F35)","v":{"v":0,"d":"R0.00"}},{"$f":"SUM(M35*1.15)","v":{"v":0,"d":"R0.00"}}]
["085819758","SENSOR P/N: 3451000150 CSR CORPORATION LIMITED ELECTRIC LOCOMOTIVE CLASS 20E","EA",12,null,{"v":0,"d":"R0.00"},2,null,{"v":0,"d":"R0.00"},2,null,{"v":0,"d":"R0.00"},{"v":0,"d":"R0.00"},{"v":0,"d":"R0.00"}]
["085821329","SENSOR, TEMPERATURE; P/N: 6911001273, CSR CORPORATION LIMITED","EA",20,null,{"v":0,"d":"R0.00"},10,null,{"v":0,"d":"R0.00"},0,null,{"v":0,"d":"R0.00"},{"v":0,"d":"R0.00"},{"v":0,"d":"R0.00"}]
["085838902","SENSOR, TEMPERATURE; P/N: 1B93700100G00, CRRC CORPORATION LIMITED; YQ-775 TRACTION MOTOR; ELECTRIC LOCOMOTIVE CLASS 20E, 21E AND 22E","EA",120,null,{"v":0,"d":"R0.00"},20,null,{"v":0,"d":"R0.00"},20,null,{"v":0,"d":"R0.00"},{"v":0,"d":"R0.00"},{"v":0,"d":"R0.00"}]
["085848256","SENSOR; TYPE: SPEED, YQ-775-1 CSR TRACTION MOTOR; P/N: 1B96600012G00, CRRC CORPORATION LIMITED; SPEED SENSOR ASSEMBLY; ELECTRIC LOCOMOTIVE CLASS 22E","EA",120,null,{"v":0,"d":"R0.00"},20,null,{"v":0,"d":"R0.00"},20,null,{"v":0,"d":"R0.00"},{"v":0,"d":"R0.00"},{"v":0,"d":"R0.00"}]
[]
["Material Category 4: "]
["085823279","CHARGER, BATTERY ELECTRIC LOCOMOTIVE CLASS 20E SPECIFICATION: 2×24-4 24V/12V DRAWING NO: 80006200001222 CSR CORPORATION LIMITED REV LATEST","EA",10,null,{"$f":"D42*E42","v":{"v":0,"d":"R0.00"}},0,null,{"$f":"G42*H42","v":{"v":0,"d":"R0.00"}},0,null,{"$f":"J42*K42","v":{"v":0,"d":"R0.00"}},{"$f":"SUM(L42+I42+F42)","v":{"v":0,"d":"R0.00"}},{"$f":"SUM(M42*1.15)","v":{"v":0,"d":"R0.00"}}]
["085831777","CHARGER, BATTERY; P/N: 6200001221, CSR CORPORATION LIMITED; DRAWING NO: 6200001221 CSR COR, LA; SPECIFICATION: 380/110-30A, LA; ELE CTRIC LOCOMOTIVE CLASS 20E; 22E","EA",10,null,{"v":0,"d":"R0.00"},0,null,{"v":0,"d":"R0.00"},0,null,{"v":0,"d":"R0.00"},{"v":0,"d":"R0.00"},{"v":0,"d":"R0.00"}]
["085831779","MONITOR; TYPE: BATTERY CHARGER; P/N: 6200001219, CSR CORPORATION LIMITED; DRAWING NO: 6200001219 CSR COR, LA; SPECIFICATION: 380/11 0, LA; ELECTRIC LOCOMOTIVE CLASS 20E; 22E","EA",10,null,{"v":0,"d":"R0.00"},0,null,{"v":0,"d":"R0.00"},0,null,{"v":0,"d":"R0.00"},{"v":0,"d":"R0.00"},{"v":0,"d":"R0.00"}]
[]
["Material Category 5: "]
["011820498","BUSBAR; TYPE: ROOF CONNECTION, 20/21/22E, MATERIAL: COPPER, TINNED, DIMENSIONS: WD 50 X LG 200 X THK 15 MM; DRAWING NO: PEL99M_00371, LA; APPLICATION:ELECTRIC LOCOMOTIVE CLASS 20E/21E/22E ROOF EQUIPMENT\nTINNED TO SPECIFICATION ISO-2093:1986:\nSERVICE CONDITION: 4  - EXCEPTIONALLY SEVERE;\nMINIMUM TIN THICKNESS: 15 MICRON;\nSURFACE FINISH: BRIGHT ELECTROPLATED;\nADHESION TEST: SCRIBE TEST AS DESC RIBED IN ISO-2819:2017;\nSAMPLING METHOD FOR ADHESION TEST: RANDOM AT 10%;\n\nINTERNAL USE: \nCRRC P/N: ZRAJA1007741;\nDRAWING: ZRAJA100 6505 ITEM 28;\nDRAWING: AJA1011430 ITEM 28","EA",120,null,{"$f":"D47*E47","v":{"v":0,"d":"R0.00"}},30,null,{"$f":"G47*H47","v":{"v":0,"d":"R0.00"}},30,null,{"$f":"J47*K47","v":{"v":0,"d":"R0.00"}},{"$f":"SUM(L47+I47+F47)","v":{"v":0,"d":"R0.00"}},{"$f":"SUM(M47*1.15)","v":{"v":0,"d":"R0.00"}}]
["011820499","BUSBAR; TYPE: ROOF CONNECTION, 20/21E, MATERIAL: COPPER, TINNED, DIMENSIONS: WD 50 X LG 270 X THK 15 MM; DRAWING NO: PEL99M_00368, LA; APPLICATION:ELECTRIC LOCOMOTIVE CLASS 20E/21E ROOF EQUIPMENT\nTINNED TO SPECIFICATION ISO-2093:1986:\nSERVICE CONDITION: 4 - EXCE PTIONALLY SEVERE;\nMINIMUM TIN THICKNESS: 15 MICRON;\nSURFACE FINISH: BRIGHT ELECTROPLATED;\nADHESION TEST: SCRIBE TEST AS DESCRIBED I N ISO-2819:2017;\nSAMPLING METHOD FOR ADHESION TEST: RANDOM AT 10%;\n\nINTERNAL USE: \nCRRC P/N: ZRAJA1008010A;\nDRAWING: ZRAJA1006505 I TEM 29","EA",120,null,{"v":0,"d":"R0.00"},30,null,{"v":0,"d":"R0.00"},30,null,{"v":0,"d":"R0.00"},{"v":0,"d":"R0.00"},{"v":0,"d":"R0.00"}]
["011820501","BUSBAR; TYPE: ROOF CONNECTION, 20/21E, MATERIAL: COPPER, TINNED, DIMENSIONS: WD 50 X LG 340 X THK 15 X HT 55 MM; DRAWING NO: PEL99M _00369, LA; APPLICATION:ELECTRIC LOCOMOTIVE CLASS 20E/21E ROOF EQUIPMENT\nTINNED TO SPECIFICATION ISO-2093:1986:\nSERVICE CONDITION: 4 - EXCEPTIONALLY SEVERE;\nMINIMUM TIN THICKNESS: 15 MICRON;\nSURFACE FINISH: BRIGHT ELECTROPLATED;\nADHESION TEST: SCRIBE TEST AS DES CRIBED IN ISO-2819:2017;\nSAMPLING METHOD FOR ADHESION TEST: RANDOM AT 10%;\n\nINTERNAL USE: \nCRRC P/N: ZRAJA1008012;\nDRAWING: ZRAJA10 06505 ITEM 31","EA",120,null,{"v":0,"d":"R0.00"},30,null,{"v":0,"d":"R0.00"},30,null,{"v":0,"d":"R0.00"},{"v":0,"d":"R0.00"},{"v":0,"d":"R0.00"}]
["011825004","BUSBAR; TYPE: ROOF CONNECTION, 20/21/22E, MATERIAL: COPPER, TINNED, DIMENSIONS: WD 75 X LG 145 X THK 15 X HT 100 MM; DRAWING NO: PEL99M_00373, LA; APPLICATION:LOCOMOTIVE CLASS 20E/21E/22E ROOF EQUIPMENT\nTINNED TO SPECIFICATION ISO-2093:1986:\nSERVICE CONDITION: 4  - EXCEPTIONALLY SEVERE;\nMINIMUM TIN THICKNESS: 15 MICRON;\nSURFACE FINISH: BRIGHT ELECTROPLATED;\nADHESION TEST: SCRIBE TEST AS DESC RIBED IN ISO-2819:2017;\nSAMPLING METHOD FOR ADHESION TEST: RANDOM AT 10%;\n\nINTERNAL USE: \nCRRC P/N: ZRAJA1008366;\nDRAWING: ZRAJA100 5503 ITEM 11;\nDRAWING: ZRAJA1006505 ITEM 40;\nDRAWING: AJA1013616 ITEM 26;\nDRAWING: AJA1011430 ITEM 40","EA",480,null,{"v":0,"d":"R0.00"},120,null,{"v":0,"d":"R0.00"},120,null,{"v":0,"d":"R0.00"},{"v":0,"d":"R0.00"},{"v":0,"d":"R0.00"}]
["011825005","BUSBAR; TYPE: ROOF CONNECTION, MATERIAL: COPPER, TINNED, DIMENSIONS: WD 90 X LG 130 X THK 15 X HT 127 MM, SHAPE: L; DRAWING NO: PEL99M_00372, LA; APPLICATION:ELECTRIC LOCOMOTIVE CLASS 20E/21E/22E ROOF EQUIPMENT\nTINNED TO SPECIFICATION ISO-2093:1986:\nSERVICE COND ITION: 4 - EXCEPTIONALLY SEVERE;\nMINIMUM TIN THICKNESS: 15 MICRON;\nSURFACE FINISH: BRIGHT ELECTROPLATED;\nADHESION TEST: SCRIBE TEST  AS DESCRIBED IN ISO-2819:2017;\nSAMPLING METHOD FOR ADHESION TEST: RANDOM AT 10%;\n\nINTERNAL USE: \nCRRC P/N: ZRAJA1008368;\nDRAWING: ZRAJA1006505 ITEM 41;\nDRAWING: ZRAJA1005503 ITEM 26;\nDRAWING: AJA1013616 ITEM 11;\nDRAWING: AJA1011430 ITEM 24","EA",240,null,{"v":0,"d":"R0.00"},60,null,{"v":0,"d":"R0.00"},60,null,{"v":0,"d":"R0.00"},{"v":0,"d":"R0.00"},{"v":0,"d":"R0.00"}]
["085818221","BUSBAR; TYPE: FLEXIBLE ASSEMBLY, MATERIAL: COPPER, DIMENSIONS: WD 60 X LG 300 X THK 20 MM; RATED CURRENT: 1440 AMPERE; CONSTRUCTION: 100 FLEXIBLE COPPER SHEETS 0.2 MM THICK, 60 MM WIDE AND 325 MM LONG. THE SHEETS SHALL BE SILVER SOLDERED TOGETHER FROM BOTH ENDS 90 MM INWARDS AND THE UNSOLDERED AREA SHALL BE FLEXIBLE; EQUIPMENT USED ON: CLASS 20E/21E/22E - MAIN TRANSFORMER TO PCC INTERFACE; DRAWING: PEL99M_00025, PEL99M_00024; REFERENCE STANDARD: BS EN 12167; INTERNAL USE: OEM PART NUMBER ZR3520002206; DRAWING: AJE1001626; MAINTENANCE MANUA:L MM0117","EA",50,null,{"v":0,"d":"R0.00"},0,null,{"v":0,"d":"R0.00"},0,null,{"v":0,"d":"R0.00"},{"v":0,"d":"R0.00"},{"v":0,"d":"R0.00"}]
["085819572","BUSBAR; TYPE: ROOF; DRAWING NO: PEL99M_00079, LA; SPECIFICATION: BBH5561, LA; APPLICATION: ELECTRIC LOCOMOTIVE CLASS 20E/21E ROOF 1 ;\nMATERIAL: COPPER WITH TINNED CONNECTION POINTS;\nPAINT SPECIFICATION: \nPRIMER: RAL3012,\nFINISH: RAL 3020 WITH ?80/20º GLOSS;\n\nINTE RNAL USE:\nBUSBAR 1 ON ROOF 1;\nCRRC P/N: AJA1006669","EA",70,null,{"v":0,"d":"R0.00"},10,null,{"v":0,"d":"R0.00"},0,null,{"v":0,"d":"R0.00"},{"v":0,"d":"R0.00"},{"v":0,"d":"R0.00"}]
["085819573","BUSBAR; TYPE: ROOF 3; DRAWING NO: PEL99M_00080, LA; SPECIFICATION: BBH5561, LA; APPLICATION: ELECTRIC LOCOMOTIVE CLASS 20E/21E ROOF  3;\nMATERIAL: COPPER WITH TINNED CONNECTION POINTS;\nPAINT SPECIFICATION: \nPRIMER: RAL3012,\nFINISH: RAL 3020 WITH ?80/20º GLOSS;\n\nIN TERNAL USE:\nBUSBAR 3 ON ROOF 3;\nCRRC P/N: AJA1006772","EA",70,null,{"v":0,"d":"R0.00"},10,null,{"v":0,"d":"R0.00"},0,null,{"v":0,"d":"R0.00"},{"v":0,"d":"R0.00"},{"v":0,"d":"R0.00"}]
["085827509","BUSBAR; TYPE: DIRECT CURRENT SENSOR LONG; DRAWING NO: RT-BLE-159, LA; APPLICATION: ELECTRIC LOCOMOTIVE CLASS 22E HT CUBICLE; MATERIAL: COPPER WITH TINNED CONNECTION POINTS; DRAWING: RT-BLE-159, LA; MATERIAL: 10MM FLAT COPPER; DIMENSIONS: 1105MM X 100MM; INTERNAL USE: CRRC P/N: AJA1010965A; APPLICATION: AJA1012443A IT 10; MAINTENANCE MANUAL: MM0140","EA",100,null,{"v":0,"d":"R0.00"},0,null,{"v":0,"d":"R0.00"},0,null,{"v":0,"d":"R0.00"},{"v":0,"d":"R0.00"},{"v":0,"d":"R0.00"}]
["085827822","BUSBAR; TYPE: ROOF 1; DRAWING NO: PEL99M_0081, LA; SPECIFICATION: BBH5561, LA; APPLICATION: ELECTRIC LOCOMOTIVE CLASS 22E ROOF 1; MATERIAL: COPPER WITH TINNED CONNECTION POINTS; PAINT SPECIFICATION: PRIMER: RAL3012, FINISH: RAL 3020 WITH GREATER THAN OR EQUAL TO 80/20º GLOSS; INTERNAL USE: BUSBAR ON ROOF 1; CRRC P/N: AJA1006672","EA",130,null,{"v":0,"d":"R0.00"},30,null,{"v":0,"d":"R0.00"},17,null,{"v":0,"d":"R0.00"},{"v":0,"d":"R0.00"},{"v":0,"d":"R0.00"}]
["085827948","BUSBAR; TYPE: ROOF 2; DRAWING NO: PEL99M_0084, LA; SPECIFICATION: BBH5561, LA; APPLICATION: ELECTRIC LOCOMOTIVE CLASS 22E ROOF 2; MATERIAL: COPPER WITH TINNED CONNECTION POINTS; DRAWING: PEL99M_0084; SPECIFICATION: BBH5561; PAINT SPECIFICATION: PRIMER: RAL3012, FINISH: RAL 3020 WITH GREATER THAN OR EQUAL TO 80/20º GLOSS; INTERNAL USE: BUSBAR 2 ON ROOF 2; CRRC P/N: AJA1013651","EA",130,null,{"v":0,"d":"R0.00"},30,null,{"v":0,"d":"R0.00"},17,null,{"v":0,"d":"R0.00"},{"v":0,"d":"R0.00"},{"v":0,"d":"R0.00"}]
["085827949","BUSBAR; TYPE: ROOF 3; DRAWING NO: PEL99M_0082, LA; SPECIFICATION: BBH5561, LA; APPLICATION: ELECTRIC LOCOMOTIVE CLASS 22E ROOF 3; MATERIAL: COPPER WITH TINNED CONNECTION POINTS; PAINT SPECIFICATION: PRIMER: RAL3012, FINISH: RAL 3020 WITH ?80/20º GLOSS; INTERNAL USE: BUSBAR 1 ON ROOF 3; CRRC P/N: AJA1013693","EA",130,null,{"v":0,"d":"R0.00"},30,null,{"v":0,"d":"R0.00"},17,null,{"v":0,"d":"R0.00"},{"v":0,"d":"R0.00"},{"v":0,"d":"R0.00"}]
["085828965","BUSBAR; TYPE: ROOF 3; SPECIFICATION: BBH5561, LA; APPLICATION: ELECTRIC LOCOMOTIVE CLASS 22E ROOF 3; MATERIAL: COPPER WITH TINNED CONNECTION POINTS; DRAWING: PEL99M_00105,PEL99M_0083, PEL99M_0102; PAINT SPECIFICATION: PRIMER: RAL3012, FINISH: RAL 3020 WITH GREATER THAN OR EQUAL TO 80/20º GLOSS; WELDED JOINT SHALL COMPLY WITH EN 15085; INTERNAL USE: BUSBAR 2 ON ROOF 3; CRRC P/N: AJA1013696","EA",130,null,{"v":0,"d":"R0.00"},30,null,{"v":0,"d":"R0.00"},17,null,{"v":0,"d":"R0.00"},{"v":0,"d":"R0.00"},{"v":0,"d":"R0.00"}]
["085840887","BUSBAR; TYPE: ROOF 2; SPECIFICATION: BBH5561, LA; DRAWING NO: PEL99M_00110, PEL99M_00109, PEL99M_00102, PEL99M_00103 LA; APPLICATION: ELECTRIC LOCOMOTIVE CLASS 21E ROOF 2; MATERIAL: COPPER WITH TINNED CONNECTION POINTS; PAINT SPECIFICATION: PRIMER: RAL3012, FINISH: RAL 3020 WITH GREATER THAN OR EQUAL TO 80/20º GLOSS; WELDED JOINT SHALL COMPLY WITH EN 15085; INTERNAL USE: BUSBAR 2 ON ROOF 2; CRRC P/N: AJA1011418","EA",70,null,{"v":0,"d":"R0.00"},10,null,{"v":0,"d":"R0.00"},0,null,{"v":0,"d":"R0.00"},{"v":0,"d":"R0.00"},{"v":0,"d":"R0.00"}]
["085845742","BUSBAR; TYPE: AC INTER CONNECTOR; DRAWING NO: TFR BBH6738, LA; APPLICATION: ELECTRIC LOCOMOTIVE CLASS 20E/21E/22E HIGH VOLTAGE CUBICLE; MATERIAL: 5MM COPPER; ELECTROPLATED ACCORDING TO BS 1872; INTERNAL USE: CONNECTION BETWEEN VCB, AC ARRESTER AND HT TRANSFORMER CABLE; CRRC P/N: AJE1015212A (FOR REFERENCE ONLY); MAINTENANCE MANUAL: MM0149","EA",70,null,{"v":0,"d":"R0.00"},20,null,{"v":0,"d":"R0.00"},20,null,{"v":0,"d":"R0.00"},{"v":0,"d":"R0.00"},{"v":0,"d":"R0.00"}]
["085846271","BUSBAR; TYPE: DIRECT CURRENT SHORT, 22E, MATERIAL: COPPER, DIMENSIONS: WD 100 X LG 245.5 MM; DRAWING NO: RT-BLE-158, LA; APPLICATION: ELECTRIC LOCOMOTIVE CLASS 22E HT CUBICLE; MATERIAL: COPPER WITH TINNED CONNECTION POINTS; MATERIAL: 10MM FLAT COPPER; DIMENSIONS: WD 100MM X LG 245.5MM; INTERNAL USE: CRRC P/N: AJA1011034A; APPLICATION: AJA1012443A IT 9; MAINTENANCE MANUAL: MM0140","EA",100,null,{"v":0,"d":"R0.00"},0,null,{"v":0,"d":"R0.00"},0,null,{"v":0,"d":"R0.00"},{"v":0,"d":"R0.00"},{"v":0,"d":"R0.00"}]
[]
["Material Category 6: "]
["084827442","BUSHING P/N: AB01013426A CSR CORPORATION LIMITED ELECTRIC LOCOMOTIVE CLASS 22E CONNECTING BAR ASSEMBLY DRAWING NO: AB01013426A REV LATEST, AB01013566A REV LATEST ITEM 2","EA",140,null,{"$f":"D65*E65","v":{"v":0,"d":"R0.00"}},90,null,{"$f":"G65*H65","v":{"v":0,"d":"R0.00"}},90,null,{"$f":"J65*K65","v":{"v":0,"d":"R0.00"}},{"$f":"SUM(L65+I65+F65)","v":{"v":0,"d":"R0.00"}},{"$f":"SUM(M65*1.15)","v":{"v":0,"d":"R0.00"}}]
["084827444","BUSHING TYPE NO 1 P/N: AB01013427A CSR CORPORATION LIMITED ELECTRIC LOCOMOTIVE CLASS 22E ELBOW ASSEMBLY DRAWING NO: AB01013427A REV LATEST, AB01013569A REV LATEST ITEM 3","EA",560,null,{"v":0,"d":"R0.00"},360,null,{"v":0,"d":"R0.00"},360,null,{"v":0,"d":"R0.00"},{"v":0,"d":"R0.00"},{"v":0,"d":"R0.00"}]
["084827445","BUSHING TYPE NO 2 P/N: AB01013428A CSR CORPORATION LIMITED ELECTRIC LOCOMOTIVE CLASS 22E ELBOW ASSEMBLY DRAWING NO: AB01013428A REV LATEST, AB01013569A REV LATEST ITEM 1","EA",280,null,{"v":0,"d":"R0.00"},180,null,{"v":0,"d":"R0.00"},180,null,{"v":0,"d":"R0.00"},{"v":0,"d":"R0.00"},{"v":0,"d":"R0.00"}]
[]
["Material Category 7: "]
["085837527","PUSH BUTTON; TYPE: VIGILANCE NPNA-21E; P/N: 80003387000714, CRRC CORPORATION LIMITED; DRAWING NO: PEL087C0016, LA; VOLTAGE RANGE: 250V AC/110V DC CURRENT RANGE: 10 A/2.5 A WIRE CAPACITY AND FASTENING: 2.5MM^2; SCREW TYPE TERMINAL RANGE: 1 NO AND NC CENTRAL POINT MOMENTARY SNAP ACTION VOLTAGE TERMINALS: GOLD-PLATED OVER SILVER IEC60947-5-1 COMPLIANT, IP65 PROTECTION OPERATING FORCE AND TRAVEL: MAX 12N/5MM±0.2MM TEMPERATURE RANGE: -25°C TO 55°C ELECTRIC SHOCK PROTECTION BUTTON COLOR: RED RECTANGULAR FLUSH PUSHBUTTON RED/200 MCD LED PILOT LIGHT PLASTIC MATERIAL BLACK BEZEL ELECTRIC LOCOMOTIVE CLASS 21E","EA",60,null,{"$f":"D70*E70","v":{"v":0,"d":"R0.00"}},10,null,{"$f":"G70*H70","v":{"v":0,"d":"R0.00"}},10,null,{"$f":"J70*K70","v":{"v":0,"d":"R0.00"}},{"$f":"SUM(L70+I70+F70)","v":{"v":0,"d":"R0.00"}},{"$f":"SUM(M70*1.15)","v":{"v":0,"d":"R0.00"}}]
["085837528","PUSH BUTTON; TYPE: AIR HORN NPNA-21E; P/N: 80003387010209, CRRC CORPORATION LIMITED; DRAWING NO: PEL087C0021, LA; VOLTAGE RANGE: 110V DC CURRENT RANGE: 1 A WIRE CAPACITY AND FASTENING: 2.5MM^2; SCREW TYPE TERMINAL RANGE: 1 NO CONTACT, SNAP ACTION VOLTAGE TERMINALS: GOLD-PLATED OVER SILVER IEC60947-5-1 COMPLIANT, IP65 PROTECTION OPERATING FORCE AND TRAVEL: MAX 2.5N/5.8MM±0.2MM TEMPERATURE RANGE: -40°C TO 55°C ELECTRIC SHOCK PROTECTION BUTTON COLOR: GREEN PLASTIC MATERIAL BLACK ALUMINUM BEZEL ELECTRIC LOCOMOTIVE CLASS 21E","EA",40,null,{"v":0,"d":"R0.00"},20,null,{"v":0,"d":"R0.00"},20,null,{"v":0,"d":"R0.00"},{"v":0,"d":"R0.00"},{"v":0,"d":"R0.00"}]
["085840588","PUSH BUTTON; TYPE: EMERGENCY; P/N: 80003387010214, CRRC CORPORATION LIMITED; DRAWING NO: PEL087C0012, LA; VOLTAGE RANGE: 110V DC CURRENT RANGE: 2.5 A WIRE CAPACITY AND FASTENING: 2.5MM^2; SCREW TYPE TERMINAL RANGE: 2 NO AND 2 NC SLOW MAKE SWITCHING ELEMENTS VOLTAGE TERMINALS: GOLD-PLATED OVER SILVER IEC60947-5-1 COMPLIANT, IP65 PROTECTION TEMPERATURE RANGE: -40°C TO 55°C ELECTRIC SHOCK PROTECTION BUTTON COLOR: RED ACTUATOR WITH LOCK FUNCTION PLASTIC MATERIAL YELLOW PROTECTIVE SHROUD; ELECTRIC LOCOMOTIVE CLASS 21E/22E","EA",12,null,{"v":0,"d":"R0.00"},2,null,{"v":0,"d":"R0.00"},2,null,{"v":0,"d":"R0.00"},{"v":0,"d":"R0.00"},{"v":0,"d":"R0.00"}]
["085843666","PUSH BUTTON; TYPE: PARK BRAKE; P/N: 80003387010207, CRRC CORPORATION LIMITED; DRAWING NO: PEL087C0008, LA; VOLTAGE RANGE: 110V DC CURRENT RANGE: 1 A WIRE CAPACITY AND FASTENING: 2.5MM^2; SCREW TYPE TERMINAL RANGE: 2 NO CONTACTS SNAP ACTION VOLTAGE TERMINALS: GOLD-PLATED OVER SILVER IEC60947-5-1 COMPLIANT, IP65 PROTECTION OPERATING FORCE AND TRAVEL: MAX 5N/5.8MM±0.2MM TEMPERATURE RANGE: -40°C TO 55°C ELECTRIC SHOCK PROTECTION BUTTON COLOR: RED WITH LAMP BLOCK AND 2.5MM SCREW TERMINAL FLUSH PUSHBUTTON WHITE/225 MCD LED PILOT LIGHT PLASTIC MATERIAL SILVER (ANODIZED) ALUMINUM BEZEL ELECTRIC LOCOMOTIVE CLASS 21/22E","EA",20,null,{"v":0,"d":"R0.00"},10,null,{"v":0,"d":"R0.00"},10,null,{"v":0,"d":"R0.00"},{"v":0,"d":"R0.00"},{"v":0,"d":"R0.00"}]
["085843667","PUSH BUTTON; TYPE: SEE ME HOME, COLOR: GREEN; DRAWING NO: PEL087C0000, LA; VOLTAGE RANGE: 110V DC CURRENT RANGE: 1 A WIRE CAPACITY AND FASTENING: 2.5MM2; SCREW TYPE TERMINAL RANGE: 2 NO CONTACTS SNAP ACTION VOLTAGE TERMINALS: GOLD-PLATED OVER SILVER IEC60947-5-1 COMPLIANT, IP65 PROTECTION OPERATING FORCE AND TRAVEL: MAX 5N/5.8MM±0.2MM TEMPERATURE RANGE: -40°C TO 55°C ELECTRIC SHOCK PROTECTION BUTTON COLOR: GREEN FLUSH PUSHBUTTON PLASTIC MATERIAL SILVER (ANODIZED) ALUMINUM BEZEL; ELECTRIC LOCOMOTIVE CLASS 20E/21E/22E; REFERENCE TO 80003387010210, CRRC CORPORATION LIMITED","EA",20,null,{"v":0,"d":"R0.00"},10,null,{"v":0,"d":"R0.00"},10,null,{"v":0,"d":"R0.00"},{"v":0,"d":"R0.00"},{"v":0,"d":"R0.00"}]
[]
["Material Category 8: "]
["061851611","CABLE, ELECTRICAL; TYPE: YQ-775 TRACTION MOTOR, COLOR: BLACK, POTENTIAL: 3.6 KV, APPLICATION: ELECTRIC LOCOMOTIVE CLASS 20E/21E/22E ; SPECIFICATION:RS/EE/SP/015 , LA; CROSS SECTION:150MM2 OUTER DIAMETER 26.50MM +- 0.3; NOM. WALL THICKNESS: INSULATION 2.90MM; S HEATH 2.1MM, CONDUCTOR CONSTRUCTION [N X MM] 703 X 0.50\nSUPPLIER SHALL PROVIDE MANUFACTURER'S DATASHEET THAT CLEARLY INDICATES COMP LIANCE TO SPECIFICATIONS","METER",1000,null,{"$f":"D77*E77","v":{"v":0,"d":"R0.00"}},0,null,{"$f":"G77*H77","v":{"v":0,"d":"R0.00"}},0,null,{"$f":"J77*K77","v":{"v":0,"d":"R0.00"}},{"$f":"SUM(L77+I77+F77)","v":{"v":0,"d":"R0.00"}},{"$f":"SUM(M77*1.15)","v":{"v":0,"d":"R0.00"}}]
["061854990","CABLE, ELECTRICAL; CONDUCTOR QUANTITY: 1 CORE, CONDUCTOR DIAMETER: 150 MM2, POTENTIAL: 3.6/6 KV; CABLE DIAMETER: 22.9 MM (MIN), 26.8 MM (MAX); CABLE COLOUR: BLACK; CONDUCTOR: STRANDED, TIN-COATED ANNEALED COPPER WIRE, CLASS 5; INSULATION: CROSS-LINKED COMPOUND TYPE EI 107 IN ACCORDANCE WITH EN 50264-3-1; OUTER SHEATH/JACKET: CROSS LINKED EVA, EM 102 IN ACCORDANCE WITH EN 50264-3-1; EQUIPMENT USED ON: ELECTRIC LOCOMOTIVE CLASS 20E/21E/22E; REFERENCE STANDARD: RS/EE/SP/015 REV 05 (SPECIAL REFERENCE TO EN 50264-3-1: 2008); SUPPLIER SHALL PROVIDE MANUFACTURER'S DATASHEET THAT CLEARLY INDICATES COMPLIANCE TO  SPECIFICATIONS. INTERNAL USE: 20E/21EP/N: 3423000770; 22E P/N: 3423000923; 20E DRAWING: ZRAJE1000825 ITEM 15 - 150M; 21E DRAWING: AJE1001434 ITEM 15 - 150M; 22E DRAWING: AJE1001696 ITEM 11 - 160M","METER",2000,null,{"v":0,"d":"R0.00"},0,null,{"v":0,"d":"R0.00"},0,null,{"v":0,"d":"R0.00"},{"v":0,"d":"R0.00"},{"v":0,"d":"R0.00"}]
["085819432","CABLE, ELECTRICAL; CONDUCTOR QUANTITY: 1 CORE, CONDUCTOR DIAMETER: 185 MM2, POTENTIAL: 3.6/6 KV; CABLE DIAMETER: 25.1 MM (MIN), 29. 4 MM (MAX); CABLE COLOUR: BLACK; CONDUCTOR: STRANDED, TIN-COATED ANNEALED COPPER WIRE, CLASS 5; INSULATION: CROSS-LINKED COMPOUND TYPE EI 107 IN ACCORDANCE WITH EN 50264-3-1; OUTER SHEATH/JACKET: CROSS LINKED EVA, EM 102 IN ACCORDANCE WITH EN 50264-3-1; EQUIPMENT USED ON: ELECTRIC LOCOMOTIVE CLASS 20E/21E/22E; REFERENCE STANDARD: RS/EE/SP/015 REV 05 (SPECIAL REFERENCE TO EN 50264-3-1: 2008); SUPPLIER SHALL PROVIDE MANUFACTURER'S DATASHEET THAT CLEARLY INDICATES COMPLIANCE TO  SPECIFICATIONS. INTERNAL USE: 20E/21E P/N: 3423000771; 22E P/N: 3423000920; 20E DRAWING: ZRAJE1000825 ITEM 1 - 60M; 21E DRAWING: AJE1001434 ITEM 1 - 60M; 22E DRAWING: AJE1001696 ITEM 3 - 70M","METER",2500,null,{"v":0,"d":"R0.00"},500,null,{"v":0,"d":"R0.00"},500,null,{"v":0,"d":"R0.00"},{"v":0,"d":"R0.00"},{"v":0,"d":"R0.00"}]
[]
["Material Category 9: "]
["085826938","CAMERA, TELEVISION; P/N: 6200001879, CSR CORPORATION LIMITED; ELECTRIC LOCOMOTIVE CLASS 22E ROOF 2","EA",25,null,{"$f":"D82*E82","v":{"v":0,"d":"R0.00"}},5,null,{"$f":"G82*H82","v":{"v":0,"d":"R0.00"}},5,null,{"$f":"J82*K82","v":{"v":0,"d":"R0.00"}},{"$f":"SUM(L82+I82+F82)","v":{"v":0,"d":"R0.00"}},{"$f":"SUM(M82*1.15)","v":{"v":0,"d":"R0.00"}}]
[]
["Material Category 10: "]
["054859882","BREAKER, CIRCUIT; TYPE: MINIATURE, INTERRUPT CAPACITY: 6 A, POLE: DOUBLE; TYPE: 6A DOUBLE POLE MCB; APPLICATION: ELECTRIC LOCOMOTIVE CLASS 21E LVC; STANDARDS: EN/IEC 60947-2, EN/IEC 60898-2, VDE 0641-2/3; TRIPPING CHARACTERISTICS: C; RATED CURRENT: 6A; RATED AC VOLTAGE: 230V; VIBRATION RESISTANCE (IEC 77/16.3): 5G; SELFEXTINGUISH DEGREE (UL94): V2; TROPICALISATION (EN 60068-2/DIN 40046): +55C/95% RH; MOUNTING: DIN RAIL; OEM P/N: EP102RUCC06; DESIGNATION: MCB_LVC <(>&<)> TOILET FAN =34-F770; CRRC P/N: 80003301000521; REFERENCE: MM0123-3","EA",30,null,{"$f":"D85*E85","v":{"v":0,"d":"R0.00"}},0,null,{"$f":"G85*H85","v":{"v":0,"d":"R0.00"}},0,null,{"$f":"J85*K85","v":{"v":0,"d":"R0.00"}},{"$f":"SUM(L85+I85+F85)","v":{"v":0,"d":"R0.00"}},{"$f":"SUM(M85*1.15)","v":{"v":0,"d":"R0.00"}}]
["085817525","BREAKER, CIRCUIT; TYPE: 5SJ5 1107/5SY5110-7, INTERRUPT CAPACITY: 10 A, POTENTIAL RATING: 220 VDC, RATED BREAKING CAPACITY: 10 KA, CONNECTION TYPE: SCREW, TEMPERATURE RATING: -40 TO +70 DEG C, MOUNTING METHOD: DIN 35 MM, POLE: SINGLE; STANDARD: IEC 60898-1, LA; CONNECTABLE CONDUCTOR SIZE: 0.75MM2 - 35MM2; TRIPPING CHARACTERISTICS: CURVE C/5-10 TIMES RATED; CURRENT INSTANTANEOUS TRIP; WIDTH: 18MM; HEIGHT: 90MM; MECHANICAL ENDURANCE: 20 000 CYCLES; ELECTRICAL ENDURANCE: 10 000 CYCLES; APPLICATION: ELECTRIC LOCOMOTIVE CLASS 20E/22E LV CUBICLE; INTERNAL USE: CRRC PART NUMBER: 80003301008773; MAINTENANCE MANUAL: MM0123-2","EA",30,null,{"v":0,"d":"R0.00"},0,null,{"v":0,"d":"R0.00"},0,null,{"v":0,"d":"R0.00"},{"v":0,"d":"R0.00"},{"v":0,"d":"R0.00"}]
[]
["Material Category 11: "]
["085840977","DEVICE; TYPE: 1 POLE LIGHTING PROTECTION, APPLICATION: ELECTRIC LOCOMOTIVE CLASS 21E/22E; P/N: ZYSPD40K275B/3-FM, CRRC CORPORATION LIMITED","EA",60,null,{"$f":"D89*E89","v":{"v":0,"d":"R0.00"}},10,null,{"$f":"G89*H89","v":{"v":0,"d":"R0.00"}},10,null,{"$f":"J89*K89","v":{"v":0,"d":"R0.00"}},{"$f":"SUM(L89+I89+F89)","v":{"v":0,"d":"R0.00"}},{"$f":"SUM(M89*1.15)","v":{"v":0,"d":"R0.00"}}]
["085841987","DEVICE; TYPE: LIGHTING PROTECTION F08, APPLICATION: ELECTRIC LOCOMOTIVE CLASS 21/22E; P/N: ZYSPD20K150C2, CRRC CORPORATION LIMITED","EA",60,null,{"v":0,"d":"R0.00"},10,null,{"v":0,"d":"R0.00"},10,null,{"v":0,"d":"R0.00"},{"v":0,"d":"R0.00"},{"v":0,"d":"R0.00"}]
[]
["Material Category 12: "]
["068826949","ASSEMBLY; TYPE: COOLING TOWER A; P/N: 3910000979, CSR CORPORATION LIMITED","EA",5,null,{"$f":"D93*E93","v":{"v":0,"d":"R0.00"}},0,null,{"$f":"G93*H93","v":{"v":0,"d":"R0.00"}},0,null,{"$f":"J93*K93","v":{"v":0,"d":"R0.00"}},{"$f":"SUM(L93+I93+F93)","v":{"v":0,"d":"R0.00"}},{"$f":"SUM(M93*1.15)","v":{"v":0,"d":"R0.00"}}]
["068826950","ASSEMBLY; TYPE: COOLING TOWER B; P/N: 3910000980, CSR CORPORATION LIMITED; ELECTRIC LOCOMOTIVE CLASS 22E","EA",5,null,{"v":0,"d":"R0.00"},0,null,{"v":0,"d":"R0.00"},0,null,{"v":0,"d":"R0.00"},{"v":0,"d":"R0.00"},{"v":0,"d":"R0.00"}]
["084819554","ASSEMBLY; TYPE: COMBINED COOLING TOWER NO 1; P/N: 3910000711, CRRC CORPORATION LIMITED; SPECIFICATION: LQT-015(A), LA; TYPE: COMBINED COOLING TOWER NO.1, (E41); APPLICATION: ELECTRIC LOCOMOTIVE CLASS 20E; MAINTENANCE MANUAL: MM0602 (REV 7.2)","EA",3,null,{"v":0,"d":"R0.00"},0,null,{"v":0,"d":"R0.00"},0,null,{"v":0,"d":"R0.00"},{"v":0,"d":"R0.00"},{"v":0,"d":"R0.00"}]
["084819555","ASSEMBLY; TYPE: COMBINED COOLING TOWER NO 2; P/N: 3910000712, CRRC CORPORATION LIMITED; SPECIFICATION: LQT-015(B), LA; TYPE COMBINED COOLING TOWER NO.2 (E42); APPLICATION ELECTRIC LOCOMOTIVE CLASS 20E; MAINTENANCE MANUAL: MM0602 (REV 7.2)","EA",3,null,{"v":0,"d":"R0.00"},0,null,{"v":0,"d":"R0.00"},0,null,{"v":0,"d":"R0.00"},{"v":0,"d":"R0.00"},{"v":0,"d":"R0.00"}]
["084835052","ASSEMBLY; TYPE: COOLING TOWER 2B, APPLICATION: ELECTRIC LOCOMOTIVE CLASS 21E; P/N: 6912001749, CSR CORPORATION LIMITED","EA",3,null,{"v":0,"d":"R0.00"},0,null,{"v":0,"d":"R0.00"},0,null,{"v":0,"d":"R0.00"},{"v":0,"d":"R0.00"},{"v":0,"d":"R0.00"}]
["084835053","ASSEMBLY; TYPE: COOLING TOWER 1A, APPLICATION: ELECTRIC LOCOMOTIVE CLASS 21E; P/N: 6912001748, CSR CORPORATION LIMITED","EA",3,null,{"v":0,"d":"R0.00"},0,null,{"v":0,"d":"R0.00"},0,null,{"v":0,"d":"R0.00"},{"v":0,"d":"R0.00"},{"v":0,"d":"R0.00"}]
[]
["Material Category 13: "]
["019842258","KIT; TYPE: CAB SIDE DOOR, APPLICATION: ELECTRIC LOCOMOTIVE CLASS 20E/21E/22E; SPECIFICATION: EL_NAT_SPEC_2001, LA; KIT RUBBER; CONSIST OF: 3M D-PROFILE SOFT SPONGE RUBBER X2 - 019860053, 1.8M LARGE P-RUBBER X1 - 019860054, 3.8M SOLID P-RUBBER STRIP X1 - 019860057, 3M 30X3MM SOFT SPONGE RUBBER","EA",123,null,{"$f":"D101*E101","v":{"v":0,"d":"R0.00"}},75,null,{"$f":"G101*H101","v":{"v":0,"d":"R0.00"}},30,null,{"$f":"J101*K101","v":{"v":0,"d":"R0.00"}},{"$f":"SUM(L101+I101+F101)","v":{"v":0,"d":"R0.00"}},{"$f":"SUM(M101*1.15)","v":{"v":0,"d":"R0.00"}}]
["019842260","KIT; TYPE: RUBBER, MAINTENANCE DOOR, APPLICATION: ELECTRIC LOCOMOTIVE CLASS 20E/21E/22E MACHINE ROOM; SPECIFICATION: EL_NAT_SPEC_2001, LA; RUBBER KIT; CONSIST OF: 3M D-PROFILE SOFT SPONGE RUBBER X2 - 019860053, 1.8M LARGE P-RUBBER X1 - 019860054, 4M SOLID P-RUBBER STRIP X1 - 019860057","EA",123,null,{"v":0,"d":"R0.00"},75,null,{"v":0,"d":"R0.00"},30,null,{"v":0,"d":"R0.00"},{"v":0,"d":"R0.00"},{"v":0,"d":"R0.00"}]
["019842261","KIT; TYPE: RUBBER, NO. 2 END DOOR, APPLICATION: ELECTRIC LOCOMOTIVE CLASS 20E/21E/22E MACHINE ROOM; SPECIFICATION: EL_NAT_SPEC_2001, LA; RUBBER KIT; CONSIST OF: 3M D-PROFILE SOFT SPONGE RUBBER X2 - 019860053, 1.8M LARGE P-RUBBER X1 - 019860054, 4M SOLID P-RUBBER STRIP X1 - 019860057","EA",123,null,{"v":0,"d":"R0.00"},75,null,{"v":0,"d":"R0.00"},30,null,{"v":0,"d":"R0.00"},{"v":0,"d":"R0.00"},{"v":0,"d":"R0.00"}]
["084842238","KIT, REPAIR; TYPE: WINDOW SLIDING, APPLICATION: ELECTRIC LOCOMOTIVE CLASS 20E/21E/22E DRIVER SIDE WINDOW; SPECIFICATION: EL_NAT_SPEC_2001, LA; MATERIAL: RUBBER; CONSIST OFF: SEAL STRIP1 6M (834156000080) - 084823243 SEAL STRIP2 6M (834156000090) - 084823244 SEAL STRIP3 3M (834156000100) - 084823246 NYLON SLIDING BLOCKS X4 (834156000120) - 084844407","EA",123,null,{"v":0,"d":"R0.00"},75,null,{"v":0,"d":"R0.00"},30,null,{"v":0,"d":"R0.00"},{"v":0,"d":"R0.00"},{"v":0,"d":"R0.00"}]
["084842239","KIT, REPAIR; TYPE: WINDOW DROP, APPLICATION: ELECTRIC LOCOMOTIVE CLASS 20E/21E/22E; MATERIAL: RUBBER; SPECIFICATION: EL_NAT_SPEC_2001/PDM_NAT_SPEC_032; CONSISTS OF: SEAL STRIP1 1.6M (834264400100) - 084823243 SEAL STRIP2 1.6M (834264200040) - 084823244 SLIDINGWINDOW STRIP 1.9M (834264200050) - 084823246","EA",123,null,{"v":0,"d":"R0.00"},75,null,{"v":0,"d":"R0.00"},30,null,{"v":0,"d":"R0.00"},{"v":0,"d":"R0.00"},{"v":0,"d":"R0.00"}]
["019863344","PAD;ISOL,RBR;22E\nPAD; TYPE: ISOLATION, MATERIAL: RUBBER;\nDRAWING NO: PEL99M_00404, LA;\nPAD, RUBBER;\nTYPE: ISOLATION;\nAPPLICATION: ELECTRIC LOCOMOTIVE CLASS 22E BOGIE -\nPRIMARY SUSPENSION;\nDRAWING: PEL99M_00404;\nMATERIAL: NATURAL RUBBER;\nTHICKNESS UNDER 43.48KN LOAD = 3MM;\nTHICKNESS UNDER NO LOAD: LESS THAN 4MM;\nPART SHALL BE MARKED WITH SUPPLIER'S NAME/LOGO AND\nMANUFACTURING DATE;\nINTERNAL USE:\nCRRC P/N: AB01020971;\nCRRC ASM DRAWING: AB01013332 (ITEM 21);\nMAINTENANCE MANUAL: MM0405;","EA",1680,null,{"v":0,"d":"R0.00"},1080,null,{"v":0,"d":"R0.00"},1080,null,{"v":0,"d":"R0.00"},{"v":0,"d":"R0.00"},{"v":0,"d":"R0.00"}]
[]
["Material Category 14: "]
["055829217","SHUNT; TYPE: ELECTRICAL, 400 MM ROOF CABLE; DRAWING NO: PEL99M_00106, LA; SPECIFICATION: BBH5561, LA; APPLICATION: ELECTRIC LOCOMOTIVE CLASS 22E ROOF; WIRE: 250MM^2 TINNED SOFT COPPER STRANDED WIRE WITH 400MM LENGTH; CONNECTION: 37MM TINNED COPPER PIPE WITH 4.5MM WALL THICKNESS AND 75MM LENGTH, 2.5MM CHAMFER ON INSIDE EDGE; NOTE: DESTRUCTIVE FIRST ARTICLE INSPECTION TO CONFIRM PROPER CRIMP INTERNAL USE: CRRC P/N: AJA1016890; PANTO 2 ISOLATING SWITCH TO AC THROUGH BUSHING (AJA1011430 ITEM 46); AC THROUGH BUSHING TO BUSBAR (AJA1011430 ITEM 46","EA",480,null,{"$f":"D109*E109","v":{"v":0,"d":"R0.00"}},120,null,{"$f":"G109*H109","v":{"v":0,"d":"R0.00"}},120,null,{"$f":"J109*K109","v":{"v":0,"d":"R0.00"}},{"$f":"SUM(L109+I109+F109)","v":{"v":0,"d":"R0.00"}},{"$f":"SUM(M109*1.15)","v":{"v":0,"d":"R0.00"}}]
["061824491","SHUNT; TYPE: ELECTRICAL, 460 MM ROOF CABLE; DRAWING NO: PEL99M_00106, LA; SPECIFICATION: BBH5561, LA; APPLICATION: ELECTRIC LOCOMOTIVE CLASS 20E/21E/22E ROOF; WIRE: 250MM^2 TINNED SOFT COPPER STRANDED WIRE WITH 460MM LENGTH; CONNECTION: 37MM TINNED COPPER PIPE WITH 4.5MM WALL THICKNESS AND 75MM LENGTH, 2.5MM CHAMFER ON INSIDE EDGE; NOTE: DESTRUCTIVE FIRST ARTICLE INSPECTION TO CONFIRM PROPER CRIMP INTERNAL USE: CRRC P/N: ZRAJA1008316; 20E/21E: ROOF 2 BUSBAR TO AC/DC SWITCH (ZRAJA1006504 ITEM 32); 22E: BUSBAR TO PANTO 2 ISOLATING SWITCH (AJA1011430 ITEM 25); BUSBAR TO AC/DC SWITCH (AJA1011430 ITEM 25); ROOF 2 BUSBAR TO ROOF 3 BUSBAR (AJA1005809 ITEM 5);","EA",600,null,{"v":0,"d":"R0.00"},150,null,{"v":0,"d":"R0.00"},150,null,{"v":0,"d":"R0.00"},{"v":0,"d":"R0.00"},{"v":0,"d":"R0.00"}]
["085819571","SHUNT; TYPE: ELECTRICAL, 515 MM, ROOF CABLE; DRAWING NO: PEL99M_00106, LA; SPECIFICATION:  BBH5561, LA; WIRE: 250MM^2 TINNED SOFT COPPER STRANDED WIRE WITH 515MM LENGTH; CONNECTION: 37MM TINNED COPPER PIPE WITH 4.5MM WALL THICKNESS AND 75MM LENGTH, 2.5MM CHAMFER ON INSIDE EDGE; NOTE: DESTRUCTIVE FIRST ARTICLE INSPECTION TO CONFIRM PROPER CRIMP INTERNAL USE: CRRC P/N: ZRAJA1006510; 20E/21E: BUSBAR TO PANTO 1 ISOLATING SWITCH (ZRAJA1006503 ITEM 2); BUSBAR TO PANTO 2 ISOLATING SWITCH (ZRAJA1006505 ITEM 26); DC ARRESTER TO DC THROUGH BUSHING (ZRAJA1006505 ITEM 11); AC SURGE ARRESTER TO AC THROUGH BUSHING (ZRAJA1006505 ITEM 42); 22E: DC ARRESTER TO DC THROUGH BUSHING (AJA1011430 ITEM 11); PANTO 1 ISOLATING SWITCH TO ROOF 2 BUSBAR (AJA1005809 ITEM 6); BUSBAR TO PANTO 1 ISOLATING SWITCH (AJA1013616 ITEM 2)","EA",810,null,{"v":0,"d":"R0.00"},270,null,{"v":0,"d":"R0.00"},270,null,{"v":0,"d":"R0.00"},{"v":0,"d":"R0.00"},{"v":0,"d":"R0.00"}]
["085820764","STRAP; TYPE: EARTHING, 200 MM, 120F12/10; APPLICATION: ELECTRIC LOCOMOTIVE CLASS 20E/21E/22E; LENGTH HOLE-TO-HOLE: 200MM; TOLERANCE: -5MM TO +10MM; WIRE TYPE: FLEXIBLE ROPE; WIRE MATERIAL: TINNED COPPER; WIRE CROSS SECTIONAL AREA: 120MM2; LUG 1 TYPE: 120F10; LUG 2 TYPE: 120F12; LUG SPEC: RT_TE_SPC_0168; LUG DRAWING: RSE-BAH-1; APPLICATION ELECTRIC LOCOMOTIVE CLASS 20E/21E: AC AND DC SURGE ARRESTERS TO ROOF; APPLICATION ELECTRIC LOCOMOTIVE CLASS 22E: AC SURGE ARRESTER TO ROOF; INTERNAL USE (REFERENCE ONLY): CRRC P/N: ZRAJA1008307A; DRAWING: ZRAJA1006505A ITEM 35; DRAWING: AJA1011430 ITEM 35","EA",240,null,{"v":0,"d":"R0.00"},60,null,{"v":0,"d":"R0.00"},60,null,{"v":0,"d":"R0.00"},{"v":0,"d":"R0.00"},{"v":0,"d":"R0.00"}]
["085826615","STRAP; TYPE: BRAIDED, ELECTRICAL SHUNT; APPLICATION: ELECTRIC LOCOMOTIVE CLASS 20E/21E/22E HIGH VOLTAGE CUBICLE; DRAWING: TFR RT-BLB_178, LA; LENGTH HOLE-TO-HOLE: 284MM; TOLERANCE: -5MM TO +5MM; WIRE: FLAT 95 X(4 X(83 X 0,05)) BRAIDED COPPER X 2; LUG: COPPER TUBE WITH 24,5 O.D. X 1,2 WALL THK. X 38MM; INTERNAL USE: AC EARTHING SWITCH STRAP; CRRC P/N: JQ00004223G00A; APPLICATION: JQ00007702G00A, IT 45; MAINTENANCE MANUAL: MM0140","EA",70,null,{"v":0,"d":"R0.00"},20,null,{"v":0,"d":"R0.00"},20,null,{"v":0,"d":"R0.00"},{"v":0,"d":"R0.00"},{"v":0,"d":"R0.00"}]
["085827819","SHUNT; TYPE: ELECTRICAL, 640 MM ROOF CABLE; APPLICATION: ELECTRIC LOCOMOTIVE CLASS 20E/21E/22E ROOF WIRE: 250MM^2 TINNED SOFT COPPER STRANDED WIRE WITH 640MM LENGTH; CONNECTION: 37MM TINNED COPPER PIPE WITH 4.5MM WALL THICKNESS AND 75MM LENGTH, 2.5MM CHAMFER ON INSIDE EDGE; SPECIFICATION: BBH5561; DRAWING: PEL99M_00106; NOTE: DESTRUCTIVE FIRST ARTICLE INSPECTION TO CONFIRM PROPER CRIMP INTERNAL USE: CRRC P/N: ZRAJA1006512; 20E/21E: PANTO 1 TO BUSBAR (ZRAJA1006503 ITEM 24 AND 27); PANTO 2 TO BUSBAR (ZRAJA1006505 ITEM 26); AC/DC SWITCH TO DC SURGE ARRESTER; 22E: PANTO 1 TO BUSBAR (AJA1013616 ITEM 24); PANTO 2 TO BUSBAR (AJA1011430 ITEM 26); AC/DC SWITCH TO DC SURGE ARRESTER (AJA1011430 ITEM 26)","EA",480,null,{"v":0,"d":"R0.00"},120,null,{"v":0,"d":"R0.00"},120,null,{"v":0,"d":"R0.00"},{"v":0,"d":"R0.00"},{"v":0,"d":"R0.00"}]
["085827820","SHUNT; TYPE: ELECTRICAL, 550 MM ROOF CABLE; DRAWING NO: PEL99M_00106, LA; SPECIFICATION: BBH5561, LA; APPLICATION: ELECTRIC LOCOMOTIVE CLASS 20E/21E/22E ROOF; WIRE: 250MM^2 TINNED SOFT COPPER STRANDED WIRE WITH 550MM LENGTH; CONNECTION: 37MM TINNED COPPER PIPE WITH 4.5MM WALL THICKNESS AND 75MM LENGTH, 2.5MM CHAMFER ON INSIDE EDGE; NOTE: DESTRUCTIVE FIRST ARTICLE INSPECTION TO CONFIRM PROPER CRIMP INTERNAL USE: CRRC P/N: ZRAJA1006773; 20E/21E: PANTO 2 TO BUSBAR (ZRAJA1006505 ITEM 2); 22E: PANTO 1 TO BUSBAR (AJA1013616 ITEM 22); BUSBAR TO PANTO 1 ISOLATING SWITCH (AJA1013616 ITEM 22); PANTO 2 TO BUSBAR (AJA1011430 ITEM 2);","EA",810,null,{"v":0,"d":"R0.00"},270,null,{"v":0,"d":"R0.00"},270,null,{"v":0,"d":"R0.00"},{"v":0,"d":"R0.00"},{"v":0,"d":"R0.00"}]
["085837447","STRAP; TYPE: EARTH, 120F12; TYPE: 350 MM 120F12; APPLICATION: ELECTRIC LOCOMOTIVE CLASS 22E; LENGTH HOLE-TO-HOLE: 350MM; TOLERANCE: -5MM TO +10MM; WIRE TYPE: FLEXIBLE; WIRE MATERIAL: TINNED COPPER; WIRE CROSS SECTIONAL AREA: 120MM2; LUG TYPE: 120F12; LUG HOLE SIZE: 12MM; LUG SPEC: RT_TE_SPC_0168; LUG DRAWING: RSE-BAH-1; APPLICATION ELECTRIC LOCOMOTIVE CLASS 20E/21E: G24 - BRAKE RESISTOR TO ROOF, G33 - COOLING TOWER TO BODY, G24 - COOLING TOWER TO ROOF, APPLICATION ELECTRIC LOCOMOTIVE CLASS 22E: G13 - BRAKE RESISTOR TO BODY, G30 - COOLING TOWER TO BODY, G31 - COOLING TOWER TO ROOF; INTERNAL USE (REFERENCE ONLY): CRRC P/N: JC00001416G00A; QTY P ER LOCO: 6","EA",300,null,{"v":0,"d":"R0.00"},0,null,{"v":0,"d":"R0.00"},0,null,{"v":0,"d":"R0.00"},{"v":0,"d":"R0.00"},{"v":0,"d":"R0.00"}]
["085837448","STRAP; TYPE: EARTHING; TYPE: 200MM 120F12: APPLICATION: ELECTRIC LOCOMOTIVE CLASS 20E/21E/22E; LENGTH HOLE-TO-HOLE: 200MM; TOLERANCE: -5MM TO +10MM; WIRE TYPE: FLEXIBLE; WIRE MATERIAL: TINNED COPPER; WIRE CROSS SECTIONAL AREA: 120MM2; LUG TYPE: 120F12; LUG HOLE SIZE: M12; LUG SPEC: RT_TE_SPC_0168; LUG DRAWING: RSE-BAH-1; APPLICATION ELECTRIC LOCOMOTIVE CLASS 20E/21E: ROOF 1 COVER TO CROSS BEAM 1, ROOF 2 COVER TO CROSS BEAM 1 <(>&<)> 2, ROOF 3 COVER TO CROSS BEAM 2, ROOF 3 COVER TO CROSS BEAM 3* (20E ONLY), ROOF 4 COVER TO CROSS BEAM 3; APPLICATION ELECTRIC LOCOMOTIVE CLASS 22E: ROOF 1 COVER TO CROSS BEAM 1, ROOF 2 COVER TO CROSS BEAM 1 <(>&<)> 2, ROOF 3 COVER TO CROSS BEAM 2 <(>&<)> 3, ROOF 4 COVER TO CROSS BEAM 3; INTERNAL USE (REFERENCE ONLY): CRRC P/N: AJA1006581A; CRRC P/N: AJA1006582A","EA",300,null,{"v":0,"d":"R0.00"},0,null,{"v":0,"d":"R0.00"},0,null,{"v":0,"d":"R0.00"},{"v":0,"d":"R0.00"},{"v":0,"d":"R0.00"}]
["085837450","STRAP; TYPE: EARTHING; TYPE: 300MM 120F12: APPLICATION: ELECTRIC LOCOMOTIVE CLASS 22E; LENGTH HOLE-TO-HOLE: 300MM; TOLERANCE: -5MM TO +10MM; WIRE TYPE: FLEXIBLE; WIRE MATERIAL: TINNED COPPER; WIRE CROSS SECTIONAL AREA: 120MM2; LUG TYPE: 120F12; LUG HOLE SIZE: M12; LUG SPEC: RT_TE_SPC_0168; LUG DRAWING: RSE-BAH-1; APPLICATION ELECTRIC LOCOMOTIVE CLASS 20E/21E: G15 - PANTOGRAPH CARBON STRIP, G25 - PCC TO CAR BODY, ROOF 3 TO CROSS BEAM 3 (21E ONLY); APPLICATION ELECTRIC LOCOMOTIVE CLASS 22E: G27 - PANTOGRAPH CARBON STRIP, G32 - PCC TO CAR BODY; INTERNAL USE (REFERENCE ONLY): CRRC P/N: AJA1006697A; QTY PER LOCO: 4","EA",300,null,{"v":0,"d":"R0.00"},0,null,{"v":0,"d":"R0.00"},0,null,{"v":0,"d":"R0.00"},{"v":0,"d":"R0.00"},{"v":0,"d":"R0.00"}]
["085837451","STRAP; TYPE: EARTHING; TYPE: 250MM 120F12: APPLICATION: ELECTRIC LOCOMOTIVE CLASS 22E; LENGTH HOLE-TO-HOLE: 250MM; TOLERANCE: -5MM TO +10MM; WIRE TYPE: FLEXIBLE; WIRE MATERIAL: TINNED COPPER; WIRE CROSS SECTIONAL AREA: 120MM2; LUG TYPE: 120F12; LUG HOLE SIZE: M12; LUG SPEC: RT_TE_SPC_0168; LUG DRAWING: RSE-BAH-1; APPLICATION ELECTRIC LOCOMOTIVE CLASS 20E/21E: G26 - PCC TO ROOF COVER; G27 - PCC TO ROOF COVER; APPLICATION ELECTRIC LOCOMOTIVE CLASS 22E: G33 - PCC TO ROOF COVER; G34 - PCC TO ROOF COVER; INTERNAL USE (REFERENCE ONLY): CRRC P/N: AJA1006698A; CRRC P/N: AJA1006699A","EA",300,null,{"v":0,"d":"R0.00"},0,null,{"v":0,"d":"R0.00"},0,null,{"v":0,"d":"R0.00"},{"v":0,"d":"R0.00"},{"v":0,"d":"R0.00"}]
["085837453","STRAP; TYPE: EARTHING; TYPE: 450MM 120F12: APPLICATION: ELECTRIC LOCOMOTIVE CLASS 22E; LENGTH HOLE-TO-HOLE: 450MM; TOLERANCE: -5MM TO +10MM; WIRE TYPE: FLEXIBLE; WIRE MATERIAL: TINNED COPPER; WIRE CROSS SECTIONAL AREA: 120MM2; LUG TYPE: 120F12; LUG HOLE SIZE:12MM; LUG SPEC: RT_TE_SPC_0168; LUG DRAWING: RSE-BAH-1; APPLICATION ELECTRIC LOCOMOTIVE CLASS 20E/21E: G20 - SIGNAL CUBICLE TO BODY; G13 - LOW VOLTAGE CUBICLE TO BODY; G28 - HIGH VOLTAGE CUBICLE TO BODY; APPLICATION ELECTRIC LOCOMOTIVE CLASS 22E: G12 - SIGNAL CUBICLE TO BODY, G19 - LOW VOLTAGE CUBICLE TO BODY, G35 - HIGH VOLTAGE CUBICLE TO BODY; INTERNAL USE (REFERENCE ONLY): CRRC P/N: JA00001183G00A; QTY PER LOCO: 5","EA",300,null,{"v":0,"d":"R0.00"},0,null,{"v":0,"d":"R0.00"},0,null,{"v":0,"d":"R0.00"},{"v":0,"d":"R0.00"},{"v":0,"d":"R0.00"}]
["085837454","STRAP; TYPE: EARTHING; TYPE: 600MM 120F12: APPLICATION: ELECTRIC LOCOMOTIVE CLASS 20E/21E/22E; LENGTH HOLE-TO-HOLE: 600MM; TOLERANCE: -5MM TO +10MM; WIRE TYPE: FLEXIBLE; WIRE MATERIAL: TINNED COPPER; WIRE CROSS SECTIONAL AREA: 120MM2; LUG TYPE: 120F12; LUG HOLE SIZE: 12MM; LUG SPEC: RT_TE_SPC_0168; LUG DRAWING: RSE-BAH-1; APPLICATION ELECTRIC LOCOMOTIVE CLASS 20E/21E: G43/G40 - BOGIE TO BODY AND BOGIE TO MOTOR; INTERNAL USE (REFERENCE ONLY): CRRC P/N: A00002587G00A; 20E/21E DRAWING: ZRAJA1006553 IT 56; 22E DRAWING: AJA1013764 IT 39","EA",300,null,{"v":0,"d":"R0.00"},0,null,{"v":0,"d":"R0.00"},0,null,{"v":0,"d":"R0.00"},{"v":0,"d":"R0.00"},{"v":0,"d":"R0.00"}]
["085845744","STRAP; TYPE: ELECTRICAL SHUNT, APPLICATION: ELECTRIC LOCOMOTIVE CLASS 22E HIGH VOLTAGE CUBICLE; TYPE: AC THROUGH BUSH TO VCB INTER CONNECTION; CABLE: BRAID, TINNED COPPER, ROUND, LENGTH: 480MM +/- 2MM, ELECTROPLATED TO BS 1872 BEFORE ASSEMBLY; LUG: TUBE, COPPER, OD: 20MM, WALL THK: 1.2MM, LENGTH: 40MM +/-2MM, COLD FORMED; TFR DRAWING NUMBER: RT-BLB-177; CRRC DRAWING NUMBER: AJE1002251A; REFERENCE: MM0140","EA",70,null,{"v":0,"d":"R0.00"},20,null,{"v":0,"d":"R0.00"},20,null,{"v":0,"d":"R0.00"},{"v":0,"d":"R0.00"},{"v":0,"d":"R0.00"}]
[]
["Material Category 15: "]
["055819736","PLUG, ELECTRICAL; TYPE: TRACTION MOTOR; P/N: EMP-SM-33-PC-R18-D150, AMPHENOL; APPLICATION: ELECTRIC LOCOMOTIVE CLASS 20E/21E TRACTION MOTOR; CABLE SIZE: 150MM2; SHELL: ALUMINIUM ALLOY; INSERT: THERMOPLASTICS; CONTACT: COPPER ALLOY / SILVER PLATED / CRIMP TYPE; CABLE GLAND: NICKEL PLATED BRASS; VIBRATIONS AND SHOCKS: CATEGORY 1, CLASS B (EN61373); OPERATING TEMPERATURE: -55°C TO 125°C; IP CLASS: IP67; DURABILITY: 500 CYCLES; INSULATION RESISTANCE: 5000 MEGA OHM MIN; CONTACT RESISTANCE: <(><<)>0.15 MILLI OHM; RATED VOLTAGE: 4000 V R.M.S; RATED CURRENT: 700A MAX; INTERNAL USE: CRRC P/N: 7700002908; CRRC DRAWING: AJE1001434 ITEM 39","EA",10,null,{"$f":"D125*E125","v":{"v":0,"d":"R0.00"}},0,null,{"$f":"G125*H125","v":{"v":0,"d":"R0.00"}},0,null,{"$f":"J125*K125","v":{"v":0,"d":"R0.00"}},{"$f":"SUM(L125+I125+F125)","v":{"v":0,"d":"R0.00"}},{"$f":"SUM(M125*1.15)","v":{"v":0,"d":"R0.00"}}]
["085844183","PLUG, ELECTRICAL; TYPE: RECTANGULAR CONNECTOR X5; P/N: W70400006000, CRRC CORPORATION LIMITED; CATALOGUE: MM0144, CRRC CORPORATION LIMITED; DRAWING NO: 0933 006 2601\\\\6 CORE, LA, CRRC CORPORATION LIMITED; QUANTITY PER CONVERTER CABINET: 1; ELECTRIC LOCOMOTIVE CLASS 21E; POWER CONVERTOR CUBICLE  AND TRACTION CONTROL UNIT","EA",10,null,{"v":0,"d":"R0.00"},0,null,{"v":0,"d":"R0.00"},0,null,{"v":0,"d":"R0.00"},{"v":0,"d":"R0.00"},{"v":0,"d":"R0.00"}]
["085844184","PLUG, ELECTRICAL; TYPE: RECTANGULAR CONNECTOR X1/X2/X3; P/N: W70400042000, CRRC CORPORATION LIMITED; CATALOGUE: MM0144, CRRC CORPORATION LIMITED; DRAWING NO: 9160423001, LA, CRRC CORPORATION LIMITED; QUANTITY PER CONVERTER CABINET: 3; ELECTRIC LOCOMOTIVE CLASS 21E; POWER CONVERTOR CUBICLE  AND TRACTION CONTROL UNIT","EA",10,null,{"v":0,"d":"R0.00"},0,null,{"v":0,"d":"R0.00"},0,null,{"v":0,"d":"R0.00"},{"v":0,"d":"R0.00"},{"v":0,"d":"R0.00"}]
["085844189","PLUG; TYPE: CIRCULAR; P/N: W70100024100, CRRC CORPORATION LIMITED; CATALOGUE: MM0144, CRRC CORPORATION LIMITED; DRAWING NO: XCB27T24KHP/24, LA, CRRC CORPORATION LIMITED; QUANTITY PER CONVERTER CABINET: 3; ELECTRIC LOCOMOTIVE CLASS 21E; POWER CONVERTOR CUBICLE AND TRACTION CONTROL UNIT","EA",10,null,{"v":0,"d":"R0.00"},0,null,{"v":0,"d":"R0.00"},0,null,{"v":0,"d":"R0.00"},{"v":0,"d":"R0.00"},{"v":0,"d":"R0.00"}]
["085844158","CONNECTOR, ELECTRICAL; P/N: TE6921200100, CRRC CORPORATION LIMITED; DRAWING NO: TE6921200100, LA, CRRC CORPORATION LIMITED; QUANTIT Y PER CONVERTER CABINET: 8 X 2;\nPRESSURE PLASTIC PART 1;\nAS PER MAINTENANCE MANUAL: MM0117 REV 8.5;\n=11-U01, =-U02 PCC;\nELECTRIC LO COMOTIVE CLASS 20E/21E;\nPOWER CONVERTOR CUBICLE AND TRACTION CONTROL UNIT","EA",30,null,{"v":0,"d":"R0.00"},0,null,{"v":0,"d":"R0.00"},0,null,{"v":0,"d":"R0.00"},{"v":0,"d":"R0.00"},{"v":0,"d":"R0.00"}]
["085844161","CONNECTOR, ELECTRICAL; P/N: TE6921200500, CRRC CORPORATION LIMITED; CATALOGUE: MM0144, CRRC CORPORATION LIMITED; DRAWING NO: TE6921 200500, LA, CRRC CORPORATION LIMITED; QUANTITY PER CONVERTER CABINET: 7X2;\nPRESSURE PLASTIC PART 3;\nELECTRIC LOCOMOTIVE CLASS 21E;\n POWER CONVERTOR CUBICLE AND TRACTION CONTROL UNIT","EA",30,null,{"v":0,"d":"R0.00"},0,null,{"v":0,"d":"R0.00"},0,null,{"v":0,"d":"R0.00"},{"v":0,"d":"R0.00"},{"v":0,"d":"R0.00"}]
[]
["Material Category 16: "]
["085820366","HOT PLATE, ELECTRIC; POTENTIAL RATING: 230 V, POWER RATING: 1.5 KW; P/N: 3912000103, CSR CORPORATION LIMITED; SPECIFICATION: HOTP20E  0207A00299, 0; ELECTRIC LOCOMOTIVE CLASS 20E","EA",30,null,{"$f":"D133*E133","v":{"v":0,"d":"R0.00"}},5,null,{"$f":"G133*H133","v":{"v":0,"d":"R0.00"}},5,null,{"$f":"J133*K133","v":{"v":0,"d":"R0.00"}},{"$f":"SUM(L133+I133+F133)","v":{"v":0,"d":"R0.00"}},{"$f":"SUM(M133*1.15)","v":{"v":0,"d":"R0.00"}}]
["085823333","TRANSFORMER; SYNCHRONOUS; ELECTRIC LOCOMOTIVE CLASS 20E; 22E; DRAWING NO: TBK1AE-00-00 CSR CORPORATION LIMITED REV LATEST; MAINTENANCE MANUAL: MM0117 REV 8.5","EA",12,null,{"v":0,"d":"R0.00"},0,null,{"v":0,"d":"R0.00"},0,null,{"v":0,"d":"R0.00"},{"v":0,"d":"R0.00"},{"v":0,"d":"R0.00"}]
["085826026","TRANSFORMER TYPE AUXLIARY P/N: 3384000093 CSR CORPORATION LIMITED ELECTRIC LOCOMOTIVE CLASS 22E TRANSFORMER CABINET ASSEMBLY DRAWING NO: AJA1012191A CSR CORPORATION LIMITED REV LATEST ITEM 35","EA",5,null,{"v":0,"d":"R0.00"},0,null,{"v":0,"d":"R0.00"},0,null,{"v":0,"d":"R0.00"},{"v":0,"d":"R0.00"},{"v":0,"d":"R0.00"}]
["085817958","TRANSFORMER, POWER TYPE HIGH VOLTAGE P/N: ZR3230000074 CSR CORPORATION LIMITED ELECTRIC LOCOMOTIVE CLASS 20E CN+EN","EA",20,null,{"v":0,"d":"R0.00"},0,null,{"v":0,"d":"R0.00"},0,null,{"v":0,"d":"R0.00"},{"v":0,"d":"R0.00"},{"v":0,"d":"R0.00"}]
["085823325","TRANSFORMER;ISOL,P/N:W200022658; TRANSFORMER; TYPE ISOLATION,ELECTRIC LOCOMOTIVE CLASS 20E; 22E; DRAWING NO: W200022658 CSR CORPORATION LIMITED REV LATEST","EA",5,null,{"v":0,"d":"R0.00"},0,null,{"v":0,"d":"R0.00"},0,null,{"v":0,"d":"R0.00"},{"v":0,"d":"R0.00"},{"v":0,"d":"R0.00"}]
["085834576","TRANSFORMER; TYPE: HIGH VOLTAGE; P/N: 3230000075, CSR CORPORATION LIMITED; ELECTRIC LOCOMOTIVE CLASS 21E","EA",20,null,{"v":0,"d":"R0.00"},0,null,{"v":0,"d":"R0.00"},0,null,{"v":0,"d":"R0.00"},{"v":0,"d":"R0.00"},{"v":0,"d":"R0.00"}]
[]
["Material Category 17: "]
["013820414","HOSE ASSEMBLY; TYPE: WHEEL FLANGE LUBRICATION, LENGTH: 700 MM; SPECIFICATION: PD_L008_001_579, LA; APPLICATION: ELECTRIC LOCOMOTIVE CLASS 20/21E/22E; HOSE: 441RH-5 CONNECTOR 1: KCA47-8-5C CONNECTOR 2: KCA47-8-5C INTERNAL USE: CRRC P/N: 1621000635, MM0409-1","EA",492,null,{"$f":"D141*E141","v":{"v":0,"d":"R0.00"}},300,null,{"$f":"G141*H141","v":{"v":0,"d":"R0.00"}},320,null,{"$f":"J141*K141","v":{"v":0,"d":"R0.00"}},{"$f":"SUM(L141+I141+F141)","v":{"v":0,"d":"R0.00"}},{"$f":"SUM(M141*1.15)","v":{"v":0,"d":"R0.00"}}]
["013820465","HOSE ASSEMBLY; TYPE: TEXTILE; APPLICATION: ELECTRIC LOCOMOTIVE CLASS 20E/21E UNDERFRAME PIPELINE; SPECIFICATION: PD_L008_001_579, LA; HOSE: TE 208 RAIL; LENGTH: 650 MM; CONNECTOR 1: PN 08 AOL VA; CONNECTOR 2: PN 08 AOL VA; CRRC P/N: 1538000007; CRRC DRAWING: AJ P1002989, ITEM 170; CRRC DRAWING: AJP1007066, ITEM 113; CRRC SPEC: JP00000031J24; REFERENCE: MM0210","EA",318,null,{"v":0,"d":"R0.00"},180,null,{"v":0,"d":"R0.00"},210,null,{"v":0,"d":"R0.00"},{"v":0,"d":"R0.00"},{"v":0,"d":"R0.00"}]
["013820466","HOSE ASSEMBLY; TYPE: TEXTILE; TYPE: HANSA-FLEX TEXTILE HOSE; APPLICATION: ELECTRIC LOCOMOTIVE CLASS 20E/21E/22E UNDERFRAME PIPELINE; SPECIFICATION: PD_L008_001_579, LA; HOSE: TE 220 RAIL; LENGTH: 700 MM; CONNECTOR 1: PN 20 AOL VA; CONNECTOR 2: PN 20 AOL VA; CRRC P/N: 1538000038; CRRC DRAWING: AJP1002989, ITEM 181; CRRC DRAWING: AJP1007066, ITEM 59; CRRC DRAWING: AJP1008640, ITEM 217; CRRC SPEC: JP00000031J24; REFERENCE: MM0210","EA",738,null,{"v":0,"d":"R0.00"},450,null,{"v":0,"d":"R0.00"},480,null,{"v":0,"d":"R0.00"},{"v":0,"d":"R0.00"},{"v":0,"d":"R0.00"}]
["013820467","HOSE ASSEMBLY; TYPE: TEXTILE; TYPE: HANSA-FLEX TEXTILE HOSE; APPLICATION: ELECTRIC LOCOMOTIVE CLASS 20E/21E/22E UNDERFRAME PIPELINE; SPECIFICATION: PD_L008_001_579, LA; HOSE: TE 220 RAIL; LENGTH: 860 MM; CONNECTOR 1: S/S M30 STRAIGHT NIPPLE - PN 20 AOL VA; CONNECTOR 2: S/S M30 STRAIGHT NIPPLE - PN 20 AOL VA; CRRC P/N: 1538000039; CRRC DRAWING: AJP1002989, ITEM 171; CRRC DRAWING: AJP1007066, ITEM 110; CRRC DRAWING: AJP1008640, ITEM 216; CRRC SPEC: JP00000031J24; REFERENCE: MM0210","EA",738,null,{"v":0,"d":"R0.00"},450,null,{"v":0,"d":"R0.00"},480,null,{"v":0,"d":"R0.00"},{"v":0,"d":"R0.00"},{"v":0,"d":"R0.00"}]
["013820468","HOSE ASSEMBLY; TYPE: TEXTILE; TYPE: HANSA-FLEX TEXTILE HOSE; APPLICATION: ELECTRIC LOCOMOTIVE CLASS 20E/21E UNDERFRAME PIPELINE; SPECIFICATION: PD_L008_001_579, LA; HOSE: TE 216 RAIL; LENGTH: 500 MM; CONNECTOR 1: PN 16 AOL VA; CONNECTOR 2: PN 16 AOL VA; CRRC P/N: 1539010039; CRRC DRAWING: AJP1002989, ITEM 99; CRRC DRAWING: AJP1007066, ITEM 67; CRRC SPEC: JP00000031J24; REFERENCE: MM0210.","EA",106,null,{"v":0,"d":"R0.00"},60,null,{"v":0,"d":"R0.00"},70,null,{"v":0,"d":"R0.00"},{"v":0,"d":"R0.00"},{"v":0,"d":"R0.00"}]
["013820473","HOSE ASSEMBLY; TYPE: TEXTILE; TYPE: HANSA-FLEX TEXTILE HOSE; APPLICATION: ELECTRIC LOCOMOTIVE CLASS 20E ROOF PIPELINE; APPLICATION: ELECTRIC LOCOMOTIVE CLASS 22E CONTROL PIPELINE; SPECIFICATION: PD_L008_001_579, LA; HOSE: TE 208 RAIL; LENGTH: 420 MM; CONNECTOR 1: PN 08 AOL VA; CONNECTOR 2: PN 08 AOL VA; CRRC P/N: 9999005426; CRRC DRAWING: AJP1003332, ITEM 39; CRRC DRAWING: AJP1008985, ITEM 36; CRRC SPEC: JP00000031J24; REFERENCE: MM0210.","EA",490,null,{"v":0,"d":"R0.00"},315,null,{"v":0,"d":"R0.00"},315,null,{"v":0,"d":"R0.00"},{"v":0,"d":"R0.00"},{"v":0,"d":"R0.00"}]
["013820474","HOSE ASSEMBLY; TYPE: TEXTILE; TYPE: HANSA-FLEX TEXTILE HOSE; APPLICATION: ELECTRIC LOCOMOTIVE CLASS 20E/21E/22E UNDERFRAME PIPELINE; SPECIFICATION: PD_L008_001_579, LA; HOSE: TE 208 RAIL; LENGTH: 450 MM; CONNECTOR 1: PN 08 AOL VA; CONNECTOR 2: PN 08 AOL 90 VA; CRRC P/N: 9999005464; CRRC DRAWING: AJP1002989, ITEM 185; CRRC DRAWING: AJP1007066, ITEM 62; CRRC DRAWING: AJP1008640, ITEM 219; CRRC SPEC: WP00000014J24; REFERENCE: MM0210.","EA",2952,null,{"v":0,"d":"R0.00"},1800,null,{"v":0,"d":"R0.00"},1920,null,{"v":0,"d":"R0.00"},{"v":0,"d":"R0.00"},{"v":0,"d":"R0.00"}]
["013825776","HOSE ASSEMBLY; TYPE: TE 208 RAIL, LENGTH: 620 MM; SPECIFICATION: PD_L008_001_579, LA; ELECTRIC LOCOMOTIVE CLASS 22E; CONNECTOR 1: S/S M16 STRAIGHT NIPPLE - PN 08 AOL VA CONNECTOR 2: S/S M16 90 DEGREE NIPPLE - PN 08 AOL 90 VA INTERNAL USE: CRRC P/N: 1535000085, MM0411","EA",280,null,{"v":0,"d":"R0.00"},180,null,{"v":0,"d":"R0.00"},180,null,{"v":0,"d":"R0.00"},{"v":0,"d":"R0.00"},{"v":0,"d":"R0.00"}]
["013825777","HOSE ASSEMBLY; TYPE: TE 216 RAIL, LENGTH: 720 MM; SPECIFICATION: PD_L008_001_579, LA; ELECTRIC LOCOMOTIVE CLASS 22E; CONNECTOR 1: S/S M26 STRAIGHT NIPPLE - PN 16 AOL VA CONNECTOR 2: S/S M26 90 DEGREE NIPPLE - PN 16 AOL 90 VA INTERNAL USE: CRRC P/N: 1535000470, MM0411","EA",840,null,{"v":0,"d":"R0.00"},540,null,{"v":0,"d":"R0.00"},540,null,{"v":0,"d":"R0.00"},{"v":0,"d":"R0.00"},{"v":0,"d":"R0.00"}]
["013826353","HOSE ASSEMBLY; TYPE: TEXTILE; TYPE: HANSA-FLEX TEXTILE HOSE; APPLICATION: ELECTRIC LOCOMOTIVE CLASS 22E MACHINE ROOM PIPELINE; SPECIFICATION: PD_L008_001_579, LA; HOSE: TE 225 RAIL; LENGTH: 280 MM; CONNECTOR 1: S/S M36 STRAIGHT NIPPLE - PN 25 AOL VA; CONNECTOR 2: S/S M36 STRAIGHT NIPPLE - PN 25 AOL VA; DESIGNATION: COMPRESSOR CONNECTION A10; CRRC P/N: 1539010047; REFERENCE: MM0227","EA",70,null,{"v":0,"d":"R0.00"},45,null,{"v":0,"d":"R0.00"},45,null,{"v":0,"d":"R0.00"},{"v":0,"d":"R0.00"},{"v":0,"d":"R0.00"}]
["013826574","HOSE ASSEMBLY; TYPE: TEXTILE; TYPE: HANSA-FLEX TEXTILE HOSE; APPLICATION: ELECTRIC LOCOMOTIVE CLASS 22E CONTROL <(>&<)> UNDERFRAME PIPELINE; SPECIFICATION: PD_L008_001_579, LA; HOSE: TE 208 RAIL; LENGTH: 450 MM; CONNECTOR 1: PN 08 AOL VA; CONNECTOR 2: PN 08 AOL VA; CRRC P/N: 1538000023; CRRC DRAWING: AJP1008985, ITEM 58; CRRC DRAWING: AJP1008640, ITEM 242; CRRC SPEC: JP00000031J24; REFERENCE: MM 0210","EA",140,null,{"v":0,"d":"R0.00"},90,null,{"v":0,"d":"R0.00"},90,null,{"v":0,"d":"R0.00"},{"v":0,"d":"R0.00"},{"v":0,"d":"R0.00"}]
["013826575","HOSE ASSEMBLY; TYPE: TEXTILE; TYPE: HANSA-FLEX TEXTILE HOSE; APPLICATION: ELECTRIC LOCOMOTIVE CLASS 22E CONTROL PIPELINE; SPECIFICATION: PD_L008_001_579, LA; HOSE: TE 210 RAIL; LENGTH: 450 MM; CONNECTOR 1: PN 10 AOL VA; CONNECTOR 2: PN 10 AOL VA; CRRC P/N: 1539010021; CRRC DRAWING: AJP1008985, ITEM 29; CRRC SPEC: JP00000031J24; REFERENCE: MM0210","EA",70,null,{"v":0,"d":"R0.00"},45,null,{"v":0,"d":"R0.00"},45,null,{"v":0,"d":"R0.00"},{"v":0,"d":"R0.00"},{"v":0,"d":"R0.00"}]
["013826576","HOSE ASSEMBLY; TYPE: TEXTILE; TYPE: HANSA-FLEX TEXTILE HOSE; APPLICATION: ELECTRIC LOCOMOTIVE CLASS 22E CONTROL PIPELINE; SPECIFICATION: PD_L008_001_579, LA; HOSE: TE 210 RAIL; LENGTH: 400 MM; CONNECTOR 1: PN 10 AOL VA; CONNECTOR 2: PN 10 AOL VA; CRRC P/N: 9999005427; CRRC DRAWING: AJP1008985, ITEM 31; CRRC SPEC: JP00000031J24; REFERENCE: MM0210","EA",70,null,{"v":0,"d":"R0.00"},45,null,{"v":0,"d":"R0.00"},45,null,{"v":0,"d":"R0.00"},{"v":0,"d":"R0.00"},{"v":0,"d":"R0.00"}]
["013826577","HOSE ASSEMBLY; TYPE: TEXTILE; TYPE: HANSA-FLEX TEXTILE HOSE; APPLICATION: ELECTRIC LOCOMOTIVE CLASS 22E CONTROL PIPELINE; SPECIFICATION: PD_L008_001_579, LA; HOSE: TE 210 RAIL; LENGTH: 550 MM; CONNECTOR 1: PN 10 AOL VA; CONNECTOR 2: PN 10 AOL VA; CRRC P/N: 9999005432; CRRC DRAWING: AJP1008985, ITEM 67; CRRC SPEC: JP00000031J24; REFERENCE: MM0210","EA",70,null,{"v":0,"d":"R0.00"},45,null,{"v":0,"d":"R0.00"},45,null,{"v":0,"d":"R0.00"},{"v":0,"d":"R0.00"},{"v":0,"d":"R0.00"}]
["013826578","HOSE ASSEMBLY; TYPE: TEXTILE; TYPE: HANSA-FLEX TEXTILE HOSE; APPLICATION: ELECTRIC LOCOMOTIVE CLASS 22E CONTROL PIPELINE; SPECIFICATION: PD_L008_001_579, LA; HOSE: TE 210 RAIL; LENGTH: 650 MM; CONNECTOR 1: PN 10 AOL VA; CONNECTOR 2: PN 10 AOL VA; CRRC P/N: 9999005433; CRRC DRAWING: AJP1008985, ITEM 50; CRRC SPEC: JP00000031J24; REFERENCE: MM0210","EA",140,null,{"v":0,"d":"R0.00"},90,null,{"v":0,"d":"R0.00"},90,null,{"v":0,"d":"R0.00"},{"v":0,"d":"R0.00"},{"v":0,"d":"R0.00"}]
["013837556","HOSE; TYPE: INSULATING; TYPE: THERMOPLASTIC; APPLICATION: ELECTRIC LOCOMOTIVE CALSS 20E/21E/22E; PANTOGRAPH; LENGTH: 1.25M +/- 50MM; UV RESISTANT; ELECTRICALLY ISOLATED; MEDIUM: COMPRESSED AIR; OPERATING PRESURE: > 1.5MPA / 15BAR; OPERATING TEMPERATURE: < -10C AND > 80C; HOSE MATERIAL: THERMOPLASTIC (NYLON/PTFE/PA/PU); PGF-1220; HOSE OUTER DIAMETER: 12MM; HOSE INNER DIAMETER: 10MM;                                                                     FITTING 1 TYPE: METRIC FEMALE SWIVEL  24° WITH O-RING; FITTING 1 MATERIAL: STAINLESS STEEL; FITTING 1 THREAD: M16 X 1.5;                                                                                               FITTING 2 TYPE: METRIC FEMALE SWIVEL  24° WITH O-RING; FITTING 2 MATERIAL: STAINLESS STEEL; FITTING 2 THREAD: M16 X 1.5;          INTERNAL USE:CRRC P/N: 80001621000608; MAINTENANCE MANUAL: MM0101","EA",60,null,{"v":0,"d":"R0.00"},10,null,{"v":0,"d":"R0.00"},10,null,{"v":0,"d":"R0.00"},{"v":0,"d":"R0.00"},{"v":0,"d":"R0.00"}]
["013843893","HOSE ASSEMBLY; TYPE: TEXTILE; TYPE: HANSA-FLEX TEXTILE HOSE; APPLICATION: ELECTRIC LOCOMOTIVE CLASS 22E UNDERFRAME PIPELINE; SPECIFICATION: PD_L008_001_579, LA; HOSE: TE 220 RAIL; LENGTH: 560 MM; CONNECTOR 1: S/S M30 STRAIGHT NIPPLE - PN 20 AOL VA; CONNECTOR 2: S/S M30 STRAIGHT NIPPLE - PN 20 AOL VA; CRRC P/N: 6930001879; CRRC DRAWING: AJP1008640, ITEM 243; CRRC SPEC: JP00000031J24; REFERENCE: MM0210","EA",140,null,{"v":0,"d":"R0.00"},90,null,{"v":0,"d":"R0.00"},90,null,{"v":0,"d":"R0.00"},{"v":0,"d":"R0.00"},{"v":0,"d":"R0.00"}]
["013859483"," HOSE ASSEMBLY; TYPE: TEXTILE; TYPE: HANSA-FLEX TEXTILE HOSE; APPLICATION: ELECTRIC LOCOMOTIVE CLASS 22E CONTROL PIPELINE; SPECIFICATION: PD_L008_001_579, LA; HOSE: TE 213 RAIL; LENGTH: 700 MM; CONNECTOR 1: PN 13 AOL VA; CONNECTOR 2: PN 13 AOL VA; CRRC P/N: 1539000080; CRRC DRAWING: AJP1009212, ITEM 28; CRRC SPEC: WP00000014J24; REFERENCE: MM0210","EA",70,null,{"v":0,"d":"R0.00"},45,null,{"v":0,"d":"R0.00"},45,null,{"v":0,"d":"R0.00"},{"v":0,"d":"R0.00"},{"v":0,"d":"R0.00"}]
["013859484","HOSE ASSEMBLY; TYPE: TEXTILE; TYPE: HANSA-FLEX TEXTILE, LENGTH: 630 MM; SPECIFICATION: PD_L008_001_579, LA; APPLICATION: ELECTRIC LOCOMOTIVE CLASS 22E MACHINE ROOM PIPELINE; HOSE: TE 225 RAIL; LENGTH: 630MM CONNECTOR 1: S/S M36 STRAIGHT NIPPLE - PN 25 AOL VA; CONNECTOR 2: S/S M36 STRAIGHT NIPPLE - PN 25 AOL VA; CRRC P/N: 1539000091; CRRC DRAWING: AJP1009325, ITEM 30; CRRC SPEC: WP00000014J24; REFERENCE: MM0210","EA",70,null,{"v":0,"d":"R0.00"},45,null,{"v":0,"d":"R0.00"},45,null,{"v":0,"d":"R0.00"},{"v":0,"d":"R0.00"},{"v":0,"d":"R0.00"}]
["068823167","HOSE ASSEMBLY; TYPE: WHEEL FLANGE LUBRICATION, LENGTH: 1200 MM; SPECIFICATION: PD_L008_001_579, LA; APPLICATION: ELECTRIC LOCOMOTIVE CLASS 20/21E/22E; HOSE: 441RH-5 CONNECTOR 1: KCA47-8-5C CONNECTOR 2: KCA47-8-5C INTERNAL USE: CRRC P/N: 1621000636, MM0409-1","EA",30,null,{"v":0,"d":"R0.00"},0,null,{"v":0,"d":"R0.00"},0,null,{"v":0,"d":"R0.00"},{"v":0,"d":"R0.00"},{"v":0,"d":"R0.00"}]
["068823168","HOSE ASSEMBLY; TYPE: WHEEL FLANGE LUBRICATION, LENGTH: 300 MM; SPECIFICATION: PD_L008_001_579, LA; APPLICATION: ELECTRIC LOCOMOTIVE CLASS 20/21E/22E; HOSE: 441RH-5 CONNECTOR 1: KCA47-8-5C CONNECTOR 2: KCA47-8-5C INTERNAL USE: CRRC P/N: 1621000634, MM0409-1","EA",492,null,{"v":0,"d":"R0.00"},300,null,{"v":0,"d":"R0.00"},320,null,{"v":0,"d":"R0.00"},{"v":0,"d":"R0.00"},{"v":0,"d":"R0.00"}]
["068858563","HOSE ASSEMBLY; TYPE: WHEEL FLANGE LUBRICATION, LENGTH: 620 MM; SPECIFICATION: PD_L008_001_579, LA; APPLICATION: ELECTRIC LOCOMOTIVE CLASS 22E; HOSE: 441RH-5 CONNECTOR 1: KCA47-8-5C CONNECTOR 2: KCF47-8-5C INTERNAL USE: CRRC P/N: 1539000071/1539000072, MM0409-2","EA",560,null,{"v":0,"d":"R0.00"},360,null,{"v":0,"d":"R0.00"},360,null,{"v":0,"d":"R0.00"},{"v":0,"d":"R0.00"},{"v":0,"d":"R0.00"}]
["071817866","HOSE ASSEMBLY; TYPE: TE 216 RAIL, LENGTH: 650 MM; SPECIFICATION: PD_L008_001_579, LA; ELECTRIC LOCOMOTIVE CLASS 20/21E; CONNECTOR 1: S/S M26 STRAIGHT NIPPLE - PN 16 AOL VA CONNECTOR 2: S/S M26 90 DEGREE NIPPLE - PN 16 AOL 90 VA INTERNAL USE: CRRC P/N: 1538000026, MM0411, WP00000014J24","EA",212,null,{"v":0,"d":"R0.00"},120,null,{"v":0,"d":"R0.00"},140,null,{"v":0,"d":"R0.00"},{"v":0,"d":"R0.00"},{"v":0,"d":"R0.00"}]
["071817867","HOSE ASSEMBLY; TYPE: TE 216 RAIL, LENGTH: 530 MM; SPECIFICATION: PD_L008_001_579, LA; ELECTRIC LOCOMOTIVE CLASS 20/21E CONNECTOR 1: S/S M26 STRAIGHT NIPPLE - PN 16 AOL VA CONNECTOR 2: S/S M26 90 DEGREE NIPPLE - PN 16 AOL 90 VA INTERNAL USE: CRRC P/N: 1538000027, MM0411, WP00000014J24","EA",212,null,{"v":0,"d":"R0.00"},120,null,{"v":0,"d":"R0.00"},140,null,{"v":0,"d":"R0.00"},{"v":0,"d":"R0.00"},{"v":0,"d":"R0.00"}]
["071817868","HOSE ASSEMBLY; TYPE: TE 208 RAIL, LENGTH: 500 MM; SPECIFICATION: PD_L008_001_579, LA; ELECTRIC LOCOMOTIVE CLASS 20/21E; HOSE: TE 208 RAIL CONNECTOR 1: S/S M16 STRAIGHT NIPPLE - PN 08 AOL VA CONNECTOR 2: S/S M16 90 DEGREE NIPPLE - PN 08 AOL 90 VA INTERNAL USE: CRRC P/N: 1539010043, MM0411, WP00000014J24","EA",212,null,{"v":0,"d":"R0.00"},120,null,{"v":0,"d":"R0.00"},140,null,{"v":0,"d":"R0.00"},{"v":0,"d":"R0.00"},{"v":0,"d":"R0.00"}]
["084842331","HOSE ASSEMBLY; TYPE: TEXTILE; TYPE: HANSA-FLEX TEXTILE HOSE; APPLICATION: ELECTRIC LOCOMOTIVE CLASS 22E UNDERFRAME PIPELINE; SPECIFICATION: PD_L008_001_579, LA; HOSE: TE 208 RAIL; LENGTH: 600 MM; CONNECTOR 1: PN 08 AOL VA; CONNECTOR 2: PN 08 AOL VA; CRRC P/N: 6930008221; CRRC DRAWING: AJP1008640, ITEM 218; CRRC SPEC: WP00000014J24; REFERENCE: MM0210","EA",350,null,{"v":0,"d":"R0.00"},225,null,{"v":0,"d":"R0.00"},225,null,{"v":0,"d":"R0.00"},{"v":0,"d":"R0.00"},{"v":0,"d":"R0.00"}]
["085843752","HOSE; TYPE: SANDING; P/N: AJP1005629A, CRRC CORPORATION LIMITED; DRAWING NO: AJP1005629, 0; APPLICATION:ELECTRIC LOCOMOTIVE CLASS 22E","EA",150,null,{"v":0,"d":"R0.00"},30,null,{"v":0,"d":"R0.00"},0,null,{"v":0,"d":"R0.00"},{"v":0,"d":"R0.00"},{"v":0,"d":"R0.00"}]
[]
["Material Category 18: "]
["084832370","CONNECTOR FOR HEAT EXCHANGER; ELECTRICAL LOCOMOTIVE CLASS 22E","EA",50,null,{"$f":"D170*E170","v":{"v":0,"d":"R0.00"}},0,null,{"$f":"G170*H170","v":{"v":0,"d":"R0.00"}},0,null,{"$f":"J170*K170","v":{"v":0,"d":"R0.00"}},{"$f":"SUM(L170+I170+F170)","v":{"v":0,"d":"R0.00"}},{"$f":"SUM(M170*1.15)","v":{"v":0,"d":"R0.00"}}]
["085844178","MODULE; TYPE: QUICK CONNECTOR BLOCK IGBT; P/N: W200000085, CRRC CORPORATION LIMITED; CATALOGUE: MM0144, CRRC CORPORATION LIMITED; DRAWING NO: N01047409, LA, CRRC CORPORATION LIMITED; ELECTRIC LOCOMOTIVE CLASS 21E; POWER CONVERTOR CUBICLE  AND TRACTION CONTROL UNIT","EA",50,null,{"v":0,"d":"R0.00"},0,null,{"v":0,"d":"R0.00"},0,null,{"v":0,"d":"R0.00"},{"v":0,"d":"R0.00"},{"v":0,"d":"R0.00"}]
["085844179","FITTING; TYPE: MODULE SIDE; P/N: W200000084, CRRC CORPORATION LIMITED; CATALOGUE: MM0144, CRRC CORPORATION LIMITED; DRAWING NO: N01 120509, LA, CRRC CORPORATION LIMITED; QUANTITY PER CONVERTER CABINET: 2;\nELECTRIC LOCOMOTIVE CLASS 21E;\nPOWER CONVERTOR CUBICLE  AN D TRACTION CONTROL UNIT","EA",50,null,{"v":0,"d":"R0.00"},0,null,{"v":0,"d":"R0.00"},0,null,{"v":0,"d":"R0.00"},{"v":0,"d":"R0.00"},{"v":0,"d":"R0.00"}]
["085844180","FITTING; TYPE: IGBT MODULES; P/N: W200000086, CRRC CORPORATION LIMITED; CATALOGUE: MM0144, CRRC CORPORATION LIMITED; DRAWING NO: N00884008, LA, CRRC CORPORATION LIMITED; QUANTITY PER CONVERTER CABINET: 10; ELECTRIC LOCOMOTIVE CLASS 21E; POWER CONVERTOR CUBICLE  AND TRACTION CONTROL UNIT","EA",50,null,{"v":0,"d":"R0.00"},0,null,{"v":0,"d":"R0.00"},0,null,{"v":0,"d":"R0.00"},{"v":0,"d":"R0.00"},{"v":0,"d":"R0.00"}]
[]
["Material Category 19: "]
["085823319","TRANSDUCER TYPE VOLTAGE APPLICATION ELECTRIC LOCOMOTIVE CLASS 20E/22E DRAWING NO: W22510700052 CSR CORPORATION LIMITED REV LATEST","EA",12,null,{"$f":"D176*E176","v":{"v":0,"d":"R0.00"}},2,null,{"$f":"G176*H176","v":{"v":0,"d":"R0.00"}},2,null,{"$f":"J176*K176","v":{"v":0,"d":"R0.00"}},{"$f":"SUM(L176+I176+F176)","v":{"v":0,"d":"R0.00"}},{"$f":"SUM(M176*1.15)","v":{"v":0,"d":"R0.00"}}]
["085823321","TRANSDUCER TYPE CURRENT APPLICATION ELECTRIC LOCOMOTIVE CLASS 20E/22E DRAWING NO: W22510702134 CSR CORPORATION LIMITED REV LATEST","EA",10,null,{"v":0,"d":"R0.00"},0,null,{"v":0,"d":"R0.00"},0,null,{"v":0,"d":"R0.00"},{"v":0,"d":"R0.00"},{"v":0,"d":"R0.00"}]
["085823322\n","TRANSDUCER;PRESS,ELEC LOCO CL 20E/22E, TRANSDUCER; TYPE PRESSURE; APPLICATION ELECTRIC LOCOMOTIVE CLASS 20E/22E; DRAWING NO: W200000943 CSR CORPORATION LIMITED REV LATEST","EA",10,null,{"v":0,"d":"R0.00"},0,null,{"v":0,"d":"R0.00"},0,null,{"v":0,"d":"R0.00"},{"v":0,"d":"R0.00"},{"v":0,"d":"R0.00"}]
["085823323","TRANSDUCER TYPE TEMPERATURE APPLICATION ELECTRIC LOCOMOTIVE CLASS 20E/22E DRAWING NO: W22510700102G CSR CORPORATION LIMITED REV LATEST","EA",20,null,{"v":0,"d":"R0.00"},0,null,{"v":0,"d":"R0.00"},0,null,{"v":0,"d":"R0.00"},{"v":0,"d":"R0.00"},{"v":0,"d":"R0.00"}]
["085829030","TRANSDUCER TYPE VOLTAGE APPLICATION ELECTRIC LOCOMOTIVE CLASS 20E/22E P/N: ZSN180-00-00-A07 CSR CORPORATION LIMITED DRAWING NO: ZSN180-00-00-A07 REV LATEST","EA",10,null,{"v":0,"d":"R0.00"},5,null,{"v":0,"d":"R0.00"},5,null,{"v":0,"d":"R0.00"},{"v":0,"d":"R0.00"},{"v":0,"d":"R0.00"}]
[]
["Material Category 20: "]
["084837529","LOCK, MORTISE; P/N: NS90009-00-000, SIYAHAMBA ENGINEERING; ELECTRIC LOCOMOTIVE CLASS 21E; COMPLETE NPNA","EA",50,null,{"$f":"D183*E183","v":{"v":0,"d":"R0.00"}},10,null,{"$f":"G183*H183","v":{"v":0,"d":"R0.00"}},10,null,{"$f":"J183*K183","v":{"v":0,"d":"R0.00"}},{"$f":"SUM(L183+I183+F183)","v":{"v":0,"d":"R0.00"}},{"$f":"SUM(M183*1.15)","v":{"v":0,"d":"R0.00"}}]
["067831183","LOCK, RIM TYPE DOOR, RIGHT HAND MATERIAL STEEL P/N: NS90009-00 SIYAHAMBA ELECTRIC LOCOMOTIVE CLASS 20E DOOR LOCK; FOR LEFT HAND DOOR LOCK SEE ITEM 067831325","EA",10,null,{"v":0,"d":"R0.00"},0,null,{"v":0,"d":"R0.00"},0,null,{"v":0,"d":"R0.00"},{"v":0,"d":"R0.00"},{"v":0,"d":"R0.00"}]
["067831325","LOCK, RIM TYPE DOOR, LEFT HAND MATERIAL STEEL P/N: NS90009-06 SIYAHAMBA ELECTRIC LOCOMOTIVE CLASS 20E DOOR LOCK LEFT HAND; FOR RIGHT HAND DOOR LOCK SEE ITEM 067831183","EA",10,null,{"v":0,"d":"R0.00"},0,null,{"v":0,"d":"R0.00"},0,null,{"v":0,"d":"R0.00"},{"v":0,"d":"R0.00"},{"v":0,"d":"R0.00"}]
["084842700","KIT; TYPE: DOOR WINDOW, APPLICATION: ELECTRIC LOCOMOTIVE CLASS 20E; MAINTENANCE MANUAL: MM0307;\nCONSIST OFF;\nPART NUMBERS: \n8000069 1000076;\n80000691000071;\n80000691000074;\n80000691000075;\n800006912001398;\nSIYAHAMBA ENGINEERING (PTY) LTD","EA",123,null,{"v":0,"d":"R0.00"},75,null,{"v":0,"d":"R0.00"},30,null,{"v":0,"d":"R0.00"},{"v":0,"d":"R0.00"},{"v":0,"d":"R0.00"}]
["084853667","GUARD; TYPE: STONE, LEFT, 80000961000084, APPLICATION: ELECTRIC LOCOMOTIVE CLASS 21E; P/N: 80000961000084, SIYAHAMBA","EA",4,null,{"v":0,"d":"R0.00"},2,null,{"v":0,"d":"R0.00"},2,null,{"v":0,"d":"R0.00"},{"v":0,"d":"R0.00"},{"v":0,"d":"R0.00"}]
[]
["Material Category 21: "]
["085834114","CABLE ASSEMBLY; TYPE: WTB JUMPER; SPECIFICATION: EL_NAT_SPEC_2010, LA; ASSEMBLY, CABLE; TYPE: WTB JUMPER;\nAPPLICATION: ELECTRICAL L OCOMOTIVE CLASS 22E MU CONNECTION;\nSPECIFICATION: EL_NAT_SPEC_2010;\nCONNECTOR SHELL MATERIAL: METAL;\n\nINCLUDED WITH CABLE ASSEMBLY: \nMATING CONNECTOR FOR WTB COMMUNICATION CABLE,\nMATING CONNECTOR FOR SIGNAL WIRES,\nLANYARDS,\nWIRING DIAGRAM;\n\nINTERNAL USE:\nCRRC P/N : 3423001009;\nCRRC DRAWING: AJA1012588A ITEM 45;\nMAINTENANCE MANUAL: MM0135-1;","EA",125,null,{"$f":"D190*E190","v":{"v":0,"d":"R0.00"}},25,null,{"$f":"G190*H190","v":{"v":0,"d":"R0.00"}},25,null,{"$f":"J190*K190","v":{"v":0,"d":"R0.00"}},{"$f":"SUM(L190+I190+F190)","v":{"v":0,"d":"R0.00"}},{"$f":"SUM(M190*1.15)","v":{"v":0,"d":"R0.00"}}]
["085834115","SOCKET, ELECTRICAL; TYPE: WTB JUMPER; SPECIFICATION: EL_NAT_SPEC_2010, LA; SOCKET, ELECTRICAL; TYPE: WTB JUMPER;\nAPPLICATION: ELECT RICAL LOCOMOTIVE CLASS 22E MU CONNECTION;\nSPECIFICATION: EL_NAT_SPEC_2010;\n\nINCLUDED WITH RECEPTACLE:\nMATING CONNECTOR FOR WTB COMM UNICATION CABLE,\nMATING CONNECTOR FOR SIGNAL WIRES,\nWIRING DIAGRAM;\n\nINTERNAL USE:\nCRRC P/N: 7700004184;\nCRRC DRAWING: AJA1012588A ITEM 16;\nMAINTENANCE MANUAL: MM0135-1;","EA",30,null,{"v":0,"d":"R0.00"},5,null,{"v":0,"d":"R0.00"},5,null,{"v":0,"d":"R0.00"},{"v":0,"d":"R0.00"},{"v":0,"d":"R0.00"}]
["085834116","SOCKET; TYPE: BLIND, WTB DUMMY; SPECIFICATION: EL_NAT_SPEC_2010, LA; SOCKET, BLIND; TYPE: WTB DUMMY;\nAPPLICATION: ELECTRICAL LOCOMO TIVE CLASS 22E MU CONNECTION;\nEMPTY RECEPTACLE;\nSPECIFICATION: EL_NAT_SPEC_2010;\n\nINTERNAL USE:\nCRRC P/N: 7700004183;\nCRRC DRAWING:  AJA1012588A ITEM 7;\nMAINTENANCE MANUAL: MM0135-1;","EA",22,null,{"v":0,"d":"R0.00"},2,null,{"v":0,"d":"R0.00"},2,null,{"v":0,"d":"R0.00"},{"v":0,"d":"R0.00"},{"v":0,"d":"R0.00"}]
[]
["Material Category 22: "]
["084672157"," PUMP ASSEMBLY; TYPE: WATER, 2.7 KW, APPLICATION: COOLING TOWER; P/N: 6912001790, CRRC CORPORATION LIMITED; SPECIFICATION: 691200179 0, LA; P/N: 835010030000 (ZHUZHOU LIANCHENG);\nTYPE: CNE32-160/N24L-2 (HERMETIC PUMP CO. LTD)           \nF20-3211H4-0305S1-BV (DALIA N EMPIRE CANNED PUMP)\nAPPLICATION: ELECTRIC LOCOMOTIVE CLASS 20E /21E","EA",15,null,{"$f":"D195*E195","v":{"v":0,"d":"R0.00"}},5,null,{"$f":"G195*H195","v":{"v":0,"d":"R0.00"}},0,null,{"$f":"J195*K195","v":{"v":0,"d":"R0.00"}},{"$f":"SUM(L195+I195+F195)","v":{"v":0,"d":"R0.00"}},{"$f":"SUM(M195*1.15)","v":{"v":0,"d":"R0.00"}}]
["084839088"," PUMP ASSEMBLY; TYPE: WATER, 5.5 KW, APPLICATION: COOLING TOWER; P/N: 3098000656, CRRC CORPORATION LIMITED; P/N: 835161080000 (ZHUZH OU LIANCHENG);\nTYPE:  CNE32-160/N24L-2 (HERMETIC PUMP CO. LTD)           \nF20-3211H4-0305SZ1-BV (DALIAN EMPIRE CANNED PUMP);\nAPPLIC ATION: ELECTRIC LOCOMOTIVE CLASS 22E","EA",15,null,{"v":0,"d":"R0.00"},5,null,{"v":0,"d":"R0.00"},0,null,{"v":0,"d":"R0.00"},{"v":0,"d":"R0.00"},{"v":0,"d":"R0.00"}]
["085823302"," PUMP; TYPE: OIL TRANSFORMER; SPECIFICATION: B2V/131K / DN80, LA; ELECTRIC LOCOMOTIVE CLASS 20/22E","EA",15,null,{"v":0,"d":"R0.00"},0,null,{"v":0,"d":"R0.00"},0,null,{"v":0,"d":"R0.00"},{"v":0,"d":"R0.00"},{"v":0,"d":"R0.00"}]
[]
["Material Category 23: "]
["019842257","KIT; TYPE: RUBBER, NO.1 END DOOR, APPLICATION: ELECTRIC LOCOMOTIVE CLASS 20E/21E/22E CAB; SPECIFICATION: EL_NAT_SPEC_2001, LA; CONSIST OF: 3.2M D-PROFILE SOFT SPONGE RUBBER X1 - 019860053, 4.8M D-PROFILE SOFT SPONGE RUBBER X1 - 019860053, 1.8M LARGE P-RUBBER X1- 019860054","EA",123,null,{"$f":"D200*E200","v":{"v":0,"d":"R0.00"}},75,null,{"$f":"G200*H200","v":{"v":0,"d":"R0.00"}},30,null,{"$f":"J200*K200","v":{"v":0,"d":"R0.00"}},{"$f":"SUM(L200+I200+F200)","v":{"v":0,"d":"R0.00"}},{"$f":"SUM(M200*1.15)","v":{"v":0,"d":"R0.00"}}]
["019842262","KIT; TYPE: RUBBER, PARTITION DOOR 2, APPLICATION: ELECTRIC LOCOMOTIVE CLASS 20E/21E/22E MACHINE ROOM; SPECIFICATION: EL_NAT_SPEC_2001, LA; RUBBER KIT; CONSIST OF: 2.7M 15X12 SOFT SPONGE RUBBER X2 - 019860027, 1.8M LARGE P-RUBBER X1 - 019860054","EA",123,null,{"v":0,"d":"R0.00"},75,null,{"v":0,"d":"R0.00"},30,null,{"v":0,"d":"R0.00"},{"v":0,"d":"R0.00"},{"v":0,"d":"R0.00"}]
["069831806","SEAL, RING; TYPE: NON DRIVE END, 20E AND 22E; P/N: AB01007570G030, CSR CORPORATION LIMITED; DRAWING NO: PELG_176Z_0622 , LA; ELECTR IC LOCOMOTIVE CLASS 20E AND 22E","EA",50,null,{"v":0,"d":"R0.00"},0,null,{"v":0,"d":"R0.00"},0,null,{"v":0,"d":"R0.00"},{"v":0,"d":"R0.00"},{"v":0,"d":"R0.00"}]
["069831809","SEAL, RING; TYPE: DRIVE END, APPLICATION: ELECTRIC LOCOMOTIVE CLASS 20E AND 22E; P/N: AB01007589G030, CSR CORPORATION LIMITED; DRAW ING NO: PELG_176Z_0625, LA","EA",50,null,{"v":0,"d":"R0.00"},0,null,{"v":0,"d":"R0.00"},0,null,{"v":0,"d":"R0.00"},{"v":0,"d":"R0.00"},{"v":0,"d":"R0.00"}]
["069831818","SEAL, RING; TYPE: NON DRIVE END, 21E, APPLICATION: ELECTRIC LOCOMOTIVE CLASS 21E; P/N: AB01007579G030, CSR CORPORATION LIMITED; DRA WING NO: PELG_176Z_0576 , LA","EA",50,null,{"v":0,"d":"R0.00"},0,null,{"v":0,"d":"R0.00"},0,null,{"v":0,"d":"R0.00"},{"v":0,"d":"R0.00"},{"v":0,"d":"R0.00"}]
["069831821","SEAL, RING; TYPE: DRIVE END, APPLICATION: ELECTRIC LOCOMOTIVE CLASS 21E; P/N: AB01007590G030, CSR CORPORATION LIMITED; DRAWING NO: PELG_176Z_0578 , LA","EA",50,null,{"v":0,"d":"R0.00"},0,null,{"v":0,"d":"R0.00"},0,null,{"v":0,"d":"R0.00"},{"v":0,"d":"R0.00"},{"v":0,"d":"R0.00"}]
["084843022","WEATHER STRIP; TYPE: TRACTION FAN INTAKE, APPLICATION: ELECTRICAL LOCOMOTIVE CLASS 20E/21E, DIMENSIONS: WD 10 X LG 4004 + 4 X HT 28 MM; MATERIAL SPEC: PD_PEL_SPEC_069; P/N. NF-28X10; MAINTENANCE MANUAL: MM0605","EA",265,null,{"v":0,"d":"R0.00"},150,null,{"v":0,"d":"R0.00"},175,null,{"v":0,"d":"R0.00"},{"v":0,"d":"R0.00"},{"v":0,"d":"R0.00"}]
["084843057","WEATHER STRIP; TYPE: MACHINE ROOM INTAKE FILTER, APPLICATION: ELECTRICAL LOCOMOTIVE CLASS 20E/21E, DIMENSIONS: WD 10 X LG 4660 + 4 X HT 28 MM; MATERIAL SPEC: PD_PEL_SPEC_069; P/N.NF- 28X10X4460 MAINTENANCE MANUAL: MM0605","EA",265,null,{"v":0,"d":"R0.00"},150,null,{"v":0,"d":"R0.00"},175,null,{"v":0,"d":"R0.00"},{"v":0,"d":"R0.00"},{"v":0,"d":"R0.00"}]
[]
["Material Category 24: "]
["019842259","KIT; TYPE: RUBBER, PARTITION DOOR 1, APPLICATION: ELECTRIC LOCOMOTIVE CLASS 20E/21E/22E CAB; CONSIST OFF; 2.7M 15X12 SOFT SPONGE RU BBER X2 - 019860027,1.8M LARGE P-RUBBER X1 - 019860054","EA",123,null,{"$f":"D210*E210","v":{"v":0,"d":"R0.00"}},75,null,{"$f":"G210*H210","v":{"v":0,"d":"R0.00"}},30,null,{"$f":"J210*K210","v":{"v":0,"d":"R0.00"}},{"$f":"SUM(L210+I210+F210)","v":{"v":0,"d":"R0.00"}},{"$f":"SUM(M210*1.15)","v":{"v":0,"d":"R0.00"}}]
["019847442","GASKET, PRE CUT; TYPE: WATER PUMP COOLING TOWER, DIMENSIONS: ID 163 X OD 176 X THK 0.5 MM, MATERIAL: RUBBER, SHAPE: ROUND; USE ON ELECTRIC LOCOMOTIVE CLASS 20E","EA",369,null,{"v":0,"d":"R0.00"},225,null,{"v":0,"d":"R0.00"},240,null,{"v":0,"d":"R0.00"},{"v":0,"d":"R0.00"},{"v":0,"d":"R0.00"}]
["069831808","O RING; INSIDE DIAMETER: 387 MM, SPECIAL FEATURES: 20E/22E; SPECIFICATION: DIN 3771 FKM 80SHORE A, LA; OUTSIDE DIAMETER: 401 MM, TH ICKNESS: 7 MM; USED ON ELECTRIC LOCOMOTIVE CLASS 20E AND 22E U TUBE","EA",50,null,{"v":0,"d":"R0.00"},0,null,{"v":0,"d":"R0.00"},0,null,{"v":0,"d":"R0.00"},{"v":0,"d":"R0.00"},{"v":0,"d":"R0.00"}]
["069831820","O RING; INSIDE DIAMETER: 412 MM; SPECIFICATION: DIN 3771 FKM 80SHORE A, LA; OD 426MM, THICKNESS 7MM; USED ON ELECTRIC LOCOMOTIVE CL ASS 21E U-TUBE","EA",50,null,{"v":0,"d":"R0.00"},0,null,{"v":0,"d":"R0.00"},0,null,{"v":0,"d":"R0.00"},{"v":0,"d":"R0.00"},{"v":0,"d":"R0.00"}]
["084847345","RUBBER STRIP; TYPE: CIRCULAR SECTION, MATERIAL: FOAM RUBBER, COLOR: BLACK, SPECIAL FEATURES: BLOWER, TRACTION MOTOR, APPLICATION: ELECTRIC LOCOMOTIVE CLASS 22E; P/N: 800016530380, CSR CORPORATION LIMITED","EA",266,null,{"v":0,"d":"R0.00"},150,null,{"v":0,"d":"R0.00"},160,null,{"v":0,"d":"R0.00"},{"v":0,"d":"R0.00"},{"v":0,"d":"R0.00"}]
[]
["Material Category 25: "]
["067823214","BLOWER, ENGINE COOLING SYSTEM TRACTION; ELECTRIC LOCOMOTIVE CLASS 20E/21E SPECIFICATION: TLTF7.0 DRAWING NO: 3910000713 CSR CORPORATION LIMITED REV LATEST","EA",8,null,{"$f":"D217*E217","v":{"v":0,"d":"R0.00"}},0,null,{"$f":"G217*H217","v":{"v":0,"d":"R0.00"}},0,null,{"$f":"J217*K217","v":{"v":0,"d":"R0.00"}},{"$f":"SUM(L217+I217+F217)","v":{"v":0,"d":"R0.00"}},{"$f":"SUM(M217*1.15)","v":{"v":0,"d":"R0.00"}}]
["084831776","UNIT TYPE COOLING TOWER 1, BLOWER APPLICATION ELECTRIC LOCOMOTIVE CLASS 20E P/N: 6912001791 CSR CORPORATION LIMITED","EA",15,null,{"v":0,"d":"R0.00"},0,null,{"v":0,"d":"R0.00"},0,null,{"v":0,"d":"R0.00"},{"v":0,"d":"R0.00"},{"v":0,"d":"R0.00"}]
["084835046","FILTER, ELEMENT; TYPE: PRESSURE BLOWER; P/N: 1730000204, CSR CORPORATION LIMITED; ELECTRIC LOCOMOTIVE CLASS 21E","EA",10,null,{"v":0,"d":"R0.00"},0,null,{"v":0,"d":"R0.00"},0,null,{"v":0,"d":"R0.00"},{"v":0,"d":"R0.00"},{"v":0,"d":"R0.00"}]
["085819652","FAN, ELECTRIC BLOWER, ENGINE COOLING SYSTEM MACHINERY ROOM SPECIFICATION: TZTF4.8B P/N: 3910000710 CSR CORPORATION LIMITED MAINTENANCE MANUAL: MM0604 REV4.2 ELECTRIC LOCOMOTIVE CLASS 20E/21E","EA",10,null,{"v":0,"d":"R0.00"},0,null,{"v":0,"d":"R0.00"},0,null,{"v":0,"d":"R0.00"},{"v":0,"d":"R0.00"},{"v":0,"d":"R0.00"}]
["085823326","FAN, COOLING; TYPE; CENTRIFUGAL; APPLICATION: ELECTRIC LOCOMOTIVE CLASS 20E/21E/22E PCC; MANUFACTURER: ZIEHL-ABEGG; PART NUMBER: 131630 - RG28M-2DK.3F.1R; OPERATING VOLTAGE: 3PH 230/400V (D/Y) 50HZ; OPERATING CURRENT: 1,65/0,95A (D/Y); SPEED: 2750rpm; POWER: 0,53kW; INTERNAL USE: CRRC P/N: W200023158; MAINTENANCE MANUAL: MM0111","EA",30,null,{"v":0,"d":"R0.00"},0,null,{"v":0,"d":"R0.00"},0,null,{"v":0,"d":"R0.00"},{"v":0,"d":"R0.00"},{"v":0,"d":"R0.00"}]
["085823326R","REPAIR, UNIT; TYPE: FAN ELECTRIC, LOCATION: ELECTRIC LOCOMOTIVE CLASS 22E","EA",246,null,{"v":0,"d":"R0.00"},150,null,{"v":0,"d":"R0.00"},160,null,{"v":0,"d":"R0.00"},{"v":0,"d":"R0.00"},{"v":0,"d":"R0.00"}]
["085826027","FAN, ELECTRIC; DRAWING NO: AJA1012191A, ITEM: 40, CSR CORPORATION LIMITED; ELECTRIC LOCOMOTIVE CLASS 22E AUXILIARY TRANSFORMER CABI NET ASSEMBLY","EA",7,null,{"v":0,"d":"R0.00"},2,null,{"v":0,"d":"R0.00"},2,null,{"v":0,"d":"R0.00"},{"v":0,"d":"R0.00"},{"v":0,"d":"R0.00"}]
["085826909","FAN TYPE TRACTION P/N: 3910000944 CSR CORPORATION LIMITED ELECTRIC LOCOMOTIVE CLASS 22E FAN INSTALLATION DRAWING NO: 3910000944 REV LATEST, AJA1013516A CSR CORPORATION LIMITED REV LATEST ITEM 1","EA",10,null,{"v":0,"d":"R0.00"},0,null,{"v":0,"d":"R0.00"},0,null,{"v":0,"d":"R0.00"},{"v":0,"d":"R0.00"},{"v":0,"d":"R0.00"}]
["085844087","FAN, ELECTRIC; P/N: 3351024, CRRC CORPORATION LIMITED; ELECTRIC LOCOMOTIVE CLASS 21E","EA",10,null,{"v":0,"d":"R0.00"},5,null,{"v":0,"d":"R0.00"},5,null,{"v":0,"d":"R0.00"},{"v":0,"d":"R0.00"},{"v":0,"d":"R0.00"}]
["085855143","MOTOR, ELECTRIC; TYPE: AUXILIARY VENTILATION CABINET; INTERNAL REFERENCE 80003910000978; SPECIFICATION/FAN MODEL: TZTF5.2; ELECTRIC LOCOMOTIVE CLASS 22E","EA",4,null,{"v":0,"d":"R0.00"},0,null,{"v":0,"d":"R0.00"},0,null,{"v":0,"d":"R0.00"},{"v":0,"d":"R0.00"},{"v":0,"d":"R0.00"}]
[]
["Material Category 26: "]
["071817800","SHIM; TYPE: BONDED RUBBER, AXLE BOX ISOLATION; DRAWING NO: BBH7133, LA; APPLICATION: ELECTRIC LOCOMOTIVE CLASS 20E PRIMARY SUSPENSION; SPECIFICATION:  BBH 7010; CONSTRUCTION: TWO ROUND METAL PARTS, RUBBER BONDED TOGETHER TO CREATE ELECTRICAL ISOLATION; OUTER DIAMETER: 288MM +/- 1MM; HEIGHT: 58MM; PART SHALL BE MARKED WITH SUPPLIER'S NAME/LOGO AND MANUFACTURING DATE; INTERNAL USE: CRRC P/N: AB01006825; CRRC DRAWING: AB01007997A ITEM 5; MAINTENANCE MANUAL: MM0405",null,368,null,{"$f":"D229*E229","v":{"v":0,"d":"R0.00"}},240,null,{"$f":"G229*H229","v":{"v":0,"d":"R0.00"}},240,null,{"$f":"J229*K229","v":{"v":0,"d":"R0.00"}},{"$f":"SUM(L229+I229+F229)","v":{"v":0,"d":"R0.00"}},{"$f":"SUM(M229*1.15)","v":{"v":0,"d":"R0.00"}}]
["071817815","SHIM; TYPE: BONDED RUBBER, BOGIE ISOLATION; DRAWING NO: BBH6018, LA; APPLICATION: ELECTRIC LOCOMOTIVE CLASS 20E SECONDARY SUSPENSION; SPECIFICATION: BBH 7010; CONSTRUCTION: TWO ROUND METAL PARTS, RUBBER BONDED TOGETHER TO CREATE ELECTRICAL ISOLATION; OUTER DIAMETER: 280MM +/- 1MM; HEIGHT: 60MM; PART SHALL BE MARKED WITH SUPPLIER'S NAME/LOGO AND MANUFACTURING DATE; INTERNAL USE: CRRC P/N: AB01007194; CRRC DRAWING: AB01008381A ITEM 1; MAINTENANCE MANUAL: MM0406.","EA",184,null,{"v":0,"d":"R0.00"},120,null,{"v":0,"d":"R0.00"},120,null,{"v":0,"d":"R0.00"},{"v":0,"d":"R0.00"},{"v":0,"d":"R0.00"}]
["071864558","SHIM; TYPE: BONDED RUBBER, AXLE BOX ISOLATION; DRAWING NO: BBH6848, LA; APPLICATION: ELECTRIC LOCOMOTIVE CLASS 21E PRIMARY SUSPENSION; SPECIFICATION: BBH 7010; CONSTRUCTION: TWO ROUND METAL PARTS, RUBBER BONDED TOGETHER TO CREATE ELECTRICAL ISOLATION; OUTER DIAMETER: 289MM +/- 1MM; HEIGHT: 49MM; PART SHALL BE MARKED WITH SUPPLIER'S NAME/LOGO AND MANUFACTURING DATE; INTERNAL USE: CRRC P/N: AB01012095; MAINTENANCE MANUAL: MM0405.","EA",480,null,{"v":0,"d":"R0.00"},240,null,{"v":0,"d":"R0.00"},320,null,{"v":0,"d":"R0.00"},{"v":0,"d":"R0.00"},{"v":0,"d":"R0.00"}]
["071864559","SHIM; TYPE: BONDED RUBBER, BOGIE ISOLATION; DRAWING NO: BBH5998, LA; APPLICATION: ELECTRIC LOCOMOTIVE CLASS 21E SECONDARY SUSPENSION; SPECIFICATION:  BBH 7010; CONSTRUCTION: TWO ROUND METAL PARTS, RUBBER BONDED TOGETHER TO CREATE ELECTRICAL ISOLATION; OUTER DIAMETER: 298MM +/- 1MM; HEIGHT: 65MM; PART SHALL BE MARKED WITH SUPPLIER'S NAME/LOGO AND MANUFACTURING DATE; INTERNAL USE: CRRC P/N:AB01012098; MAINTENANCE MANUAL: MM0406","EA",240,null,{"v":0,"d":"R0.00"},120,null,{"v":0,"d":"R0.00"},160,null,{"v":0,"d":"R0.00"},{"v":0,"d":"R0.00"},{"v":0,"d":"R0.00"}]
[]
["Material Category 27: "]
["013838811","PIPE ASSEMBLY; TYPE: OIL INLET, APPLICATION: TRANSFORMER; P/N: 3098000546, CRRC CORPORATION LIMITED; ELECTRIC LOCOMOTIVE CLASS 22E","EA",20,null,{"$f":"D235*E235","v":{"v":0,"d":"R0.00"}},0,null,{"$f":"G235*H235","v":{"v":0,"d":"R0.00"}},0,null,{"$f":"J235*K235","v":{"v":0,"d":"R0.00"}},{"$f":"SUM(L235+I235+F235)","v":{"v":0,"d":"R0.00"}},{"$f":"SUM(M235*1.15)","v":{"v":0,"d":"R0.00"}}]
["013838813","PIPE ASSEMBLY; TYPE: OUTLET, APPLICATION: TRANSFORMER; P/N: 3098000502, CRRC CORPORATION LIMITED; ELECTRIC LOCOMOTIVE CLASS 21E","EA",20,null,{"v":0,"d":"R0.00"},0,null,{"v":0,"d":"R0.00"},0,null,{"v":0,"d":"R0.00"},{"v":0,"d":"R0.00"},{"v":0,"d":"R0.00"}]
["013838814","PIPE ASSEMBLY; TYPE: OUTLET, APPLICATION: TRANSFORMER; P/N: 3098000545, CRRC CORPORATION LIMITED; ELECTRIC LOCOMOTIVE CLASS 22E","EA",20,null,{"v":0,"d":"R0.00"},0,null,{"v":0,"d":"R0.00"},0,null,{"v":0,"d":"R0.00"},{"v":0,"d":"R0.00"},{"v":0,"d":"R0.00"}]
["068843643","PIPE METAL;BRAKE SYS,STL;22E\nPIPE, METALLIC;\nTYPE: BRAKE SYSTEM,\nPIPE MATERIAL: STEEL;\nP/N: AJP1009321A, CSR CORPORATION LIMITED;\nPIPE UNDERFRAME;\nELECTRIC LOCOMOTIVE CLASS 22E","EA",60,null,{"v":0,"d":"R0.00"},10,null,{"v":0,"d":"R0.00"},10,null,{"v":0,"d":"R0.00"},{"v":0,"d":"R0.00"},{"v":0,"d":"R0.00"}]
[]
["Material Category 28: "]
["061825851","WIRE, ELECTRICAL; P/N: 3451000201, CSR CORPORATION LIMITED; ELECTRIC LOCOMOTIVE CLASS 22E JUNCTION BOX BOGIE WIRING","EA",12,null,{"$f":"D241*E241","v":{"v":0,"d":"R0.00"}},2,null,{"$f":"G241*H241","v":{"v":0,"d":"R0.00"}},2,null,{"$f":"J241*K241","v":{"v":0,"d":"R0.00"}},{"$f":"SUM(L241+I241+F241)","v":{"v":0,"d":"R0.00"}},{"$f":"SUM(M241*1.15)","v":{"v":0,"d":"R0.00"}}]
["061825852","WIRE, ELECTRICAL; P/N: 3451000202, CSR CORPORATION LIMITED; ELECTRIC LOCOMOTIVE CLASS 22E JUNCTION BOX BOGIE WIRING","EA",12,null,{"v":0,"d":"R0.00"},2,null,{"v":0,"d":"R0.00"},2,null,{"v":0,"d":"R0.00"},{"v":0,"d":"R0.00"},{"v":0,"d":"R0.00"}]
["061825853","WIRE, ELECTRICAL; P/N: 3451000203, CSR CORPORATION LIMITED; ELECTRIC LOCOMOTIVE CLASS 22E JUNCTION BOX BOGIE WIRING","EA",12,null,{"v":0,"d":"R0.00"},2,null,{"v":0,"d":"R0.00"},2,null,{"v":0,"d":"R0.00"},{"v":0,"d":"R0.00"},{"v":0,"d":"R0.00"}]
["061825854","WIRE, ELECTRICAL; P/N: 3451000204, CSR CORPORATION LIMITED; ELECTRIC LOCOMOTIVE CLASS 22E JUNCTION BOX BOGIE WIRING","EA",12,null,{"v":0,"d":"R0.00"},2,null,{"v":0,"d":"R0.00"},2,null,{"v":0,"d":"R0.00"},{"v":0,"d":"R0.00"},{"v":0,"d":"R0.00"}]
["071817856","WIRE, ELECTRICAL; DRAWING NO: 3451000145, LA; JUNCTION BOX; ELECTRIC LOCOMOTIVE CLASS 20E; MM0414 - BOGIE AXLE TEMPERATURE ALARM SY STEM FIGURE 5.3 PAGE 19L LG 3.7 M; QTY 1","EA",12,null,{"v":0,"d":"R0.00"},2,null,{"v":0,"d":"R0.00"},2,null,{"v":0,"d":"R0.00"},{"v":0,"d":"R0.00"},{"v":0,"d":"R0.00"}]
["085821345","WIRE, ELECTRICAL; TYPE: JUNCTION BOX; P/N: 3451000157, CSR CORPORATION LIMITED; ELECTRIC LOCOMOTIVE CLASS 20E","EA",12,null,{"v":0,"d":"R0.00"},2,null,{"v":0,"d":"R0.00"},2,null,{"v":0,"d":"R0.00"},{"v":0,"d":"R0.00"},{"v":0,"d":"R0.00"}]
[]
["Material Category 29: "]
["085839392","BOX; TYPE: WIPER POWER SUPPLY CONTROL; P/N: 834212107000, CRRC CORPORATION LIMITED; ELECTRIC LOCOMOTIVE CLASS 21E","EA",10,null,{"$f":"D249*E249","v":{"v":0,"d":"R0.00"}},0,null,{"$f":"G249*H249","v":{"v":0,"d":"R0.00"}},0,null,{"$f":"J249*K249","v":{"v":0,"d":"R0.00"}},{"$f":"SUM(L249+I249+F249)","v":{"v":0,"d":"R0.00"}},{"$f":"SUM(M249*1.15)","v":{"v":0,"d":"R0.00"}}]
["085841887","MOTOR, WINDSHIELD WIPER, ELECTRIC; P/N: 792411400000, CRRC CORPORATION LIMITED; ELECTRIC LOCOMOTIVE CLASS 21E/22E; FRONT WINDSCREEN","EA",22,null,{"v":0,"d":"R0.00"},2,null,{"v":0,"d":"R0.00"},2,null,{"v":0,"d":"R0.00"},{"v":0,"d":"R0.00"},{"v":0,"d":"R0.00"}]
["085817608","PANEL, CONTROL; P/N: ZR6912001420, CSR CORPORATION LIMITED; WINDOW WIPER; 20E/22E CAB CN+EN; MM0502","EA",20,null,{"v":0,"d":"R0.00"},0,null,{"v":0,"d":"R0.00"},0,null,{"v":0,"d":"R0.00"},{"v":0,"d":"R0.00"},{"v":0,"d":"R0.00"}]
["084823191","ARM WINDSHIELD WIPER;LG 550 MM\nARM, WINDSHIELD WIPER\nARM SIZE LG 550 MM\nELECTRIC LOCOMOTIVE CLASS 20E/22E\nSPECIFICATION: SA95NEL-550-WIPERARM\nDRAWING NO: 6960001054 CSR CORPORATION LIMITED\nREV LATEST","EA",60,null,{"v":0,"d":"R0.00"},10,null,{"v":0,"d":"R0.00"},10,null,{"v":0,"d":"R0.00"},{"v":0,"d":"R0.00"},{"v":0,"d":"R0.00"}]
["084823192","ARM WINDSHIELD WIPER;LG 680 MM\nARM, WINDSHIELD WIPER\nARM SIZE LG 680 MM\nELECTRIC LOCOMOTIVE CLASS 20E/22E\nSPECIFICATION: SA95NEL-680-WIPERARM\nDRAWING NO: 6960001055 CSR CORPORATION LIMITED\nREV LATEST","EA",60,null,{"v":0,"d":"R0.00"},10,null,{"v":0,"d":"R0.00"},10,null,{"v":0,"d":"R0.00"},{"v":0,"d":"R0.00"},{"v":0,"d":"R0.00"}]
[]
["Material Category 30: "]
["010815052","PLATE, IDENTIFICATION; TYPE: MECHANICAL NUMBER, LEGEND TYPE: ARIAL, DIMENSIONS: WD 42 X LG 82 X THK 0.5 MM, MATERIAL: ALUMINIUM, CO LOR: SILVER","EA",246,null,{"$f":"D256*E256","v":{"v":0,"d":"R0.00"}},150,null,{"$f":"G256*H256","v":{"v":0,"d":"R0.00"}},160,null,{"$f":"J256*K256","v":{"v":0,"d":"R0.00"}},{"$f":"SUM(L256+I256+F256)","v":{"v":0,"d":"R0.00"}},{"$f":"SUM(M256*1.15)","v":{"v":0,"d":"R0.00"}}]
["068848029","PLATE, IDENTIFICATION; TYPE: LOCOMOTIVE DATA, LEGEND TYPE: ENGRAVE OR LASER MARKED, DIMENSIONS: WD 90 X LG 200 X THK 1 MM, MATERIAL: 3CR12 OR ALUMINIUM, COLOR: SILVER; DRAWING NO: TWK29546, LA; USE ON ELECTRIC LOCOMOTIVE CLASS 20E/21E/22E","EA",50,null,{"v":0,"d":"R0.00"},0,null,{"v":0,"d":"R0.00"},0,null,{"v":0,"d":"R0.00"},{"v":0,"d":"R0.00"},{"v":0,"d":"R0.00"}]
["084825914","RACK P/N: AJA1007087A CSR CORPORATION LIMITED DOOR PLATE LOCK ASSEMBLY; ELECTRIC LOCOMOTIVE CLASS 22E HIGH VOLTAGE CUBICLE ASSEMBLY DRAWING NO: AJA1011075A CSR CORPORATION LIMITED REV LATEST ITEM 3","EA",40,null,{"v":0,"d":"R0.00"},0,null,{"v":0,"d":"R0.00"},0,null,{"v":0,"d":"R0.00"},{"v":0,"d":"R0.00"},{"v":0,"d":"R0.00"}]
["084840362","PLATE; TYPE: BOGIE BEARER SECONDARY SUSPENSION, APPLICATION: ELECTRIC LOCOMOTIVE CLASS 22E, MATERIAL: MOULDED RUBBER AND STEEL; DRAWING NO: BBH6847, LA; SPECIFICATION: BBH7010, LA; PART SHALL BE MARKED WITH SUPPLIER'S NAME/LOGO AND MANUFACTURING DATE; FAI: SAMPLE WITH SUPPLIER'S TEST RESULTS SHALL BE SENT TO PRODUCT DEVELOPMENT TO VERIFY RESULTS WITH TFR VIT AT THE DYNAMIC TEST FACILITY. INTERNAL USE: CRRC P/N: AB01012833; CRRC ASM DRAWING: AB01012963A ITEM 6; MAINTENANCE MANUAL: MM0406","EA",560,null,{"v":0,"d":"R0.00"},360,null,{"v":0,"d":"R0.00"},360,null,{"v":0,"d":"R0.00"},{"v":0,"d":"R0.00"},{"v":0,"d":"R0.00"}]
["084843637","PLATE, MOUNTING; TYPE: PANTOGRAPH CONTROL VALVE, PLATE MATERIAL: STEEL, APPLICATION: ELECTRIC LOCOMOTIVE CLASS 21E, SPECIAL FEATURE S: DESIGN TYPE NPNA-21E; P/N: JQ00001538G00, CRRC CORPORATION LIMITED","EA",25,null,{"v":0,"d":"R0.00"},5,null,{"v":0,"d":"R0.00"},5,null,{"v":0,"d":"R0.00"},{"v":0,"d":"R0.00"},{"v":0,"d":"R0.00"}]
["085826956","PLATE; TYPE: AIR VALVE; DRAWING NO: JQ00009076G00A, ITEM: 13, CSR CORPORATION LIMITED; DOUBLE-CURRENT SYSTEM, ELECTRIC LOCOMOTIVE CLASS 22E; TSG15H(02) PANTOGRAPH","EA",20,null,{"v":0,"d":"R0.00"},0,null,{"v":0,"d":"R0.00"},0,null,{"v":0,"d":"R0.00"},{"v":0,"d":"R0.00"},{"v":0,"d":"R0.00"}]
[]
["Material Category 31: "]
["084840867","ASSEMBLY; TYPE: MIRROR ARM, APPLICATION: ELECTRIC LOCOMOTIVE CLASS 20E/21E/22E; DRAWING NO: PD L007_001_C10, LA; ARM AND BRACKET TO BE POWDER COATED COLOUR: BLACK; MIRROR ARM: 693 MM X 199 MM WITH 19 MM OUTSIDE DIAMETER; TO BE PACKAGED AS A KIT INCLUDING THE FASTENERS AS PER DRAWING; PRODUCT TO BE PACKED IN PROPER WAY TO PREVENT DAMAGED OR TAMPERING","EA",356,null,{"$f":"D264*E264","v":{"v":0,"d":"R0.00"}},178,null,{"$f":"G264*H264","v":{"v":0,"d":"R0.00"}},178,null,{"$f":"J264*K264","v":{"v":0,"d":"R0.00"}},{"$f":"SUM(L264+I264+F264)","v":{"v":0,"d":"R0.00"}},{"$f":"SUM(M264*1.15)","v":{"v":0,"d":"R0.00"}}]
[]
["Material Category 32: "]
["011827654","ROD TYPE CONNECTING ELECTRIC LOCOMOTIVE CLASS 22E BAR ASSEMBLY DRAWING NO: AB01013566A REV LATEST ITEM 1, AB01013568A REV LATEST","EA",15,null,{"$f":"D267*E267","v":{"v":0,"d":"R0.00"}},0,null,{"$f":"G267*H267","v":{"v":0,"d":"R0.00"}},0,null,{"$f":"J267*K267","v":{"v":0,"d":"R0.00"}},{"$f":"SUM(L267+I267+F267)","v":{"v":0,"d":"R0.00"}},{"$f":"SUM(M267*1.15)","v":{"v":0,"d":"R0.00"}}]
["084827493","ROD TYPE PULL ASSEMBLY 1 P/N: AB01013337A CSR CORPORATION LIMITED ELECTRIC LOCOMOTIVE CLASS 22E AXLE BOX PRIMARY SUSPENSION DEVICE DRAWING NO: AB01013332A REV LATEST ITEM 5, AB01013337A REV LATEST","EA",840,null,{"v":0,"d":"R0.00"},540,null,{"v":0,"d":"R0.00"},540,null,{"v":0,"d":"R0.00"},{"v":0,"d":"R0.00"},{"v":0,"d":"R0.00"}]
["084827494","ROD TYPE PULL ASSEMBLY 2 P/N: AB01013338A CSR CORPORATION LIMITED ELECTRIC LOCOMOTIVE CLASS 22E AXLE BOX PRIMARY SUSPENSION DEVICE DRAWING NO: AB01013332A REV LATEST ITEM 1, AB01013338A REV LATEST","EA",840,null,{"v":0,"d":"R0.00"},540,null,{"v":0,"d":"R0.00"},540,null,{"v":0,"d":"R0.00"},{"v":0,"d":"R0.00"},{"v":0,"d":"R0.00"}]
["085820367","SOCKET; TYPE: 220V, 4X2, 16A VERTICAL SWITCH, DIMENSIONS: WD 50 X HT 100 MM, MATERIAL: POLYVINYL CHLORIDE; 4X2 VERTICAL SWITCH AND COVER; COLOUR: WHITE; AMPERAGE: 16A SINGLE SABS SPEC: SANS 10142 PRODUCT TO BE PACKED IN PROPER WAY TO PREVENT DAMAGED OR TAMPERING ELECTRIC LOCOMOTIVE CLASS 20/21/22E","EA",60,null,{"v":0,"d":"R0.00"},10,null,{"v":0,"d":"R0.00"},10,null,{"v":0,"d":"R0.00"},{"v":0,"d":"R0.00"},{"v":0,"d":"R0.00"}]
[]
["Material Category 33: "]
["071817881","JOINT; TYPE: TRACTION BAR, MATERIAL: RUBBER; APPLICATION: ELECTRIC LOCOMOTIVE CLASS 20E/21E TRACTION DEVICE; MATERIAL: MOLDED RUBBER AND STEEL; DRAWING: BBH6340; SPECIFICATION: BBH7010; PART SHALL BE MARKED WITH SUPPLIER'S NAME/LOGO AND MANUFACTURING DATE; FAI: SAMPLE WITH SUPPLIER'S TEST RESULTS SHALL BE SENT TO PRODUCT DEVELOPMENT TO VERIFY RESULTS WITH TFR VIT AT THE DYNAMIC TEST FACILITY. INTERNAL USE: CRRC P/N: AB01007569/AB01012090; CRRC ASM DRAWING: AB01008302A ITEM 50; MAINTENANCE MANUAL: MM0408","EA",106,null,{"$f":"D273*E273","v":{"v":0,"d":"R0.00"}},60,null,{"$f":"G273*H273","v":{"v":0,"d":"R0.00"}},70,null,{"$f":"J273*K273","v":{"v":0,"d":"R0.00"}},{"$f":"SUM(L273+I273+F273)","v":{"v":0,"d":"R0.00"}},{"$f":"SUM(M273*1.15)","v":{"v":0,"d":"R0.00"}}]
["071817882","JOINT; TYPE: TRACTION BAR, MATERIAL: RUBBER; APPLICATION: ELECTRIC LOCOMOTIVE CLASS 20E/21E TRACTION DEVICE; MATERIAL: MOLDED RUBBER AND STEEL; DRAWING: BBH7095; SPECIFICATION: BBH7010; PART SHALL BE MARKED WITH SUPPLIER'S NAME/LOGO AND MANUFACTURING DATE; FAI: SAMPLE WITH SUPPLIER'S TEST RESULTS SHALL BE SENT TO PRODUCT DEVELOPMENT TO VERIFY RESULTS WITH TFR VIT AT THE DYNAMIC TEST FACILITY. INTERNAL USE: CRRC P/N: AB01007929/AB01012091; CRRC ASM DRAWING: AB01008302A ITEM 40; MAINTENANCE MANUAL: MM0408","EA",106,null,{"v":0,"d":"R0.00"},60,null,{"v":0,"d":"R0.00"},70,null,{"v":0,"d":"R0.00"},{"v":0,"d":"R0.00"},{"v":0,"d":"R0.00"}]
["071817888","JOINT; TYPE: MOTOR-BOOM, MATERIAL: RUBBER; APPLICATION: ELECTRIC LOCOMOTIVE CLASS 20E/21E MOTOR SUSPENSION; MATERIAL: MOLDED RUBBER AND STEEL; DRAWING: BBH6354; SPECIFICATION: BBH7010; PART SHALL BE MARKED WITH SUPPLIER'S NAME/LOGO AND MANUFACTURING DATE; FAI:SAMPLE WITH SUPPLIER'S TEST RESULTS SHALL BE SENT TO PRODUCT DEVELOPMENT TO VERIFY RESULTS WITH TFR VIT AT THE DYNAMIC TEST FACILITY. INTERNAL USE: CRRC P/N: JB00000460; CRRC ASM DRAWING: JB00000330 ITEM 2; MAINTENANCE MANUAL: MM0407","EA",212,null,{"v":0,"d":"R0.00"},120,null,{"v":0,"d":"R0.00"},140,null,{"v":0,"d":"R0.00"},{"v":0,"d":"R0.00"},{"v":0,"d":"R0.00"}]
["071817931","JOINT; TYPE: TIE-BAR-LARGE, MATERIAL: RUBBER; APPLICATION: ELECTRIC LOCOMOTIVE CLASS 20E/21E PRIMARY SUSPENSION; MATERIAL: MOLDED RUBBER AND STEEL; DRAWING: BBH5293; SPECIFICATION: BBH7010; PART SHALL BE MARKED WITH SUPPLIER'S NAME/LOGO AND MANUFACTURING DATE; FAI: SAMPLE WITH SUPPLIER'S TEST RESULTS SHALL BE SENT TO PRODUCT DEVELOPMENT TO VERIFY RESULTS WITH TFR VIT AT THE DYNAMIC TEST FACILITY. INTERNAL USE: CRRC P/N: AB01006821; CRRC ASM DRAWING: AB01006823A ITEM 2; MAINTENANCE MANUAL: MM0405","EA",424,null,{"v":0,"d":"R0.00"},240,null,{"v":0,"d":"R0.00"},280,null,{"v":0,"d":"R0.00"},{"v":0,"d":"R0.00"},{"v":0,"d":"R0.00"}]
["071817932","JOINT; TYPE: TIE-BAR-SMALL, MATERIAL: RUBBER; APPLICATION: ELECTRIC LOCOMOTIVE CLASS 20E/21E PRIMARY SUSPENSION; MATERIAL: MOLDED RUBBER AND STEEL; DRAWING: BBH6345; SPECIFICATION: BBH7010; PART SHALL BE MARKED WITH SUPPLIER'S NAME/LOGO AND MANUFACTURING DATE; FAI: SAMPLE WITH SUPPLIER'S TEST RESULTS SHALL BE SENT TO PRODUCT DEVELOPMENT TO VERIFY RESULTS WITH TFR VIT AT THE DYNAMIC TEST FACILITY. INTERNAL USE: CRRC P/N: AB01006822; CRRC ASM DRAWING: AB01006823A ITEM 12; MAINTENANCE MANUAL: MM0405","EA",848,null,{"v":0,"d":"R0.00"},480,null,{"v":0,"d":"R0.00"},560,null,{"v":0,"d":"R0.00"},{"v":0,"d":"R0.00"},{"v":0,"d":"R0.00"}]
["084865868","CAP; TYPE: DUSTPROOF, MATERIAL: MOULDED RUBBER; DRAWING NO: BBH7175, LA; SPECIFICATION: BBH7010, LA; APPLICATION: ELECTRIC LOCOMOTIVE CLASS 22E TRACTION DEVICE; PART SHALL BE MARKED WITH SUPPLIER'S NAME/LOGO AND MANUFACTURING DATE; FAI: SAMPLE WITH SUPPLIER'S TEST RESULTS SHALL BE SENT TO PRODUCT DEVELOPMENT TO VERIFY RESULTS WITH TFR VIT AT THE DYNAMIC TEST FACILITY. INTERNAL USE: CRRC P/N: AB01014569; CRRC ASM DRAWING: AB01013033A ITEM: 29; MAINTENANCE MANUAL: MM0408","EA",280,null,{"v":0,"d":"R0.00"},180,null,{"v":0,"d":"R0.00"},180,null,{"v":0,"d":"R0.00"},{"v":0,"d":"R0.00"},{"v":0,"d":"R0.00"}]
[]
["Material Category 34: "]
["068823151","GEARCASE, MOTOR APPLICATION ELECTRIC LOCOMOTIVE CLASS 20E TYPE ASSEMBLY BOGIE DRAWING NO: AB01007297G020 CSR CORPORATION LIMITED REV LATEST","EA",16,null,{"$f":"D281*E281","v":{"v":0,"d":"R0.00"}},4,null,{"$f":"G281*H281","v":{"v":0,"d":"R0.00"}},4,null,{"$f":"J281*K281","v":{"v":0,"d":"R0.00"}},{"$f":"SUM(L281+I281+F281)","v":{"v":0,"d":"R0.00"}},{"$f":"SUM(M281*1.15)","v":{"v":0,"d":"R0.00"}}]
["08422E0377","ASSEMBLY TYPE CONNECTION BAR ELECTRIC LOCOMOTIVE CLASS 22E DRAWING NO: AB01013033A CSR CORPORATION LIMITED REV LATEST ITEM 32, AB01013566A REV LATEST","EA",24,null,{"v":0,"d":"R0.00"},0,null,{"v":0,"d":"R0.00"},0,null,{"v":0,"d":"R0.00"},{"v":0,"d":"R0.00"},{"v":0,"d":"R0.00"}]
["08422E0378","PIN; TYPE: CONECTION; P/N: AB01013371A, CSR CORPORATION LIMITED; DRAWING NO: AB01013033A, ITEM: 21, CSR CORPORATION LIMITED; SPECIFICATION: 42CRMO GB/T3077-1999; USED ON: ELECTRIC LOCOMOTIVE CLASS 22E TRACTION DEVICE","EA",10,null,{"v":0,"d":"R0.00"},0,null,{"v":0,"d":"R0.00"},0,null,{"v":0,"d":"R0.00"},{"v":0,"d":"R0.00"},{"v":0,"d":"R0.00"}]
["08422E0428","ELBOW TYPE BIN P/N: AB01013370A CSR CORPORATION LIMITED USED ON: ELECTRIC LOCOMOTIVE CLASS 22E TRACTION DEVICE SPECIFICATION: 42CRMO, GB/T3077-1999 DRAWING NO: AB01013033A REV LATEST ITEM 26, AB01013370A REV LATEST","EA",5,null,{"v":0,"d":"R0.00"},0,null,{"v":0,"d":"R0.00"},0,null,{"v":0,"d":"R0.00"},{"v":0,"d":"R0.00"},{"v":0,"d":"R0.00"}]
["084827683","PIN; TYPE: TRACTION 1; DRAWING NO: AB01013033A, ITEM: 16; ELECTRIC LOCOMOTIVE CLASS 22E, TRACTION DEVICE","EA",5,null,{"v":0,"d":"R0.00"},0,null,{"v":0,"d":"R0.00"},0,null,{"v":0,"d":"R0.00"},{"v":0,"d":"R0.00"},{"v":0,"d":"R0.00"}]
["084827692","PIN; TYPE: TRACTION 2; DRAWING NO: AB01013033A-JC, ITEM: 11; ELECTRIC LOCOMOTIVE CLASS 22E, TRACTION DEVICE","EA",5,null,{"v":0,"d":"R0.00"},0,null,{"v":0,"d":"R0.00"},0,null,{"v":0,"d":"R0.00"},{"v":0,"d":"R0.00"},{"v":0,"d":"R0.00"}]
["084835645","COVER; TYPE: ASSEMBLY GEAR, MATERIAL: STEEL, APPLICATION: ELECTRIC LOCOMOTIVE CLASS 22E; P/N: AB01007371G020, CSR CORPORATION LIMITED","EA",24,null,{"v":0,"d":"R0.00"},6,null,{"v":0,"d":"R0.00"},6,null,{"v":0,"d":"R0.00"},{"v":0,"d":"R0.00"},{"v":0,"d":"R0.00"}]
["085833750","ASSEMBLY TYPE GEARCASE APPLICATION ELECTRIC LOCOMOTIVE CLASS 21E REFERENCE: MM0403 DRAWING NO: AB01007360G020 CSR CORPORATION LIMITED REV LATEST","EA",24,null,{"v":0,"d":"R0.00"},4,null,{"v":0,"d":"R0.00"},4,null,{"v":0,"d":"R0.00"},{"v":0,"d":"R0.00"},{"v":0,"d":"R0.00"}]
[]
["Material Category 35: "]
["085832377","PCB;P/N:TE496-050000,CL 22E\nBOARD, PRINTED CIRCUIT\nELECTRICAL LOCOMOTIVE  CLASS 22E","EA",10,null,{"$f":"D291*E291","v":{"v":0,"d":"R0.00"}},5,null,{"$f":"G291*H291","v":{"v":0,"d":"R0.00"}},0,null,{"$f":"J291*K291","v":{"v":0,"d":"R0.00"}},{"$f":"SUM(L291+I291+F291)","v":{"v":0,"d":"R0.00"}},{"$f":"SUM(M291*1.15)","v":{"v":0,"d":"R0.00"}}]
["085832380","PCB;P/N:TE6110030000-001,CL 22E\nBOARD, PRINTED CIRCUIT\nELECTRICAL LOCOMOTIVE  CLASS 22E","EA",10,null,{"v":0,"d":"R0.00"},5,null,{"v":0,"d":"R0.00"},0,null,{"v":0,"d":"R0.00"},{"v":0,"d":"R0.00"},{"v":0,"d":"R0.00"}]
["085832381","PCB;P/N:ZS826E-730-000,CL 22E\nBOARD, PRINTED CIRCUIT\nELECTRICAL LOCOMOTIVE  CLASS 22E","EA",10,null,{"v":0,"d":"R0.00"},5,null,{"v":0,"d":"R0.00"},0,null,{"v":0,"d":"R0.00"},{"v":0,"d":"R0.00"},{"v":0,"d":"R0.00"}]
["085832382","PCB;TE7709090000,CSR CORP;CL 22E\nBOARD, PRINTED CIRCUIT;\nELECTRICAL LOCOMOTIVE  CLASS 22E;\nTCU DIGITAL INPUT AND OUTPUT DIO","EA",10,null,{"v":0,"d":"R0.00"},5,null,{"v":0,"d":"R0.00"},0,null,{"v":0,"d":"R0.00"},{"v":0,"d":"R0.00"},{"v":0,"d":"R0.00"}]
["085832382R","REPAIR, UNIT;DIGITAL I/O;21E\nREPAIR, UNIT; TYPE: DIGITAL INPUT/OUTPUT, LOCATION: ELECTRIC LOCOMOTIVE CLASS 21E; CATALOGUE: MM0117, CRRC CORPORATION L\nWING NO: TE7709090000, LA; POWER CONVERTOR CUBICLE AND TRACTION CONTROL UNIT;\nLCC;\nP/N: TE7709090000 CRRC CORPORATION LI","EA",0,null,{"v":0,"d":"R0.00"},10,null,{"v":0,"d":"R0.00"},0,null,{"v":0,"d":"R0.00"},{"v":0,"d":"R0.00"},{"v":0,"d":"R0.00"}]
["085832383","PCB;TE283A000000,CSR CORP;CL 22E\nBOARD, PRINTED CIRCUIT; ELECTRICAL LOCOMOTIVE  CLASS 22E;\nTCU SWITCHING POWER SUPPLY PWU","EA",10,null,{"v":0,"d":"R0.00"},5,null,{"v":0,"d":"R0.00"},0,null,{"v":0,"d":"R0.00"},{"v":0,"d":"R0.00"},{"v":0,"d":"R0.00"}]
["085832385","PCB;P/N:TE6007100000,CL 22E\nBOARD, PRINTED CIRCUIT\nELECTRICAL LOCOMOTIVE  CLASS 22E","EA",12,null,{"v":0,"d":"R0.00"},0,null,{"v":0,"d":"R0.00"},0,null,{"v":0,"d":"R0.00"},{"v":0,"d":"R0.00"},{"v":0,"d":"R0.00"}]
[]
["Material Category 36: "]
["084837508","VALVE, RELIEF; TYPE: PRESSURE,LV74G-4GK-NMN; APPLICATION: ELECTRIC LOCOMOTIVE CLASS 20E/21E/22E PANTO CONTROL; MEDIUM: COMPRESSED AIR; MAX INLET PRESSURE: 20 BAR; RELIEF PRESSURE: 0.3 TO 10 BAR; OPERATING TEMP: -34C TO 80 °C; PORT SIZE: ISO G1/2\" PARALLEL; MANUFACTURER: NORGREN; MODEL: LV74G-4GK-NMN; SHOCK AND VIBRATION: EN 61373, CATEGORY 1, CLASS A AND B; INTERNAL USE: MAINTENANCE MANUAL: MM0101-ADD; 20E/21E/22E CODE: SI; REPLACES F74G-4GK-NMN","EA",70,null,{"$f":"D300*E300","v":{"v":0,"d":"R0.00"}},20,null,{"$f":"G300*H300","v":{"v":0,"d":"R0.00"}},20,null,{"$f":"J300*K300","v":{"v":0,"d":"R0.00"}},{"$f":"SUM(L300+I300+F300)","v":{"v":0,"d":"R0.00"}},{"$f":"SUM(M300*1.15)","v":{"v":0,"d":"R0.00"}}]
["084837522","VALVE, SOLENOID; TYPE: 2401153-0800-110-00; APPLICATION: ELECTRIC LOCOMOTIVE CLASS 22E PANTO CONTROL; TYPE: 3/2 WAY DIRECT SOLENOID ACTUATED POPPET VALVE; MEDIUM: COMPRESSED AIR; OPERATION: DIRECT SOLENOID; FLOW: 340 L/MIN; OPERATING PRESSURE: 0 - 10 BAR; OPERATING TEMP: -25C TO 80 °C; TEST CERT: IEC 61508 SIL 3; ORIFICE: 5MM; HOUSING: BRASS; MANUAL OVERRIDE: NONE; PORT SIZE: ISO G1/4\"; SOLENOID TYPE: 0800; CONNECTOR: DIN EN 175301-803 FORM A (DIN 43650 A); VOLTAGE: 110V DC; MANUFACTURER: NORGREN; ORDER: 2401153-08 00-110-00; ALTERNATIVE: VR24B9665-0147P; INTERNAL USE: MAINTENANCE MANUAL: MM0101-ADD; CODE: VE","EA",70,null,{"v":0,"d":"R0.00"},20,null,{"v":0,"d":"R0.00"},20,null,{"v":0,"d":"R0.00"},{"v":0,"d":"R0.00"},{"v":0,"d":"R0.00"}]
["084837523","VALVE, SOLENOID; TYPE: 9710535-0242-110-00; APPLICATION: ELECTRIC LOCOMOTIVE CLASS 22E PANTO CONTROL; TYPE: 5/2 WAY INLINE SOLENOID ACTUATED SPOOL VALVE; MEDIUM: COMPRESSED AIR; ACTUATION/RETURN: SOLENOID/SPRING; FLOW: 1300 L/MIN; OPERATING PRESSURE: 2.5 - 8 BAR; OPERATING TEMP: -40C TO 65 °C; TEST CERT: IEC 61508; ORIFICE: 6MM; PORT SIZE: ISO G1/4\"; SOLENOID TYPE: 0242; VOLTAGE: 110V DC; CONNECTOR: DIN EN 175301-803, FORM A (DIN 43650 A) MANUFACTURER: NORGREN; ORDER CODE: 9710535-0242-110-00; ALTERNATIVE: VR61B517A-D127N; INTERNAL USE: MAINTENANCE MANUAL: MM0101-ADD; CODE: MV5/2","EA",70,null,{"v":0,"d":"R0.00"},20,null,{"v":0,"d":"R0.00"},20,null,{"v":0,"d":"R0.00"},{"v":0,"d":"R0.00"},{"v":0,"d":"R0.00"}]
["084853641","VALVE, RELIEF; TYPE: PRESSURE, 30981698 CRRC, 21E, APPLICATION: ELECTRIC LOCOMOTIVE CLASS 20/21/22E; P/N: 30981698, CRRC CORPORATION LIMITED; PRESSURE RELIEVE VALVE USE: CLASS 20E/21E/22E, SAFETY VALVE P/N: 30981698, MODEL/TYPE: 501-A CORPORATION LIMITED; E CLASS 20E/21E/22E REFERENCE MANUAL: MM0115","EA",35,null,{"v":0,"d":"R0.00"},0,null,{"v":0,"d":"R0.00"},0,null,{"v":0,"d":"R0.00"},{"v":0,"d":"R0.00"},{"v":0,"d":"R0.00"}]
["085874894","VALVE, RELIEF; TYPE: PRESSURE; P/N: FM1815-S3 , CSR CORPORATION LIMITED; PRESSURE RELIEVE VALVE, MICRO SWITCH ASSEMBLY USE: CLASS 20E/21E/22E, TYPE OF SENSOR LIMIT SWITCH E CLASS 20E/21E/22E","EA",15,null,{"v":0,"d":"R0.00"},0,null,{"v":0,"d":"R0.00"},0,null,{"v":0,"d":"R0.00"},{"v":0,"d":"R0.00"},{"v":0,"d":"R0.00"}]
[]
["Material Category 37: "]
["013826918","HOSE AIR DUCT;P/N:3910000974,22E\nHOSE, AIR DUCT\nP/N: 3910000974 CSR CORPORATION LIMITED\nELECTRIC LOCOMOTIVE CLASS 22E\nFLEXIBLE AIR DUCT INSTALLATION\nDRAWING NO: AJA1013508A CSR CORPORATION\nLIMITED REV LATEST ITEM 1",null,440,null,{"$f":"D307*E307","v":{"v":0,"d":"R0.00"}},280,null,{"$f":"G307*H307","v":{"v":0,"d":"R0.00"}},280,null,{"$f":"J307*K307","v":{"v":0,"d":"R0.00"}},{"$f":"SUM(L307+I307+F307)","v":{"v":0,"d":"R0.00"}},{"$f":"SUM(M307*1.15)","v":{"v":0,"d":"R0.00"}}]
[]
["Material Category 38: "]
["062823201","HORN;AIR H/TONE,ELEC LOCO CL 20E\nHORN\nTYPE AIR HIGH TONE\nAPPLICATION ELECTRIC LOCOMOTIVE CLASS 20E\nSPECIFICATION: GZD7053F1\nDRAWING NO: 80003911000020 CSR CORPORATION LIMITED REV LATEST","EA",15,null,{"$f":"D310*E310","v":{"v":0,"d":"R0.00"}},0,null,{"$f":"G310*H310","v":{"v":0,"d":"R0.00"}},0,null,{"$f":"J310*K310","v":{"v":0,"d":"R0.00"}},{"$f":"SUM(L310+I310+F310)","v":{"v":0,"d":"R0.00"}},{"$f":"SUM(M310*1.15)","v":{"v":0,"d":"R0.00"}}]
["062823202","HORN;80003911000021,CSR CORP\nHORN;\nTYPE: AIR LOW TONE,\nAPPLICATION: ELECTRIC LOCOMOTIVE CLASS 20E;\nP/N: 80003911000021, CSR CORPORATION LIMITED;\nSPECIFICATION:GZD7053B3","EA",15,null,{"v":0,"d":"R0.00"},0,null,{"v":0,"d":"R0.00"},0,null,{"v":0,"d":"R0.00"},{"v":0,"d":"R0.00"},{"v":0,"d":"R0.00"}]
[]
["Material Category 39: "]
["084823256","MODULE;80006990005733,CSR CORP\nMODULE;\nTYPE: GWM GATEWAY,\nAPPLICATION: ELECTRIC LOCOMOTIVE CLASS 20E;\nSPECIFICATION: ZS826E-112-000","EA",20,null,{"$f":"D314*E314","v":{"v":0,"d":"R0.00"}},0,null,{"$f":"G314*H314","v":{"v":0,"d":"R0.00"}},0,null,{"$f":"J314*K314","v":{"v":0,"d":"R0.00"}},{"$f":"SUM(L314+I314+F314)","v":{"v":0,"d":"R0.00"}},{"$f":"SUM(M314*1.15)","v":{"v":0,"d":"R0.00"}}]
["085817534","MODULE;DXME,P/N:ZR6990005738\nMODULE\nTYPE DXME\nP/N: ZR6990005738 CSR CORPORATION LIMITED\n20E CAB CN+EN","EA",5,null,{"v":0,"d":"R0.00"},0,null,{"v":0,"d":"R0.00"},0,null,{"v":0,"d":"R0.00"},{"v":0,"d":"R0.00"},{"v":0,"d":"R0.00"}]
["085823257","MODULE;ANALOG I/O AXM\nMODULE\nTYPE ANALOG INPUT/OUTPUT AXM\nAPPLICATION ELECTRIC LOCOMOTIVE CLASS 20E/22E\nP/N: 80006990005740 CSR CORPORATION LIMITED\nSPECIFICATION: ZS826E-262-000\nDRAWING NO: 80006990005740 CSR CORPORATION LIMITED REV LATEST","EA",20,null,{"v":0,"d":"R0.00"},0,null,{"v":0,"d":"R0.00"},0,null,{"v":0,"d":"R0.00"},{"v":0,"d":"R0.00"},{"v":0,"d":"R0.00"}]
["085823258","MODULE;80006990004275,CSR CORP;20E\nMODULE;\nTYPE: DIGITAL DIM INPUT,\nAPPLICATION: ELECTRIC LOCOMOTIVE CLASS 20E","EA",20,null,{"v":0,"d":"R0.00"},0,null,{"v":0,"d":"R0.00"},0,null,{"v":0,"d":"R0.00"},{"v":0,"d":"R0.00"},{"v":0,"d":"R0.00"}]
["085823260","MODULE;ELECT RECORD MACH,20E/22E\nMODULE\nTYPE ELECTRONIC RECORDING MACHINE\nELECTRIC LOCOMOTIVE CLASS 20E/22E\nSPECIFICATION: ZS826E-113-000\nDRAWING NO: 80006990005735 CSR CORPORATION LIMITED REV LATEST","EA",10,null,{"v":0,"d":"R0.00"},0,null,{"v":0,"d":"R0.00"},0,null,{"v":0,"d":"R0.00"},{"v":0,"d":"R0.00"},{"v":0,"d":"R0.00"}]
["085823313R","REPAIR, UNIT;CONVRT MODULE;21E\nREPAIR, UNIT;\nTYPE: CONVERTER MODULE,\nADDITIONAL EQUIPMENT: INV1/INV2/4QC1/4QC2,\nLOCATION: ELECTRIC LOCOMOTIVE CLASS 21E;\nCATALOGUE: MM0117, CRRC CORPORATION LIMITED;\nDRAWING NO: TE6921910000, LA;\nPOWER CONVERTOR CUBICLE AND TRACTION CONTROL UNIT;\nLCC;\nP/N: TE6921910000 CRRC CORPORATION LIMITED","EA",100,null,{"v":0,"d":"R0.00"},0,null,{"v":0,"d":"R0.00"},0,null,{"v":0,"d":"R0.00"},{"v":0,"d":"R0.00"},{"v":0,"d":"R0.00"}]
["085823314R","REPAIR, UNIT;IGBT MOD,ELEC LOCO CL 22E\nREPAIR, UNIT;\nTYPE: INSOLATED GATE BIPOLAR TRANSISTOR MODULE,\nLOCATION: ELECTRIC LOCOMOTIVE CLASS 22E","EA",50,null,{"v":0,"d":"R0.00"},0,null,{"v":0,"d":"R0.00"},0,null,{"v":0,"d":"R0.00"},{"v":0,"d":"R0.00"},{"v":0,"d":"R0.00"}]
["085832312","MODULE;TYPE: ANTENNA COMBINER;ANTENNA COMBINER (A82)USE: CLASS 20E/21E/22E, WTD AND POWER MANAGEMENT SYSTEM,P/N:80006200001277, MODEL/DRW NO: W200000053,CSR CORPORATION LIMITED;E CLASS 20E/21E REFERENCE MANUAL: MM0702","EA",20,null,{"v":0,"d":"R0.00"},0,null,{"v":0,"d":"R0.00"},0,null,{"v":0,"d":"R0.00"},{"v":0,"d":"R0.00"},{"v":0,"d":"R0.00"}]
["085840780 ","MODULE;LED DC H/VOLT DSP;MOD:DJ4000\nMODULE;\nTYPE: LIGHT EMITTING DIODES\nDIRECT CURRENT HIGH VOLTAGE DISPLAY,\nAPPLICATION: ELECTRIC LOCOMOTIVE CLASS 20E AND 21E;\nP/N: W600001688, CSR CORPORATION LIMITED;\nMODEL NO: DJ4000;  MM0117","EA",15,null,{"v":0,"d":"R0.00"},0,null,{"v":0,"d":"R0.00"},0,null,{"v":0,"d":"R0.00"},{"v":0,"d":"R0.00"},{"v":0,"d":"R0.00"}]
["085844088","MODULE;TE629-070000,CRRC;PULSE DB;21E\nMODULE;\nTYPE: PULSE DISTRIBUTION,\nAPPLICATION: ELECTRIC LOCOMOTIVE CLASS 21E;\nP/N: TE629-070000, CRRC CORPORATION LIMITED;\nELECTRIC LOCOMOTIVE CLASS 21E","EA",10,null,{"v":0,"d":"R0.00"},5,null,{"v":0,"d":"R0.00"},0,null,{"v":0,"d":"R0.00"},{"v":0,"d":"R0.00"},{"v":0,"d":"R0.00"}]
["085844089","MODULE;TE6290060000,CRRC;ANALOG INPUT A\nMODULE;\nTYPE: ANALOGUE INPUT A,\nAPPLICATION: ELECTRIC LOCOMOTIVE CLASS 21E;\nP/N: TE6290060000, CRRC CORPORATION LIMITED;\nELECTRIC LOCOMOTIVE CLASS 21E","EA",10,null,{"v":0,"d":"R0.00"},5,null,{"v":0,"d":"R0.00"},0,null,{"v":0,"d":"R0.00"},{"v":0,"d":"R0.00"},{"v":0,"d":"R0.00"}]
["085844090","MODULE;TE6290080000,CRRC;ANALOG INPUT B\nMODULE;\nTYPE: ANALOGUE INPUT B,\nAPPLICATION: ELECTRIC LOCOMOTIVE CLASS 21E;\nP/N: TE6290080000, CRRC CORPORATION LIMITED","EA",10,null,{"v":0,"d":"R0.00"},5,null,{"v":0,"d":"R0.00"},0,null,{"v":0,"d":"R0.00"},{"v":0,"d":"R0.00"},{"v":0,"d":"R0.00"}]
["085844091","MODULE;TE6225040000,CRRC;NET SIDE SIGNAL\nMODULE;\nTYPE: NET SIDE SIGNAL,\nAPPLICATION: ELECTRIC LOCOMOTIVE CLASS 21E;\nP/N: TE6225040000, CRRC CORPORATION LIMITED","EA",10,null,{"v":0,"d":"R0.00"},5,null,{"v":0,"d":"R0.00"},0,null,{"v":0,"d":"R0.00"},{"v":0,"d":"R0.00"},{"v":0,"d":"R0.00"}]
["085844092","MODULE;TE6168020000,CRRC;NET SIDE CNTL\nMODULE;\nTYPE: NET SIDE CONTROL,\nAPPLICATION: ELECTRIC LOCOMOTIVE CLASS 21E;\nP/N: TE6168020000, CRRC CORPORATION LIMITED","EA",10,null,{"v":0,"d":"R0.00"},5,null,{"v":0,"d":"R0.00"},0,null,{"v":0,"d":"R0.00"},{"v":0,"d":"R0.00"},{"v":0,"d":"R0.00"}]
["085844094","MODULE;TE6168010000,CRRC;MOTOR CNTL;21E\nMODULE;\nTYPE: MOTOR CONTROL,\nAPPLICATION: ELECTRIC LOCOMOTIVE CLASS 21E;\nP/N: TE6168010000, CRRC CORPORATION LIMITED","EA",10,null,{"v":0,"d":"R0.00"},5,null,{"v":0,"d":"R0.00"},0,null,{"v":0,"d":"R0.00"},{"v":0,"d":"R0.00"},{"v":0,"d":"R0.00"}]
["085844096","MODULE;TE6168200000,CRRC;AUX INVERT CNTL\nMODULE;\nTYPE: AUXILIARY INVERTER CONTROL,\nAPPLICATION: ELECTRIC LOCOMOTIVE CLASS 21E;\nP/N: TE6168200000, CRRC CORPORATION LIMITED","EA",10,null,{"v":0,"d":"R0.00"},5,null,{"v":0,"d":"R0.00"},0,null,{"v":0,"d":"R0.00"},{"v":0,"d":"R0.00"},{"v":0,"d":"R0.00"}]
[]
["Material Category 40: "]
["054849030","MODULE;\nTYPE: INSOLATED GATE BIPOLAR TRANSISTOR\nDEVICE FZ-750R65 KE 3, MAIN;\nSPECIFICATION: RD_RD_KLP_SPEC_0072, LA, ITEM: 6.1;\nUSE ON ELECTRIC LOCOMOTIVE CLASS 20/21/22E;\nMAIN INVERTOR","EA",120,null,{"$f":"D332*E332","v":{"v":0,"d":"R0.00"}},20,null,{"$f":"G332*H332","v":{"v":0,"d":"R0.00"}},20,null,{"$f":"J332*K332","v":{"v":0,"d":"R0.00"}},{"$f":"SUM(L332+I332+F332)","v":{"v":0,"d":"R0.00"}},{"$f":"SUM(M332*1.15)","v":{"v":0,"d":"R0.00"}}]
["054849031","MODULE;\nTYPE: IGBT DEVICE FZ- 600R65 KE 3, AUX;\nSPECIFICATION: RD_RD_KLP_SPEC_0072, LA, ITEM: 6.2;\nUSE ON ELECTRIC LOCOMOTIVE CLASS 20/21/22E;\nAUXILIARY INVERTOR","EA",120,null,{"v":0,"d":"R0.00"},20,null,{"v":0,"d":"R0.00"},20,null,{"v":0,"d":"R0.00"},{"v":0,"d":"R0.00"},{"v":0,"d":"R0.00"}]
["085823313","MODULE;CONVRT;20/22E\nMODULE;\nTYPE: CONVERTER;\nSPECIFICATION: RD_RD_KLP_SPEC_0072, LA;\n(FOUR-QUADRANT/MAIN INVERTER);\nELECTRIC LOCOMOTIVE CLASS 20E; 22E;\nFUNCTION: FOUR QUADRANT RECTIFIER, CHANGE THE INPUT AC\nTO THE INTERMEDIATE DC VOLTAGE.\nMAINTENANCE MANUAL: MM0117","EA",24,null,{"v":0,"d":"R0.00"},0,null,{"v":0,"d":"R0.00"},0,null,{"v":0,"d":"R0.00"},{"v":0,"d":"R0.00"},{"v":0,"d":"R0.00"}]
["085823314","MODULE;CONVRT;20E/22E\nMODULE;\nTYPE: CONVERTER;\nSPECIFICATION: RD_RD_KLP_SPEC_0072, LA;\n(AUXILIARY INVERTER);\nELECTRIC LOCOMOTIVE CLASS 20E; 22E;\nFUNCTION: VVVF INVERTER, CHANGE THE INTERMEDIATE DC\nVOLTAGE TO 3 PHASE ALTERNATING CURRENT.\nMAINTENANCE MANUAL: MM0117","EA",12,null,{"v":0,"d":"R0.00"},0,null,{"v":0,"d":"R0.00"},0,null,{"v":0,"d":"R0.00"},{"v":0,"d":"R0.00"},{"v":0,"d":"R0.00"}]
[]
["Material Category 41: "]
["085832312","MODULE;TYPE: ANTENNA COMBINER;ANTENNA COMBINER (A82)USE: CLASS 20E/21E/22E, WTD AND POWER MANAGEMENT SYSTEM,P/N:80006200001277, MODEL/DRW NO: W200000053,CSR CORPORATION LIMITED;E CLASS 20E/21E REFERENCE MANUAL: MM0702","EA",20,null,{"$f":"D338*E338","v":{"v":0,"d":"R0.00"}},0,null,{"$f":"G338*H338","v":{"v":0,"d":"R0.00"}},0,null,{"$f":"J338*K338","v":{"v":0,"d":"R0.00"}},{"$f":"SUM(L338+I338+F338)","v":{"v":0,"d":"R0.00"}},{"$f":"SUM(M338*1.15)","v":{"v":0,"d":"R0.00"}}]
["085874887"," MODULE; TYPE: FULL CONTACT CONTENDER TELEVISION, NVR; P/N: W600001787, CSR CORPORATION LIMITED; FCCTV AUDIO AND VIDEO RECORDING MODULE (A86) USE: CLASS 20E/21E/22E, FCCTV SYSTEM, P/N: W600001787, CSR CORPORATION LIMITED; E CLASS 20E/21E/22E; REFERENCE MANUAL: MM0744","EA",20,null,{"v":0,"d":"R0.00"},0,null,{"v":0,"d":"R0.00"},0,null,{"v":0,"d":"R0.00"},{"v":0,"d":"R0.00"},{"v":0,"d":"R0.00"}]
["085823264"," MODULE; TYPE: FIRE ALARM (A91), APPLICATION: ELECTRIC LOCOMOTIVE CLASS 20E/21E/22E; FIRE ALARM MODULE (A91) USE: CLASS 20E/21E/22E, SMOKE DETECTION SYSTEM, P/N: 80003395000070, TYPE: JMFCU01ST, CSR CORPORATION LIMITED; E CLASS 20E/21E/22E; REFERENCE MANUAL: MM0141 /MM0703","EA",10,null,{"v":0,"d":"R0.00"},0,null,{"v":0,"d":"R0.00"},0,null,{"v":0,"d":"R0.00"},{"v":0,"d":"R0.00"},{"v":0,"d":"R0.00"}]
[]
["Material Category 42: "]
["085874891"," DEVICE; TYPE: WIRELESS DATA TRANSMIT DEVICE-A, 22E; P/N: 80006200002580, CSR CORPORATION LIMITED; WIRELESS DATA TRANSMIT DEVICE (WTD-A) (A81) USE: CLASS 22E, WTD AND POWER MANAGEMENT  SYSTEM, E CLASS 22E REFERENCE MANUAL: MM0702","EA",5,null,{"$f":"D343*E343","v":{"v":0,"d":"R0.00"}},0,null,{"$f":"G343*H343","v":{"v":0,"d":"R0.00"}},0,null,{"$f":"J343*K343","v":{"v":0,"d":"R0.00"}},{"$f":"SUM(L343+I343+F343)","v":{"v":0,"d":"R0.00"}},{"$f":"SUM(M343*1.15)","v":{"v":0,"d":"R0.00"}}]
["085823272"," MODULE; TYPE: WIRELESS DATA HOST WHAT TO DO A81, APPLICATION: ELECTRIC LOCOMOTIVE CLASS 20E/21E; WIRELESS DATA TRANSMIT DEVICE WTD HOST (A81) USE: CLASS 20E/21E, WTD AND POWER MANAGEMENT  SYSTEM, P/N:80006200001274, CSR CORPORATION LIMITED; E CLASS 20E/21E REFERENCE MANUAL: MM0702","EA",5,null,{"v":0,"d":"R0.00"},0,null,{"v":0,"d":"R0.00"},0,null,{"v":0,"d":"R0.00"},{"v":0,"d":"R0.00"},{"v":0,"d":"R0.00"}]
["085874892"," DEVICE; TYPE: WIRELESS DATA TRANSMIT DEVICE-B, 22E; P/N: 80006200002581, CSR CORPORATION LIMITED; WIRELESS DATA TRANSMIT DEVICE (WTD-B)  (A83) USE: CLASS 22E, WTD AND POWER MANAGEMENT  SYSTEM, E CLASS 22E REFERENCE MANUAL: MM0702","EA",5,null,{"v":0,"d":"R0.00"},0,null,{"v":0,"d":"R0.00"},0,null,{"v":0,"d":"R0.00"},{"v":0,"d":"R0.00"},{"v":0,"d":"R0.00"}]
["085817979","ANTENNA TYPE WIRELESS DATA TRANSMISSION P/N: ZR6200001299 CSR CORPORATION LIMITED ELECTRIC LOCOMOTIVE CLASS 20E/22E SPECIFICATION: W200000054 CSR CORPORATION LIMITED DRAWING NO: ZR6200001299 CSR CORPORATION LIMITED REV LATEST","EA",20,null,{"v":0,"d":"R0.00"},0,null,{"v":0,"d":"R0.00"},0,null,{"v":0,"d":"R0.00"},{"v":0,"d":"R0.00"},{"v":0,"d":"R0.00"}]
[]
["Material Category 43: "]
["085832384","BOARD, PRINTED CIRCUIT; TYPE: UNDER FILTAGE FILTER; UNDER VILTAGE FILTER CARD USE: CLASS 20E/21E/22E P/N:TE431-030000, CSR CORPORATION LIMITED; E CLASS 20E/21E/22E REFERENCE MANUAL: MM0117","EA",10,null,{"$f":"D349*E349","v":{"v":0,"d":"R0.00"}},5,null,{"$f":"G349*H349","v":{"v":0,"d":"R0.00"}},0,null,{"$f":"J349*K349","v":{"v":0,"d":"R0.00"}},{"$f":"SUM(L349+I349+F349)","v":{"v":0,"d":"R0.00"}},{"$f":"SUM(M349*1.15)","v":{"v":0,"d":"R0.00"}}]
["085844177","PAD; TYPE: OVERVOLTAGE ABSORBENT B1-B4; OVERVOLTAGE ABSORBENT PAD ASSEMBLY B1 - B4 USE: CLASS 20E/21E/22E P/N: QB1A-00-00, CSR CORPORATION LIMITED; E CLASS 20E/21E/22E REFERENCE MANUAL: MM0117","EA",16,null,{"v":0,"d":"R0.00"},8,null,{"v":0,"d":"R0.00"},0,null,{"v":0,"d":"R0.00"},{"v":0,"d":"R0.00"},{"v":0,"d":"R0.00"}]
[]
["Material Category 44: "]
["084819404","FITTING;1621008191,CSR CORP;22E\nFITTING; P/N: 1621008191, CSR CORPORATION LIMITED;\nNVNV CONNECTOR;\nTYPE: NVNV-M162-10;\nAXLE NO: 1,2,5 AND 6","EA",10,null,{"$f":"D353*E353","v":{"v":0,"d":"R0.00"}},0,null,{"$f":"G353*H353","v":{"v":0,"d":"R0.00"}},0,null,{"$f":"J353*K353","v":{"v":0,"d":"R0.00"}},{"$f":"SUM(L353+I353+F353)","v":{"v":0,"d":"R0.00"}},{"$f":"SUM(M353*1.15)","v":{"v":0,"d":"R0.00"}}]
["084844169","SOCKET;W70200024301,CRRC;21E\nSOCKET;\nP/N: W70200024301, CRRC CORPORATION LIMITED;\nCATALOGUE: MM0144, CRRC CORPORATION LIMITED;\nDRAWING NO: XCB27F24ZD/24, LA, CRRC CORPORATION LIMITED; QUANTITY PER\nCONVERTER CABINET: 3;\nCIRCULAR;\nELECTRIC LOCOMOTIVE CLASS 21E;\nPOWER CONVERTOR CUBICLE AND TRACTION CONTROL UNIT","EA",10,null,{"v":0,"d":"R0.00"},0,null,{"v":0,"d":"R0.00"},0,null,{"v":0,"d":"R0.00"},{"v":0,"d":"R0.00"},{"v":0,"d":"R0.00"}]
["085818198","CONTACT ELECT;ZR7701006703,CSR CORP;22E\nCONTACT, ELECTRICAL; P/N: ZR7701006703, CSR CORPORATION LIMITED; ELECTRIC LOCOMOTIVE CLASS 22E;\nTYPE: YG4506 22004;\nAXLE","EA",0,null,{"v":0,"d":"R0.00"},0,null,{"v":0,"d":"R0.00"},0,null,{"v":0,"d":"R0.00"},{"v":0,"d":"R0.00"},{"v":0,"d":"R0.00"}]
["085818200","SKT ELEC;ZR7701006701,CSR CORP;22E\nSOCKET, ELECTRICAL; P/N: ZR7701006701, CSR CORPORATION LIMITED; ELECTRIC LOCOMOTIVE CLASS 22E;\nTYPE : YGC-QS13K5ZY-B;\nAX\n5 AND 6","EA",110,null,{"v":0,"d":"R0.00"},10,null,{"v":0,"d":"R0.00"},5,null,{"v":0,"d":"R0.00"},{"v":0,"d":"R0.00"},{"v":0,"d":"R0.00"}]
["085823327","RESISTOR;P/N: W400000290,CSR CORP\nRESISTOR; ELECTRIC LOCOMOTIVE CLASS 20E; 22E","EA",35,null,{"v":0,"d":"R0.00"},5,null,{"v":0,"d":"R0.00"},5,null,{"v":0,"d":"R0.00"},{"v":0,"d":"R0.00"},{"v":0,"d":"R0.00"}]
["085823329","RESISTOR FIXED;W400000827,CSR CORP\nRESISTOR, FIXED;\nTYPE: DISCHARGING;\nELECTRIC LOCOMOTIVE CLASS 20E; 22E","EA",35,null,{"v":0,"d":"R0.00"},5,null,{"v":0,"d":"R0.00"},5,null,{"v":0,"d":"R0.00"},{"v":0,"d":"R0.00"},{"v":0,"d":"R0.00"}]
["085844163","SHELL ELEC CONNECTOR;W70700300100,CRRC\nSHELL, ELECTRICAL CONNECTOR;\nTYPE: BOTTOM;\nP/N: W70700300100, CRRC CORPORATION LIMITED;\nCATALOGUE: MM0144, CRRC CORPORATION LIMITED;\nDRAWING NO: 9300100301, LA, CRRC CORPORATION LIMITED;\nQUANTITY PER CONVERTER CABINET: 3;\nFOR CONNECTOR X1,X2,X3;\nELECTRIC LOCOMOTIVE CLASS 21E;\nPOWER CONVERTOR CUBICLE AND TRACTION CONTROL UNIT","EA",10,null,{"v":0,"d":"R0.00"},0,null,{"v":0,"d":"R0.00"},0,null,{"v":0,"d":"R0.00"},{"v":0,"d":"R0.00"},{"v":0,"d":"R0.00"}]
["085844167","RESISTOR ASSY;W4000001757,CRRC;21E\nRESISTOR ASSEMBLY; TYPE: CHARGING ASSEMBLY R2; P/N: W4000001757, CRRC CORPORATION LIMITED; CATALOGUE: MM0144, CRRC CORPO\nTED; DRAWING NO: RX-20KJ-65?±5%, LA, CRRC CORPORATION LIMITED; ELECTRIC LOCOMOTIVE CLASS 21E;\nPOWER CONVERTOR CUBICLE AN\nCONTROL UNIT","EA",35,null,{"v":0,"d":"R0.00"},5,null,{"v":0,"d":"R0.00"},5,null,{"v":0,"d":"R0.00"},{"v":0,"d":"R0.00"},{"v":0,"d":"R0.00"}]
["085844168","RESISTOR ASSY;W4000001758,CRRC;21E\nRESISTOR ASSEMBLY;\nTYPE: CHARGING ASSEMBLY R5;\nP/N: W4000001758, CRRC CORPORATION LIMITED;\nCATALOGUE: MM0144, CRRC CORPORATION LIMITED;\nDRAWING NO: RXGI-20KJ-65RJ, LA, CRRC CORPORATION LIMITED; ELECTRIC\nLOCOMOTIVE CLASS 21E;\nPOWER CONVERTOR CUBICLE AND TRACTION\nCONTROL UNIT","EA",35,null,{"v":0,"d":"R0.00"},5,null,{"v":0,"d":"R0.00"},5,null,{"v":0,"d":"R0.00"},{"v":0,"d":"R0.00"},{"v":0,"d":"R0.00"}]
["085844171","CONNECTOR;TE6918A50010,CRRC;21E/22E\nCONNECTOR; P/N: TE6918A50010, CRRC CORPORATION LIMITED; CATALOGUE: MM0144, CRRC CORPORATION LIMITED; DRAWING NO: TE6918A\nCRRC CORPORATION LIMITED; QUANTITY PER CONVERTER CABINET: 2;\nELECTRIC LOCOMOTIVE CLASS 21E;\nPOWER CONVERTOR CUBICLE AND\nNTROL UNIT","EA",10,null,{"v":0,"d":"R0.00"},0,null,{"v":0,"d":"R0.00"},0,null,{"v":0,"d":"R0.00"},{"v":0,"d":"R0.00"},{"v":0,"d":"R0.00"}]
["085844176","CONNECTOR;W70700100730,CRRC;JACK;21E\nCONNECTOR;\nTYPE: JACK;\nP/N: W70700100730, CRRC CORPORATION LIMITED;\nCATALOGUE: MM0144, CRRC CORPORATION LIMITED;\nDRAWING NO: 9150006202, LA, CRRC CORPORATION LIMITED;\nCONNECTOR X1/X2/X3/X5;\nQUANTITY PER CONVERTER CABINET: 65;\nELECTRIC LOCOMOTIVE CLASS 21E;\nPOWER CONVERTOR CUBICLE  AND TRACTION CONTROL UNIT","EA",500,null,{"v":0,"d":"R0.00"},0,null,{"v":0,"d":"R0.00"},0,null,{"v":0,"d":"R0.00"},{"v":0,"d":"R0.00"},{"v":0,"d":"R0.00"}]
["085844181","PIN ELEC CONECT;W70700100700,CRRC;21E\nPIN, ELECTRICAL CONNECTOR; APPLICATION: ELECTRIC LOCOMOTIVE CLASS 21E; P/N: W70700100700, CRRC CORPORATION LIMITED; CATA\n44, CRRC CORPORATION LIMITED; DRAWING NO: 9150006103, LA, CRRC CORPORATION LIMITED; CONTACT X1,X2,X3,X5;\nQUANTITY PER CO\nINET: 65;\nELECTRIC LOCOMOTIVE CLASS 21E;\nPOWER CONVERTOR CUBICLE AND TRACTION CONTROL UNIT","EA",500,null,{"v":0,"d":"R0.00"},0,null,{"v":0,"d":"R0.00"},0,null,{"v":0,"d":"R0.00"},{"v":0,"d":"R0.00"},{"v":0,"d":"R0.00"}]
["085844185","SKT ELEC;RECT CONECT X5;21E\nSOCKET, ELECTRICAL; TYPE: RECTANGULAR CONNECTOR X5; P/N: W70500006200, CRRC CORPORATION LIMITED; CATALOGUE: MM0144, CRRC\nN LIMITED; DRAWING NO: 0933 006 2701\\\\6 CORE, LA, CRRC CORPORATION LIMITED; QUANTITY PER CONVERTER CABINET: 1;\nELECTRIC\nCLASS 21E;\nPOWER CONVERTOR CUBICLE  AND TRACTION CONTROL UNIT","EA",10,null,{"v":0,"d":"R0.00"},0,null,{"v":0,"d":"R0.00"},0,null,{"v":0,"d":"R0.00"},{"v":0,"d":"R0.00"},{"v":0,"d":"R0.00"}]
["085844186","SKT ELEC;RECTR CONECT X1/X2/X3;21E\nSOCKET, ELECTRICAL; TYPE: RECTANGULAR CONNECTOR X1/X2/X3; P/N: W70500042000, CRRC CORPORATION LIMITED; CATALOGUE: MM0144\nORATION LIMITED; DRAWING NO: 9160423101, LA, CRRC CORPORATION LIMITED; QUANTITY PER CONVERTER CABINET: 3;\nELECTRIC LOCOM\n21E;\nPOWER CONVERTOR CUBICLE  AND TRACTION CONTROL UNIT","EA",10,null,{"v":0,"d":"R0.00"},0,null,{"v":0,"d":"R0.00"},0,null,{"v":0,"d":"R0.00"},{"v":0,"d":"R0.00"},{"v":0,"d":"R0.00"}]
["085844191","COVER;TOP SHELL X1/X2/X3;21E\nCOVER;\nTYPE: TOP SHELL X1/X2/X3;\nP/N: W70700200117G, CRRC CORPORATION LIMITED;\nCATALOGUE: MM0144, CRRC CORPORATION LIMITED;\nDRAWING NO: 19300100527, LA, CRRC CORPORATION LIMITED;\nQUANTITY PER CONVERTER CABINET: 3;\nELECTRIC LOCOMOTIVE CLASS 21E;\nPOWER CONVERTOR CUBICLE  AND TRACTION CONTROL UNIT","EA",10,null,{"v":0,"d":"R0.00"},0,null,{"v":0,"d":"R0.00"},0,null,{"v":0,"d":"R0.00"},{"v":0,"d":"R0.00"},{"v":0,"d":"R0.00"}]
["071817855","JUNCTION BOX;6911001275,CSR CORP;20E/22E\nJUNCTION BOX;\nP/N: 6911001275, CSR CORPORATION LIMITED;\nELECTRIC LOCOMOTIVE CLASS 20E/22E;\nREFERENCE TO AB01013861A","EA",12,null,{"v":0,"d":"R0.00"},2,null,{"v":0,"d":"R0.00"},2,null,{"v":0,"d":"R0.00"},{"v":0,"d":"R0.00"},{"v":0,"d":"R0.00"}]
["085821547","CONNECTOR CABLE;P/N:3451000158,20E\nCONNECTOR, CABLE\nP/N: 3451000158 CSR CORPORATION LIMITED\nELECTRIC LOCOMOTIVE CLASS 20E\nSPECIFICATION: 25M 0207B00411\nDRAWING NO: ZRAJE1000852 CSR CORPORATION LIMITED REV LATEST\nITEM 162 ORDER 166","EA",12,null,{"v":0,"d":"R0.00"},2,null,{"v":0,"d":"R0.00"},2,null,{"v":0,"d":"R0.00"},{"v":0,"d":"R0.00"},{"v":0,"d":"R0.00"}]
["085821548 ","CONNECTOR CABLE;P/N:3451000162,20E/22E\nCONNECTOR, CABLE\nP/N: 3451000162 CSR CORPORATION LIMITED\nELECTRIC LOCOMOTIVE CLASS 20E/22E\nSPECIFICATION: 7M 0207B00411\nDRAWING NO: ZRAJE1000852 CSR CORPORATION LIMITED REV LATEST\nITEM 171","EA",12,null,{"v":0,"d":"R0.00"},2,null,{"v":0,"d":"R0.00"},2,null,{"v":0,"d":"R0.00"},{"v":0,"d":"R0.00"},{"v":0,"d":"R0.00"}]
["085817961","ARRESTER ELECT;ZR3241005018,CSR CORP\nARRESTER, ELECTRICAL; P/N: ZR3241005018, CSR CORPORATION LIMITED; ELECTRIC LOCOMOTIVE CLASS 20E CN+EN; 22E","EA",60,null,{"v":0,"d":"R0.00"},15,null,{"v":0,"d":"R0.00"},15,null,{"v":0,"d":"R0.00"},{"v":0,"d":"R0.00"},{"v":0,"d":"R0.00"}]
[]
["Material Category 45: "]
["068823150","GEAR;WHEEL RING, CL 20E/22E,AB01007629G0\nGEAR\nTYPE WHEEL RING\nELECTRIC LOCOMOTIVE CLASS 20E / 22E BOGIE;\nDRAWING NO: PELG_176Z_0572, LA;\nDRAWING NO: AB01007629G030 CSR CORPORATION LIMITED REV\nLATEST\nMAGNETIC PARTICLE INSPECTION TO BE DONE ACCORDING TO\nSPECIFICATION: RS/ME/PR/026","EA",50,null,{"$f":"D374*E374","v":{"v":0,"d":"R0.00"}},0,null,{"$f":"G374*H374","v":{"v":0,"d":"R0.00"}},0,null,{"$f":"J374*K374","v":{"v":0,"d":"R0.00"}},{"$f":"SUM(L374+I374+F374)","v":{"v":0,"d":"R0.00"}},{"$f":"SUM(M374*1.15)","v":{"v":0,"d":"R0.00"}}]
["068823150R","REPAIR UNIT;GEAR TEETH 103,20E/22E GEAR\nREPAIR, UNIT;\nTYPE: GEAR TEETH 103,\nLOCATION: 20E/22E GEAR;\nDRAWING NO: PELG_176Z_0572, LA;\nGEAR TO BE REPROFILED ACCORDING TO SPECIFICATION RSE/TE/SPC/0036","EA",20,null,{"v":0,"d":"R0.00"},0,null,{"v":0,"d":"R0.00"},0,null,{"v":0,"d":"R0.00"},{"v":0,"d":"R0.00"},{"v":0,"d":"R0.00"}]
["069831826","WHEEL RAILWAY;CENTRE,20E/22E,ID:232 MM\nWHEEL, RAILWAY; TYPE: CENTRE, 20E/22E, INSIDE DIAMETER: 232 MM, OUTSIDE DIAMETER: 1.22 M, MATERIAL: STEEL; DRAWING NO: P\nLA; SPECIFICATION: RS_ME_SP_021, LA; ELECTRIC LOCOMOTIVE CLASS 20E/22E; FOR GEAR AND NON GEAR SIDE","EA",200,null,{"v":0,"d":"R0.00"},0,null,{"v":0,"d":"R0.00"},0,null,{"v":0,"d":"R0.00"},{"v":0,"d":"R0.00"},{"v":0,"d":"R0.00"}]
["069826637","AXLE RAILWAY;20E,LG:1.952 M,STL,LOCO\nAXLE, RAILWAY; TYPE: 20E, AXLE OVERALL LENGTH: 1.952 M, MATERIAL: STEEL, CLASS: LOCOMOTIVE, APPLICATION: ELECTRIC LOCOMO\n20E; P/N: AB01007578G030, CSR CORPORATION LIMITED; DRAWING NO: SA95NEL-DW-B10, LA; PELG_176Z_0569, LA","EA",360,null,{"v":0,"d":"R0.00"},200,null,{"v":0,"d":"R0.00"},208,null,{"v":0,"d":"R0.00"},{"v":0,"d":"R0.00"},{"v":0,"d":"R0.00"}]
["069831687","AXLE RAILWAY;LG:1.95 M,ELEC LOCO CL 21E\nAXLE, RAILWAY; AXLE OVERALL LENGTH: 1.95 M, APPLICATION: ELECTRIC LOCOMOTIVE CLASS 21E; P/N: AB01012204, CSR CORPORATION\nRAWING NO: PELG_176Z_0574, LA","EA",40,null,{"v":0,"d":"R0.00"},0,null,{"v":0,"d":"R0.00"},0,null,{"v":0,"d":"R0.00"},{"v":0,"d":"R0.00"},{"v":0,"d":"R0.00"}]
["069831803","HUB;AB01007628G030,CSR CORP\nHUB;\nTYPE: GEAR, 20E AND 22E;\nP/N: AB01007628G030, CSR CORPORATION LIMITED;\nDRAWING NO: PELG_176Z_0630 , LA;\nELECTRIC LOCOMOTIVE CLASS 20E AND 22E","EA",35,null,{"v":0,"d":"R0.00"},0,null,{"v":0,"d":"R0.00"},0,null,{"v":0,"d":"R0.00"},{"v":0,"d":"R0.00"},{"v":0,"d":"R0.00"}]
["069831805","COLLAR SHAFT;AXLE,20E/22E\nCOLLAR, SHAFT; TYPE: AXLE, 20E AND 22E; P/N: AB01007571G030, CSR CORPORATION LIMITED; DRAWING NO: PELG_176Z_0623 , LA; E\nOMOTIVE CLASS 20E AND 22E","EA",20,null,{"v":0,"d":"R0.00"},0,null,{"v":0,"d":"R0.00"},0,null,{"v":0,"d":"R0.00"},{"v":0,"d":"R0.00"},{"v":0,"d":"R0.00"}]
["069831807","PAD;AB01007572G030,CSR CORP\nPAD; TYPE: ADJUSTABLE, 20E AND 22E; P/N: AB01007572G030, CSR CORPORATION LIMITED; DRAWING NO: PELG_176Z_0631, LA; ELECTR\nVE CLASS 20E AND 22E","EA",50,null,{"v":0,"d":"R0.00"},0,null,{"v":0,"d":"R0.00"},0,null,{"v":0,"d":"R0.00"},{"v":0,"d":"R0.00"},{"v":0,"d":"R0.00"}]
["069831810","BOX;AXLE HUNG,20E/22E\nBOX; TYPE: AXLE HUNG, 20E AND 22E; P/N: ABAB01007583G030, CSR CORPORATION LIMITED; DRAWING NO: PELG_176Z_0629, LA; ELECT\nIVE CLASS 20E AND 22E;\nTHE MOTOR SUSPENSION MUST COMPLY TO SPECIFICATION RS/C/1/90","EA",35,null,{"v":0,"d":"R0.00"},0,null,{"v":0,"d":"R0.00"},0,null,{"v":0,"d":"R0.00"},{"v":0,"d":"R0.00"},{"v":0,"d":"R0.00"}]
["069831811","GEAR;WHEEL, 21E;AB01007631G030 CSR\nGEAR;\nTYPE: WHEEL, 21E;\nP/N: AB01007631G030, CSR CORPORATION LIMITED;\nDRAWING NO: PELG_176Z_0575 , LA;\nELECTRIC LOCOMOTIVE CLASS 21E;\nMAGNETIC PARTICLE INSPECTION TO BE DONE ACCORDING TO\nSPECIFICATION: RS/ME/PR/026","EA",25,null,{"v":0,"d":"R0.00"},5,null,{"v":0,"d":"R0.00"},5,null,{"v":0,"d":"R0.00"},{"v":0,"d":"R0.00"},{"v":0,"d":"R0.00"}]
["069831811R","REPAIR UNIT;GEAR TEETH 103,21E GEAR\nREPAIR, UNIT;\nTYPE: GEAR TEETH 103,\nLOCATION: 21E GEAR;\nDRAWING NO: PELG_176Z_0575, LA;\nGEAR TO BE REPROFILED ACCORDING TO SPECIFICATION RSE/TE/SPC/0036","EA",20,null,{"v":0,"d":"R0.00"},0,null,{"v":0,"d":"R0.00"},0,null,{"v":0,"d":"R0.00"},{"v":0,"d":"R0.00"},{"v":0,"d":"R0.00"}]
["069831812","HUB;AB01007649G030,CSR CORP;GEAR, 21E\nHUB; TYPE: GEAR, 21E, APPLICATION: ELECTRIC LOCOMOTIVE CLASS 21E; P/N: AB01007649G030, CSR CORPORATION LIMITED; DRAWING\n6Z_0573 , LA","EA",40,null,{"v":0,"d":"R0.00"},0,null,{"v":0,"d":"R0.00"},0,null,{"v":0,"d":"R0.00"},{"v":0,"d":"R0.00"},{"v":0,"d":"R0.00"}]
["069831816","BOX;AXLE HUNG,21E\nBOX; TYPE: AXLE HUNG, 21E; P/N: AB01011723G030, CSR CORPORATION LIMITED; DRAWING NO: PELG_176Z_0624 , LA; ELECTRIC LOCOM\n21E;\nTHE MOTOR SUSPENSION MUST COMPLY TO SPECIFICATION RS/C/1/90","EA",40,null,{"v":0,"d":"R0.00"},0,null,{"v":0,"d":"R0.00"},0,null,{"v":0,"d":"R0.00"},{"v":0,"d":"R0.00"},{"v":0,"d":"R0.00"}]
["069831817","COLLAR SHAFT;AXLE, 21E,ELEC LOCO CL 21E\nCOLLAR, SHAFT; TYPE: AXLE, 21E, APPLICATION: ELECTRIC LOCOMOTIVE CLASS 21E; P/N: AB01007580G030, CSR CORPORATION LIMITED\nO: PELG_176Z_0577, LA","EA",20,null,{"v":0,"d":"R0.00"},0,null,{"v":0,"d":"R0.00"},0,null,{"v":0,"d":"R0.00"},{"v":0,"d":"R0.00"},{"v":0,"d":"R0.00"}]
["069831819","PAD;ADJ,21E,ELEC LOCO CL 21E\nPAD; TYPE: ADJUSTABLE, 21E, APPLICATION: ELECTRIC LOCOMOTIVE CLASS 21E; P/N: AB01007581G030, CSR CORPORATION LIMITED; DR\nELG_176Z_0794 , LA","EA",50,null,{"v":0,"d":"R0.00"},0,null,{"v":0,"d":"R0.00"},0,null,{"v":0,"d":"R0.00"},{"v":0,"d":"R0.00"},{"v":0,"d":"R0.00"}]
["084827614","AXLE;AB01013833A-0041,CSR CORP;22E\nAXLE; DRAWING NO: AB01013833A, LA, ITEM: 1; PELG_176Z_0569, LA; ELECTRIC LOCOMOTIVE CLASS 22E","EA",35,null,{"v":0,"d":"R0.00"},0,null,{"v":0,"d":"R0.00"},0,null,{"v":0,"d":"R0.00"},{"v":0,"d":"R0.00"},{"v":0,"d":"R0.00"}]
[]
["Material Category 46: "]
["08422E0433","SLEEVE;NO 1,ELEC LOCO CL 22E,22E\nSLEEVE\nTYPE NO 1\nAPPLICATION ELECTRIC LOCOMOTIVE CLASS 22E\nP/N: AB01013425A CSR CORPORATION LIMITED\nDRAWING NO: AB01013033A CSR CORPORATION LIMITED REV LATEST ITEM\n14, AB01013425A REV LATEST","EA",140,null,{"$f":"D392*E392","v":{"v":0,"d":"R0.00"}},90,null,{"$f":"G392*H392","v":{"v":0,"d":"R0.00"}},90,null,{"$f":"J392*K392","v":{"v":0,"d":"R0.00"}},{"$f":"SUM(L392+I392+F392)","v":{"v":0,"d":"R0.00"}},{"$f":"SUM(M392*1.15)","v":{"v":0,"d":"R0.00"}}]
["08422E0434","SLEEVE;NO 2,ELEC LOCO CL 22E,22E\nSLEEVE\nTYPE NO 2\nAPPLICATION ELECTRIC LOCOMOTIVE CLASS 22E\nP/N: AB01013424A CSR CORPORATION LIMITED\nDRAWING NO: AB01013033A CSR CORPORATION LIMITED REV LATEST ITEM\n15, AB01013424A REV LATEST","EA",140,null,{"v":0,"d":"R0.00"},90,null,{"v":0,"d":"R0.00"},90,null,{"v":0,"d":"R0.00"},{"v":0,"d":"R0.00"},{"v":0,"d":"R0.00"}]
["08422E0449","SLEEVE;NO 3,ELEC LOCO CL 22E,22E\nSLEEVE\nTYPE NO 3\nAPPLICATION ELECTRIC LOCOMOTIVE CLASS 22E\nP/N: AB01013376A CSR CORPORATION LIMITED\nDRAWING NO: AB01013033A-JC CSR CORPORATION LIMITED REV LATEST\nITEM 10, AB01013376A REV LATEST","EA",280,null,{"v":0,"d":"R0.00"},180,null,{"v":0,"d":"R0.00"},180,null,{"v":0,"d":"R0.00"},{"v":0,"d":"R0.00"},{"v":0,"d":"R0.00"}]
[]
["Material Category 47: "]
["085817532","CONTROLLER;MASTER,P/N:ZRJQ00007643G00\nCONTROLLER\nTYPE MASTER\nP/N: ZRJQ00007643G00 CSR CORPORATION LIMITED\nTKS39C(03)-0425 MASTER CONTROLLER - TKS39C(03)-0425;\n20E CAB CN+EN","EA",20,null,{"$f":"D397*E397","v":{"v":0,"d":"R0.00"}},0,null,{"$f":"G397*H397","v":{"v":0,"d":"R0.00"}},0,null,{"$f":"J397*K397","v":{"v":0,"d":"R0.00"}},{"$f":"SUM(L397+I397+F397)","v":{"v":0,"d":"R0.00"}},{"$f":"SUM(M397*1.15)","v":{"v":0,"d":"R0.00"}}]
[]
["Material Category 48: "]
["084862502","BELLOWS;CHANNEL,AIR INTAKE\nBELLOWS;\nTYPE: CHANNEL, AIR INTAKE;\nDRAWING NO: BBH5577 SHT 3, LA;\nAPPLICATION: ELECTRIC LOCOMOTIVE CLASS 22E TRACTION MOTOR\nMATERIAL: NOMEX;\nTFR DRAWING: BBH5577 SHT 3;\nINTERNAL USE:\nCRRC P/N: 1561000104 - RF1300000090;\nMAINTENANCE MANUAL: MM0606","EA",420,null,{"$f":"D400*E400","v":{"v":0,"d":"R0.00"}},270,null,{"$f":"G400*H400","v":{"v":0,"d":"R0.00"}},270,null,{"$f":"J400*K400","v":{"v":0,"d":"R0.00"}},{"$f":"SUM(L400+I400+F400)","v":{"v":0,"d":"R0.00"}},{"$f":"SUM(M400*1.15)","v":{"v":0,"d":"R0.00"}}]
[]
["Material Category 49: "]
["084817598","SEAT VEHICULAR;DRIVERS,P/N:ZR3970000289\nSEAT, VEHICULAR\nTYPE DRIVERS\nP/N: ZR3970000289 CSR CORPORATION LIMITED\nCAB SEAT; 20E CAB CN+EN; SPEC:KAB414 0207A00204","EA",75,null,{"$f":"D403*E403","v":{"v":0,"d":"R0.00"}},25,null,{"$f":"G403*H403","v":{"v":0,"d":"R0.00"}},0,null,{"$f":"J403*K403","v":{"v":0,"d":"R0.00"}},{"$f":"SUM(L403+I403+F403)","v":{"v":0,"d":"R0.00"}},{"$f":"SUM(M403*1.15)","v":{"v":0,"d":"R0.00"}}]
["084827356","SEAT;UPPER,P/N:AB01012887A,22E\nSEAT\nTYPE UPPER\nP/N: AB01012887A CSR CORPORATION LIMITED\nELECTRIC LOCOMOTIVE CLASS 22E, PRIMARY SUSPENSION DEVICE\nDRAWING NO: AB01012887A REV LATEST, AB01013332A REV LATEST ITEM\n7","EA",18,null,{"v":0,"d":"R0.00"},6,null,{"v":0,"d":"R0.00"},6,null,{"v":0,"d":"R0.00"},{"v":0,"d":"R0.00"},{"v":0,"d":"R0.00"}]
[]
["Material Category 50: "]
["085844166\n","CONTACTOR;W27249002506,CRRC;CHARGE;21E\nCONTACTOR;\nTYPE: CHARGING;\nP/N: W27249002506, CRRC CORPORATION LIMITED;\nCATALOGUE: MM0144, CRRC CORPORATION LIMITED;\nDRAWING NO: LTCH60/1PNO/V/110/2, LA, CRRC CORPORATION LIMITED;\nQUANTITY PER CONVERTER CABINET: 3X2;\nCONTACTOR KM4,KM5,KM6;\nELECTRIC LOCOMOTIVE CLASS 21E;\nPOWER CONVERTOR CUBICLE AND TRACTION CONTROL UNIT","EA",20,null,{"$f":"D407*E407","v":{"v":0,"d":"R0.00"}},0,null,{"$f":"G407*H407","v":{"v":0,"d":"R0.00"}},0,null,{"$f":"J407*K407","v":{"v":0,"d":"R0.00"}},{"$f":"SUM(L407+I407+F407)","v":{"v":0,"d":"R0.00"}},{"$f":"SUM(M407*1.15)","v":{"v":0,"d":"R0.00"}}]
["085827111","CONVERTER;TRACTION,P/N:6911001567,22E\nCONVERTER\nTYPE TRACTION\nP/N: 6911001567 CSR CORPORATION LIMITED\nELECTRIC LOCOMOTIVE CLASS 22E\nDRAWING NO: 6911001567 REV LATEST, AJA1013765A CSR CORPORATION\nLIMITED REV LATEST ITEM 1","EA",1,null,{"v":0,"d":"R0.00"},1,null,{"v":0,"d":"R0.00"},0,null,{"v":0,"d":"R0.00"},{"v":0,"d":"R0.00"},{"v":0,"d":"R0.00"}]
["085827111R","REPAIR, UNIT;PWR CONVRT CUBICLE;22E\nREPAIR, UNIT; TYPE: POWER CONVERTER CUBICLE, LOCATION: ELECTRIC LOCOMOTIVE CLASS 22E; CONVERTER, TRACTION;\nPN: 691100156\nRATION LIMITED;\nMAINTENANCE MANUAL: MM0117","EA",2,null,{"v":0,"d":"R0.00"},2,null,{"v":0,"d":"R0.00"},2,null,{"v":0,"d":"R0.00"},{"v":0,"d":"R0.00"},{"v":0,"d":"R0.00"}]
["084823252","DETECTOR;THERMAL,ELEC LOCO CL 20E\nDETECTOR\nTYPE THERMAL\nAPPLICATION ELECTRIC LOCOMOTIVE CLASS 20E\nDRAWING NO: 80003395000112 CSR CORPORATION LIMITED REV LATEST","EA",25,null,{"v":0,"d":"R0.00"},5,null,{"v":0,"d":"R0.00"},5,null,{"v":0,"d":"R0.00"},{"v":0,"d":"R0.00"},{"v":0,"d":"R0.00"}]
["085837517","GAUGE, PRESSURE; TYPE: 18-015-909; APPLICATION: ELECTRIC LOCOMOTIVE CLASS 20E/21E/22E PANTO CONTROL; MEDIUM: COMPRESSED AIR; SCALE RANGE: 0 - 10 BAR; OPERATING TEMP: -40C TO 65 °C; ACCURACY: 2.5% OF FULL SCALE; PORT CONNECTION: CENTRE BACK 1/4\" NPT; DIAME","EA",420,null,{"v":0,"d":"R0.00"},20,null,{"v":0,"d":"R0.00"},20,null,{"v":0,"d":"R0.00"},{"v":0,"d":"R0.00"},{"v":0,"d":"R0.00"}]
["085844175","INSULATOR;ZS145-00-45,CRRC;21E\nINSULATOR;\nP/N: ZS145-00-45, CRRC CORPORATION LIMITED;\nCATALOGUE: MM0144, CRRC CORPORATION LIMITED;\nDRAWING NO: ZS145-00-45, LA, CRRC CORPORATION LIMITED;\nQUANTITY PER CONVERTER CABINET: 3 X 2;\nELECTRIC LOCOMOTIVE CLASS 21E;\nPOWER CONVERTOR CUBICLE  AND TRACTION CONTROL UNIT","EA",30,null,{"v":0,"d":"R0.00"},0,null,{"v":0,"d":"R0.00"},0,null,{"v":0,"d":"R0.00"},{"v":0,"d":"R0.00"},{"v":0,"d":"R0.00"}]
["085823269","METER WATTHOUR;KW,P/N:80004141000018\nMETER, WATTHOUR\nTYPE KILOWATT\nELECTRIC LOCOMOTIVE CLASS 20E\nSPECIFICATION: EM4T\nDRAWING NO: 80004141000018 CSR CORPORATION LIMITED REV LATEST","EA",5,null,{"v":0,"d":"R0.00"},0,null,{"v":0,"d":"R0.00"},0,null,{"v":0,"d":"R0.00"},{"v":0,"d":"R0.00"},{"v":0,"d":"R0.00"}]
["084866185","RING;MIDDLE AXLE BRG BACKING,ID:170 MM\nRING; TYPE:\nMIDDLE AXLE BEARING BACKING,\nINSIDE DIAMETER: 170 MM,\nOUTSIDE DIAMETER: 235 MM,\nWIDTH: 45 MM,\nMATERIAL: STEEL SANS 50025 S355 JR+AR,\nAPPLICATION: ELECTRIC LOCOMOTIVE CLASS 22E;\nDRAWING NO: PEL99M_00563, LA;\nLG: 235 MM","EA",50,null,{"v":0,"d":"R0.00"},0,null,{"v":0,"d":"R0.00"},0,null,{"v":0,"d":"R0.00"},{"v":0,"d":"R0.00"},{"v":0,"d":"R0.00"}]
[]
["Material Category 51: "]
["085823328","UNIT CONTROL;P/N:TE6920000000,20/22E\nUNIT, TRACTION CONTROL;\nTCU COMPLETE;\nELECTRIC LOCOMOTIVE CLASS 20/22E\nDRAWING NO: TE6920000000 CSR CORPORATION LIMITED REV\nLATEST","EA",12,null,{"$f":"D417*E417","v":{"v":0,"d":"R0.00"}},0,null,{"$f":"G417*H417","v":{"v":0,"d":"R0.00"}},0,null,{"$f":"J417*K417","v":{"v":0,"d":"R0.00"}},{"$f":"SUM(L417+I417+F417)","v":{"v":0,"d":"R0.00"}},{"$f":"SUM(M417*1.15)","v":{"v":0,"d":"R0.00"}}]
["085832308","UNIT;6200002454,CSR CORP;DIGTAL DSP;22E\nUNIT;\nTYPE: DIGTAL DISPLAY;\nSPECIFICATION: TE8384000000, CSR CORPORATION LIMITED;\nELECTRICAL LOCOMOTIVE CLASS 22E","EA",20,null,{"v":0,"d":"R0.00"},0,null,{"v":0,"d":"R0.00"},0,null,{"v":0,"d":"R0.00"},{"v":0,"d":"R0.00"},{"v":0,"d":"R0.00"}]
["085817599","UNIT;ZR6200001275,CSR CORP;AUX DSP\nUNIT; TYPE: AUXILIARY DISPLAY; P/N: ZR6200001275, CSR CORPORATION LIMITED; AUXILIARY DISPLAYING UNIT; 22E/20E CAB CN+EN","EA",25,null,{"v":0,"d":"R0.00"},0,null,{"v":0,"d":"R0.00"},0,null,{"v":0,"d":"R0.00"},{"v":0,"d":"R0.00"},{"v":0,"d":"R0.00"}]
["085835047","DISPLAY UNIT DATA;DIGITAL;21E\nDISPLAY UNIT,\nDATA; TYPE: DIGITAL;\nP/N: 6200002330, CSR CORPORATION LIMITED;\nELECTRIC LOCOMOTIVE CLASS 21E","EA",25,null,{"v":0,"d":"R0.00"},5,null,{"v":0,"d":"R0.00"},0,null,{"v":0,"d":"R0.00"},{"v":0,"d":"R0.00"},{"v":0,"d":"R0.00"}]
[]
["Material Category 52: "]
["084848257","PINION; TYPE: GEAR, APPLICATION: YQ-775-1 CSR TRACTION MOTOR; P/N: AB01013758G020, CRRC CORPORATION LIMITED; DRAWING NO: PELG_176Z_ 0571 , LA; ELECTRIC LOCOMOTIVE CLASS 20E/22E","EA",10,null,{"$f":"D423*E423","v":{"v":0,"d":"R0.00"}},5,null,{"$f":"G423*H423","v":{"v":0,"d":"R0.00"}},5,null,{"$f":"J423*K423","v":{"v":0,"d":"R0.00"}},{"$f":"SUM(L423+I423+F423)","v":{"v":0,"d":"R0.00"}},{"$f":"SUM(M423*1.15)","v":{"v":0,"d":"R0.00"}}]
["084838896","PINION; TYPE: GEAR, MATERIAL: STEEL 18CRNIMO7-6 OR 17CRNIMO6, DIMENSIONS: DIA 177.3 X LG 371 MM, APPLICATION: YQ-775 CSR TRACTION M\nOTOR; DRAWING NO: PELG_176Z_0570, LA; STATOR HOUSING\nELECTRIC LOCOMOTIVE CLASS 21E","EA",30,null,{"v":0,"d":"R0.00"},5,null,{"v":0,"d":"R0.00"},5,null,{"v":0,"d":"R0.00"},{"v":0,"d":"R0.00"},{"v":0,"d":"R0.00"}]
[]
["Material Category 53: "]
["084837509","REGULATOR, PRESSURE; TYPE: AIR; APPLICATION: ELECTRIC LOCOMOTIVE CLASS 20E/21E/22E PANTO CONTROL; MEDIUM: AIR; WORKING PRESSURE: 1- 8 BAR; INLET PRESSURE: 10 BAR; FLOW CAPACITY: UP TO 1500 L/MIN; SENSITIVITY: BETTER THAN 0.3 MBAR OF SUPPLY PRESSURE CHANGE","EA",320,null,{"$f":"D427*E427","v":{"v":0,"d":"R0.00"}},20,null,{"$f":"G427*H427","v":{"v":0,"d":"R0.00"}},20,null,{"$f":"J427*K427","v":{"v":0,"d":"R0.00"}},{"$f":"SUM(L427+I427+F427)","v":{"v":0,"d":"R0.00"}},{"$f":"SUM(M427*1.15)","v":{"v":0,"d":"R0.00"}}]
["085837510","REGULATOR; TYPE: AIR FLOW, LT1000C2800; APPLICATION: ELECTRIC LOCOMOTIVE CLASS 20E/21E/22E PANTO CONTROL; MEDIUM: COMPRESSED AIR; OPERATION: UNI-DIRECTIONAL FLOW REGULATOR; REGULATED FLOW FACTOR: 0.28 M3/H; FREE FLOW FACTOR: 0.6 M3/H; OPENING PRESSURE: <(","EA",70,null,{"v":0,"d":"R0.00"},20,null,{"v":0,"d":"R0.00"},20,null,{"v":0,"d":"R0.00"},{"v":0,"d":"R0.00"},{"v":0,"d":"R0.00"}]
["085825734","RELAY PNEUMATIC;OIL FLOW,P/N:3382000208\nRELAY, PNEUMATIC\nTYPE OIL FLOW\nP/N: 3382000208 CSR CORPORATION LIMITED","EA",100,null,{"v":0,"d":"R0.00"},0,null,{"v":0,"d":"R0.00"},0,null,{"v":0,"d":"R0.00"},{"v":0,"d":"R0.00"},{"v":0,"d":"R0.00"}]
["085823335","RELAY;INTM,P/N:W27201040222\nRELAY\nTYPE INTERMEDIATE\nELECTRICAL LOCOMOTIVE 20E; 22E\nDRAWING NO: W27201040222 CSR CORPORATION LIMITED REV LATEST","EA",25,null,{"v":0,"d":"R0.00"},5,null,{"v":0,"d":"R0.00"},5,null,{"v":0,"d":"R0.00"},{"v":0,"d":"R0.00"},{"v":0,"d":"R0.00"}]
[]
["Material Category 54: "]
["084817606","SWITCH;ZR6912001291,CSR CORP;PEDAL\nSWITCH; TYPE: PEDAL; P/N: ZR6912001291, CSR CORPORATION LIMITED; 20E CAB CN+EN","EA",40,null,{"$f":"D433*E433","v":{"v":0,"d":"R0.00"}},10,null,{"$f":"G433*H433","v":{"v":0,"d":"R0.00"}},10,null,{"$f":"J433*K433","v":{"v":0,"d":"R0.00"}},{"$f":"SUM(L433+I433+F433)","v":{"v":0,"d":"R0.00"}},{"$f":"SUM(M433*1.15)","v":{"v":0,"d":"R0.00"}}]
["085851795","SWITCH ELECTRO;ETHERNET;22E\nSWITCH, ELECTRONIC; TYPE: ETHERNET; PART NUMBER: W200000970, CRRC;\nMAINTENANCE MANUAL: MM0701;\nELECTRIC LOCOMOTIVE CLASS","EA",10,null,{"v":0,"d":"R0.00"},0,null,{"v":0,"d":"R0.00"},0,null,{"v":0,"d":"R0.00"},{"v":0,"d":"R0.00"},{"v":0,"d":"R0.00"}]
["085874888","Power over Ethernet switch (A89);\nUse: Class 20E/21E/22E, FCCTV System, \nP/N: 80006200001880, CSR CORPORATION LIMITED; \nE CLASS 20E/21E/22E; \nReference Manual: MM0744 /MM0141","EA",20,null,{"v":0,"d":"R0.00"},0,null,{"v":0,"d":"R0.00"},0,null,{"v":0,"d":"R0.00"},{"v":0,"d":"R0.00"},{"v":0,"d":"R0.00"}]
["085826677","SWITCH KNIFE;BLADE,P/N:JQ00004236G00A\nSWITCH, KNIFE\nTYPE BLADE\nELECTRIC LOCOMOTIVE CLASS 22E; ALTERNATIVE CURRENT EARTHING\nSWITCH\nDRAWING NO: JQ00004236G00A REV LATEST, JQ00007702G00A CSR\nCORPORATION LIMITED REV LATEST ITEM 1","EA",100,null,{"v":0,"d":"R0.00"},25,null,{"v":0,"d":"R0.00"},0,null,{"v":0,"d":"R0.00"},{"v":0,"d":"R0.00"},{"v":0,"d":"R0.00"}]
["085837516","SWITCH, PRESSURE; TYPE: 18D-LT; P/N: 0880457, NORGREN; APPLICATION: ELECTRIC LOCOMOTIVE CLASS 20E/21E/22E PANTO CONTROL; MEDIUM: AIR; WORKING PRESSURE: 1 - 10 BAR; OPERATING TEMP: -40C TO 85 °C; RATED MAX VOLTAGE: 250V AC: RATED MAX CURRENT: 100 MA; PORT","EA",70,null,{"v":0,"d":"R0.00"},20,null,{"v":0,"d":"R0.00"},20,null,{"v":0,"d":"R0.00"},{"v":0,"d":"R0.00"},{"v":0,"d":"R0.00"}]
["085839089","SWITCH;DC EARTH,ELEC LOCO CL 20/21/22E\nSWITCH; TYPE: DIRECT CURRENT EARTHING,\nAPPLICATION: ELECTRIC LOCOMOTIVE CLASS 20/21/22E;\nP/N: 80003301000484, CRRC CORPORATION LIMITED;\nDRAWING NO: 80003301000484, LA;\nHIGH VOLTAGE ELECTRICAL CUBICLE;\nMAINTENANCE MANUAL MM0105;\nAPPLICATION: ELECTRIC LOCOMOTIVE C\nLASS 20E/21E/22E;\nREFERENCE TO 3301000484:  CRRC:  AJA1005197A ITEM 7, <(>&<)>\nAJA1011075A, ITEM 7\n","EA",20,null,{"v":0,"d":"R0.00"},0,null,{"v":0,"d":"R0.00"},0,null,{"v":0,"d":"R0.00"},{"v":0,"d":"R0.00"},{"v":0,"d":"R0.00"}]
["085823324\t","SWITCH;ELECT,ISOLATING QSI 20/21/22E\nSWITCH,ELECTRICAL;\nTYPE: ISOLATING, QS1;\nSWITCH; 6 POLE ELECTRIC ISOLATING SWITCH;\nMAINTENANCE MANUAL: MM0117;\nQS1, HT CUBICLE;\nP/N: W200023149 CRRC;\nTYPE: HDS40-10-6 3C3O;\nAPPLICATION ELECTRIC LOCOMOTIVE CLASS 20E/21E/ 22E","EA",12,null,{"v":0,"d":"R0.00"},0,null,{"v":0,"d":"R0.00"},0,null,{"v":0,"d":"R0.00"},{"v":0,"d":"R0.00"},{"v":0,"d":"R0.00"}]
["085843186","LIGHT-SWITCH; TYPE: DIMMER, POWER RATING: 5 W; P/N: 80003950000381, CRRC CORPORATION LIMITED; SPECIFICATION: ZKP550 R70.30, LA; LOCOMOTIVE CLASS 20E/21E/22E CAB LIGHT SPEC: ZKP550 R70.30; RESISTANCE: 10 OHM TO 50 KOHM LINEAR CURVE; BREAKDOWN VOLTAGE: 320VAC / 450VDC; ROTATION ANGLE: +/- 300 DEGREE; SHAFT LENGTH: 15 MM; INTERNAL USE: CRRC P/N: 80003950000381, MM0508","EA",20,null,{"v":0,"d":"R0.00"},10,null,{"v":0,"d":"R0.00"},10,null,{"v":0,"d":"R0.00"},{"v":0,"d":"R0.00"},{"v":0,"d":"R0.00"}]
[]
["Material Category 55: "]
["085847225","BAR, MOUNTING; TYPE: TOP, MOUNTING TYPE: QSI SWITCH; DRAWING NO: RT_BLE_164, LA; QSI SWITCH, HT CUBICLE; MATERIAL: BAR, FLAT, COPPER; DIMENSIONS: 228 X 45 X 10 THK; SPEC: BS EN 12167:2016; USED ON ELECTRIC LOCOMOTIVE CLASS 20E/21E/22E","EA",30,null,{"$f":"D443*E443","v":{"v":0,"d":"R0.00"}},0,null,{"$f":"G443*H443","v":{"v":0,"d":"R0.00"}},0,null,{"$f":"J443*K443","v":{"v":0,"d":"R0.00"}},{"$f":"SUM(L443+I443+F443)","v":{"v":0,"d":"R0.00"}},{"$f":"SUM(M443*1.15)","v":{"v":0,"d":"R0.00"}}]
["085842336","CONTROLLER;QS BOX,ELEC LOCO CL 20/21/22E; CONTROLLER; TYPE: QS BOX, APPLICATION: ELECTRIC LOCOMOTIVE CLASS 20/21/22E; SPECIFICATION: RD-RD-KDS-SPEC-0131 , LA","EA",60,null,{"v":0,"d":"R0.00"},10,null,{"v":0,"d":"R0.00"},10,null,{"v":0,"d":"R0.00"},{"v":0,"d":"R0.00"},{"v":0,"d":"R0.00"}]
[]
["Material Category 56: "]
["084837064","GUARD; APPLICATION: ELECTRIC LOCOMOTIVE CLASS 20/21E; P/N: 961000102, CRRC CORPORATION LIMITED; DRIVERS SIDE","EA",4,null,{"$f":"D447*E447","v":{"v":0,"d":"R0.00"}},2,null,{"$f":"G447*H447","v":{"v":0,"d":"R0.00"}},2,null,{"$f":"J447*K447","v":{"v":0,"d":"R0.00"}},{"$f":"SUM(L447+I447+F447)","v":{"v":0,"d":"R0.00"}},{"$f":"SUM(M447*1.15)","v":{"v":0,"d":"R0.00"}}]
["084842240","KIT, REPAIR; TYPE: STONE GAURD 6 YEAR OVERHAUL, APPLICATION: ELECTRIC LOCOMOTIVE CLASS 21/22E, COMPRISING: PROGRAM KIT; CONSIST OFF :\nMM0308 SLIDE BLOCK 1 4 OFF 834256000070\nMM0308 SLIDE BLOCK 2 4 OFF 834256000060","EA",123,null,{"v":0,"d":"R0.00"},75,null,{"v":0,"d":"R0.00"},30,null,{"v":0,"d":"R0.00"},{"v":0,"d":"R0.00"},{"v":0,"d":"R0.00"}]
[]
["Material Category 57: "]
["085874889","Hard Disk\nUse: Class 20E/21E/22E, FCCTV System, \nP/N: W200022450 or W600002055,\n CSR CORPORATION LIMITED; \nE CLASS 20E/21E/22E; \nReference Manual: MM0744 ","EA",20,null,{"$f":"D451*E451","v":{"v":0,"d":"R0.00"}},0,null,{"$f":"G451*H451","v":{"v":0,"d":"R0.00"}},0,null,{"$f":"J451*K451","v":{"v":0,"d":"R0.00"}},{"$f":"SUM(L451+I451+F451)","v":{"v":0,"d":"R0.00"}},{"$f":"SUM(M451*1.15)","v":{"v":0,"d":"R0.00"}}]
["085847774","Fire Alarm Buzzer (B79)\nUse: Class 20E/21E/22E, Smoke Detection System, \nP/N:80003911000360, Type: eao 56-61011-00.21, CSR CORPORATION LIMITED; \nE CLASS 20E/21E/22E; \nReference Manual: MM0703","EA",10,null,{"v":0,"d":"R0.00"},0,null,{"v":0,"d":"R0.00"},0,null,{"v":0,"d":"R0.00"},{"v":0,"d":"R0.00"},{"v":0,"d":"R0.00"}]
[]
["Material Category 58: "]
["013819617","COUPLING TUBE;CU,P/N:3520006834,20E\nCOUPLING, TUBE\nMATERIAL COPPER\nP/N: 3520006834 CSR CORPORATION LIMITED\nELECTRIC LOCOMOTIVE CLASS 20E\nLUG 50MM x 12MM\nDRW: TRANSNET BAH-1\nDRW: JA00002886G00A ITEM 1","EA",70,null,{"$f":"D455*E455","v":{"v":0,"d":"R0.00"}},20,null,{"$f":"G455*H455","v":{"v":0,"d":"R0.00"}},20,null,{"$f":"J455*K455","v":{"v":0,"d":"R0.00"}},{"$f":"SUM(L455+I455+F455)","v":{"v":0,"d":"R0.00"}},{"$f":"SUM(M455*1.15)","v":{"v":0,"d":"R0.00"}}]
["084823228","SET;80000952000408,CSR CORP;MASTER CNTLR\nSET;\nTYPE: MASTER CONTROLLER,\nQUANTITY: 2;\nP/N: 80000952000408, CSR CORPORATION LIMITED;\nTYPE: MASTER CONTROLLER DRIVER KEY;\nAPPLICATION: ELECTRIC LOCOMOTIVE CLASS 20E/22E","EA",250,null,{"v":0,"d":"R0.00"},50,null,{"v":0,"d":"R0.00"},50,null,{"v":0,"d":"R0.00"},{"v":0,"d":"R0.00"},{"v":0,"d":"R0.00"}]
["013827118","NOZZLE;6912001751,CSR CORP;AIR VENT\nNOZZLE; TYPE: AIR VENT;\nP/N: 6912001751, CSR CORPORATION LIMITED;\nDRAWING NO: AJA1013727A, LA, ITEM: 6, CSR CORPORATION LIMITED; EL\nECTRIC LOCOMOTIVE CLASS 21E/22E CAB AIR CONDITIONING DUCT INSTALLATION","EA",600,null,{"v":0,"d":"R0.00"},300,null,{"v":0,"d":"R0.00"},300,null,{"v":0,"d":"R0.00"},{"v":0,"d":"R0.00"},{"v":0,"d":"R0.00"}]
[]
["Material Category 59: "]
["084818030","DUCT;AIR,P/N:6912001393,20E\nDUCT\nTYPE AIR\nP/N: 6912001393 CSR CORPORATION LIMITED\nELECTRIC LOCOMOTIVE CLASS 20E","EA",520,null,{"v":0,"d":"R0.00"},80,null,{"v":0,"d":"R0.00"},80,null,{"v":0,"d":"R0.00"},{"v":0,"d":"R0.00"},{"v":0,"d":"R0.00"}]
["084842241","KIT REPAIR;MASTER CNTLR 3 YR O/HAUL;21E\nKIT, REPAIR; TYPE: MASTER CONTROLLER 3 YEAR OVERHAUL,\nAPPLICATION: ELECTRIC LOCOMOTIVE CLASS 21E,\nCOMPRISING: PROGRAM KIT;\nCONSIST OFF:\n2 SNAP-ACTION S826AL 80003960001410 EACH 7/LOCO\n3 POSITIONING PIECE JQ00007634G00 EACH 1/LOCO\n4 KEY AND DIRECTION UNIT ASSEMLY JQ00007625G00 EACH 1/LOCO","EA",123,null,{"v":0,"d":"R0.00"},75,null,{"v":0,"d":"R0.00"},30,null,{"v":0,"d":"R0.00"},{"v":0,"d":"R0.00"},{"v":0,"d":"R0.00"}]
[]
["Material Category 60: "]
["08422E0381","CAP DUST/MOISTURE SEAL;P/N:AB01014284A\nCAP, DUST AND MOISTURE SEAL\nP/N: AB01014284A CSR CORPORATION LIMITED\nELECTRIC LOCOMOTIVE CLASS 22E\nDRAWING NO: AB01013033A CSR CORPORATION LIMITED REV LATEST ITEM\n31, AB01014284A REV LATEST","EA",140,null,{"v":0,"d":"R0.00"},90,null,{"v":0,"d":"R0.00"},90,null,{"v":0,"d":"R0.00"},{"v":0,"d":"R0.00"},{"v":0,"d":"R0.00"}]
["084868304","COVER;\nTYPE: TAMPER RESISTANT,\nAPPLICATION: ELECTRIC LOCOMOTIVE CLASS 20E/21E/22E PANTO\nPANEL; P/N: 4355-50,NORGREN","EA",520,null,{"v":0,"d":"R0.00"},20,null,{"v":0,"d":"R0.00"},20,null,{"v":0,"d":"R0.00"},{"v":0,"d":"R0.00"},{"v":0,"d":"R0.00"}]
["085826511","PANEL;P/N:JQ00007635G00A,22E\nPANEL\nELECTRIC LOCOMOTIVE CLASS 22E;\nMASTER CONTROLLER-TKS39C(03)-0425\nDRAWING NO: JQ00007635G00A REV LATEST,\nJQ00007643G00A CSR CORPORATION LIMITED REV LATEST\nITEM 3","EA",20,null,{"v":0,"d":"R0.00"},0,null,{"v":0,"d":"R0.00"},0,null,{"v":0,"d":"R0.00"},{"v":0,"d":"R0.00"},{"v":0,"d":"R0.00"}]
["08422E0380","RING;P/N:32210510018AA,22E\nRING\nP/N: 32210510018AA CSR CORPORATION LIMITED\nDUST GUARD, OIL RESISTANT 1 - 2; USED ON: 22E TRACTION DEVICE;\nELECTRIC LOCOMOTIVE CLASS 22E\nDRAWING NO: 32210510018AA REV LATEST, AB01013033A CSR\nCORPORATION LIMITED REV LATEST ITEM 13","EA",280,null,{"v":0,"d":"R0.00"},180,null,{"v":0,"d":"R0.00"},180,null,{"v":0,"d":"R0.00"},{"v":0,"d":"R0.00"},{"v":0,"d":"R0.00"}]
["084833849","SET;PRIMARY SPRING,ELEC LOCO CL 21E\nSET\nTYPE PRIMARY SPRING\nAPPLICATION ELECTRIC LOCOMOTIVE CLASS 21E\nQUANTITY 16\nMM0405\nDRAWING NO: AB01012092 REV LATEST ITEM 1","EA",168,null,{"v":0,"d":"R0.00"},8,null,{"v":0,"d":"R0.00"},8,null,{"v":0,"d":"R0.00"},{"v":0,"d":"R0.00"},{"v":0,"d":"R0.00"}]
["068823152","SPRING;AB01006824G030,CSR CORP;PRIMARY\nSPRING;\nTYPE: PRIMARY;\nSPECIFICATION: 0207B00390, LA;\nELECTRIC LOCOMOTIVE CLASS 20E BOGIE","EA",168,null,{"v":0,"d":"R0.00"},8,null,{"v":0,"d":"R0.00"},8,null,{"v":0,"d":"R0.00"},{"v":0,"d":"R0.00"},{"v":0,"d":"R0.00"}]
["084819390","STOPPER;P/N:ZRJB00000277G00,20E/22E\nSTOPPER\nP/N: ZRJB00000277G00 CSR CORPORATION LIMITED\nELECTRIC LOCOMOTIVE CLASS 20E/22E","EA",424,null,{"v":0,"d":"R0.00"},240,null,{"v":0,"d":"R0.00"},280,null,{"v":0,"d":"R0.00"},{"v":0,"d":"R0.00"},{"v":0,"d":"R0.00"}]
[]
[{"$nulls":9},"Total Excluding VAT: "]
[{"$nulls":9},"Vat"]
[{"$nulls":9},"Total Inclusive of VAT: "]
[]
["Please note that the Qty per year is in each  and the Price Rate must be per each and the Product of the Yearly Quantity and Yearly price rate will be the Total per Year"]
["Total amount will be the Sum of the Total for year1 + year2 + year3 +year4+year5"]
["Please indicate all price related indices and escalations criteria  formula for this Tender "]
["Please also indicate the relevant Trade and Settlement Discounts "]